{"text_format":"3","workbook":"xlsx","n_sheets":15,"sheets":["Comment utiliser ce modèle","Liste des élèves","Août","Septembre","Octobre","Novembre","Décembre","Janvier","Février","Mars","Avril","Mai","Juin","Juillet","Rapport de présence des élèves"],"not_rendered":{"defined_names":16},"read":"whole","date_system":"1900"}

{"sheet":"Comment utiliser ce modèle","index":0,"n_rows":25,"n_cols":5,"rows_kept":25,"merged":[[3,2,3,12],[4,4,4,12],[5,4,5,12],[6,4,6,12],[7,4,7,12],[8,4,8,7],[11,2,11,12],[12,4,12,12],[13,4,13,12],[14,4,14,12],[17,2,17,12],[18,4,18,12],[19,4,19,12],[20,4,20,12],[21,4,21,12],[24,2,24,12]]}
["COMMENT UTILISER CE MODÈLE"]
[]
[null,"PAR OÙ COMMENCER ?"]
[null,null,"Vous devez effectuer quelques étapes avant de pouvoir assurer le suivi de présence des élèves :"]
[{"$nulls":3},"1.","Ajoutez vos élèves : dans la feuille Liste des élèves du classeur, entrez les informations relatives à chaque élève, par exemple les noms des parents/responsables et les données de contacts. La référence est une entrée importante, car elle fournit un identifiant unique pour chaque élève et est utilisée dans le classeur au sein des diverses listes déroulantes Référence dans le but de faciliter l’entrée des données. Les informations entrées dans la feuille Liste des élèves sont également utilisées dans d’autres feuilles, par exemple le Rapport de présence des élèves et les fiches de présence mensuelles."]
[{"$nulls":3},"2.","Modifiez l’année scolaire : dans la feuille Août relative aux informations de présence, cliquez sur le compteur situé à l’extrémité droite du titre afin de mettre à jour l’année scolaire. Cette modification entraîne la mise à jour du titre sur toutes les fiches de présence mensuelles de ce classeur. (Notez que le compteur n’est pas imprimé.)"]
[{"$nulls":3},"3.","(Facultatif) Modifiez les couleurs du classeur :  accédez tout d’abord à la dernière feuille Rapport de présence des élèves puis sous l’onglet Révision dans le groupe Modifications cliquez sur Ôter la protection de la feuille. Sous l’onglet Mise en page dans le groupe Thèmes cliquez sur Couleurs et sélectionnez un autre ensemble de couleurs de thème à partir de la galerie de couleurs. Une fois que vous avez effectué vos modifications de couleurs et autres modifications liées au thème, revenez à la feuille Rapport de présence des élèves  du classeur. Sous l’onglet Révision dans le groupe Modifications cliquez sur Protéger la feuille, puis sur OK."]
[{"$nulls":4},"Conseil : créez un ensemble de couleurs de thème personnalisé aux couleurs de votre école. Pour ce faire, sous l’onglet Mise en page dans le groupe Thèmes cliquez sur Couleurs et, vers le bas de la galerie de couleurs, cliquez sur Nouvelles couleurs de thème. Pour plus d’informations sur la création d’un ensemble de couleurs personnalisé, voir la rubrique d’aide suivante : "]
[{"$nulls":4},"Personnaliser un thème de document."]
[]
[null,"J’AI AJOUTÉ MES ÉLÈVES. QUE DOIS-JE FAIRE MAINTENANT ?"]
[null,null,"Une fois vos élèves inscrits sur la feuille Liste des élèves, vous pouvez commencer le suivi de leur présence durant l’année scolaire en procédant comme suit :"]
[{"$nulls":3},"1.","Pour ajouter un élève à une fiche de présence, cliquez dans une cellule sous la colonne Référence et sélectionnez une référence dans la liste. Le nom de l’élève s’affiche automatiquement dès qu’une référence est sélectionnée. "]
[{"$nulls":4},"Conseil : évitez de devoir recommencer certaines étapes relatives à l’entrée de données. Une fois que vous avez ajouté vos élèves pour un mois, sélectionnez les références de ces élèves, copiez-les, puis collez-les dans la colonne Référence des mois restants. "]
[{"$nulls":3},"2.","Entrez ensuite les informations de présence appropriées pour chaque jour du mois en utilisant les types d’information de présence indiqués dans Code de couleurs. L’assiduité des élèves est calculée automatiquement en fonction du type d’information de présence de chaque élève dans la colonne Total. Le total des absences quotidiennes est automatiquement calculé au bas du tableau dans la ligne de total."]
[]
[null,"COMMENT AJOUTER DAVANTAGE D’ÉLÈVES À UNE FICHE DE PRÉSENCE MENSUELLE ?"]
[null,null,"Les feuilles des fiches de présence mensuelles et la liste des élèves sont des tableaux Excel. Pour ajouter de nouvelles lignes à un tableau Excel, effectuez l’une des opérations suivantes :"]
[{"$nulls":3},"● ","Si le tableau ne possède pas de ligne Total, commencez à taper sous le tableau. Ce dernier se développe automatiquement lorsque vous appuyez sur la touche Entrée ou Tab."]
[{"$nulls":3},"● ","Placez votre pointeur de cellule dans la dernière cellule située au-dessus de la ligne de total, par exemple la cellule Jours d’absence du dernier élève, puis appuyez sur la touche Tab."]
[{"$nulls":3},"● ","Cliquez avec le bouton droit sur le tableau. Dans le menu contextuel, pointez sur Insérer , puis cliquez sur Lignes de tableau en haut ou Lignes de tableau en dessous. "]
[{"$nulls":3},"● ","Dans l’angle inférieur droit du tableau, placez votre souris sur la poignée de redimensionnement du tableau, puis faites-la glisser vers le bas pour augmenter le nombre de lignes disponibles dans le tableau."]
[]
[null,"PUIS-JE VOIR LES INFORMATIONS DE PRÉSENCE D’UN ÉLÈVE POUR TOUTE L’ANNÉE SCOLAIRE ?"]
[null,null,"La dernière feuille de ce classeur, Rapport de présence des élèves, permet d’effectuer le suivi de présence annuel à ce jour. Pour afficher un rapport spécifique à un élève, cliquez dans la cellule située sous Référence et sélectionnez une référence dans la liste déroulante. Les informations que vous avez entrées \nprécédemment dans la feuille Liste des élèves pour l’élève sélectionné s’affichent automatiquement. Notez que la première fois que vous utilisez la feuille Rapport de présence des élèves, vous devez entrer les informations relatives à l’école, au niveau, à l’enseignant et à la salle. Ces informations ne changent pas si vous sélectionnez un autre élève. "]

{"sheet":"Liste des élèves","index":1,"n_rows":8,"n_cols":19,"rows_kept":8}
["LISTE DES ÉLÈVES"]
[]
[null,"Référence","Prénom de l’élève","Nom de l’élève","Sexe","Date de naissance","Parent ou responsable 1","Lien de parenté du parent/responsable 1","Téléphone du parent/responsable 1 (bureau)","Téléphone du parent/responsable 1 (domicile)","Parent/responsable 2","Lien de parenté du parent/responsable 2","Téléphone du parent/responsable 2 (bureau)","Téléphone du parent/responsable 2 (domicile)","Contact en cas d’urgence","Lien de parenté du contact en cas d’urgence","Téléphone du contact en cas d’urgence (bureau)","Téléphone du contact en cas d’urgence (domicile)","Nom complet de \nl’élève"]
[null,"E001","David","Junca","M","1997-03-28","Delphine","Junca",1235550134,2345550134,"Antoine Junca","Père",1235550134,2345550134,"Olivier Renaud","Grand-père",7895550189,7895550134,{"$f":"ListeÉtudiants[[#This Row],[Prénom de l’élève]]&\" \" &ListeÉtudiants[[#This Row],[Nom de l’élève]]","v":"David Junca"}]
[null,"E002","Élève",2,{"$nulls":14},{"$f":"ListeÉtudiants[[#This Row],[Prénom de l’élève]]&\" \" &ListeÉtudiants[[#This Row],[Nom de l’élève]]","v":"Élève 2"}]
[null,"E003","Élève",3,{"$nulls":14},{"$f":"ListeÉtudiants[[#This Row],[Prénom de l’élève]]&\" \" &ListeÉtudiants[[#This Row],[Nom de l’élève]]","v":"Élève 3"}]
[null,"E004","Élève",4,{"$nulls":14},{"$f":"ListeÉtudiants[[#This Row],[Prénom de l’élève]]&\" \" &ListeÉtudiants[[#This Row],[Nom de l’élève]]","v":"Élève 4"}]
[null,"E005","Élève",5,{"$nulls":14},{"$f":"ListeÉtudiants[[#This Row],[Prénom de l’élève]]&\" \" &ListeÉtudiants[[#This Row],[Nom de l’élève]]","v":"Élève 5"}]

{"sheet":"Août","index":2,"n_rows":12,"n_cols":39,"rows_kept":12,"merged":[[4,34,4,38]]}
["FICHE DE PRÉSENCE SCOLAIRE",{"$nulls":36},"Début de l’année scolaire :",2012]
[]
[null,null,"CODE DE COULEURS ","R","en retard",null,null,"E","excusé",null,null,"N1","non excusé",null,null,"P","présent",null,null,"N","école fermée"]
[]
[null,{"$f":"DATE(AnnéeCivile,8,1)","v":"2012-08-01"},null,{"$f":"TEXT(WEEKDAY(DATE(AnnéeCivile,8,1),1),\"[$-40c]aaa\")","v":"mer."},{"$f":"TEXT(WEEKDAY(DATE(AnnéeCivile,8,2),1),\"[$-40c]aaa\")","v":"jeu."},{"$f":"TEXT(WEEKDAY(DATE(AnnéeCivile,8,3),1),\"[$-40c]aaa\")","v":"ven."},{"$f":"TEXT(WEEKDAY(DATE(AnnéeCivile,8,4),1),\"[$-40c]aaa\")","v":"sam."},{"$f":"TEXT(WEEKDAY(DATE(AnnéeCivile,8,5),1),\"[$-40c]aaa\")","v":"dim."},{"$f":"TEXT(WEEKDAY(DATE(AnnéeCivile,8,6),1),\"[$-40c]aaa\")","v":"lun."},{"$f":"TEXT(WEEKDAY(DATE(AnnéeCivile,8,7),1),\"[$-40c]aaa\")","v":"mar."},{"$f":"TEXT(WEEKDAY(DATE(AnnéeCivile,8,8),1),\"[$-40c]aaa\")","v":"mer."},{"$f":"TEXT(WEEKDAY(DATE(AnnéeCivile,8,9),1),\"[$-40c]aaa\")","v":"jeu."},{"$f":"TEXT(WEEKDAY(DATE(AnnéeCivile,8,10),1),\"[$-40c]aaa\")","v":"ven."},{"$f":"TEXT(WEEKDAY(DATE(AnnéeCivile,8,11),1),\"[$-40c]aaa\")","v":"sam."},{"$f":"TEXT(WEEKDAY(DATE(AnnéeCivile,8,12),1),\"[$-40c]aaa\")","v":"dim."},{"$f":"TEXT(WEEKDAY(DATE(AnnéeCivile,8,13),1),\"[$-40c]aaa\")","v":"lun."},{"$f":"TEXT(WEEKDAY(DATE(AnnéeCivile,8,14),1),\"[$-40c]aaa\")","v":"mar."},{"$f":"TEXT(WEEKDAY(DATE(AnnéeCivile,8,15),1),\"[$-40c]aaa\")","v":"mer."},{"$f":"TEXT(WEEKDAY(DATE(AnnéeCivile,8,16),1),\"[$-40c]aaa\")","v":"jeu."},{"$f":"TEXT(WEEKDAY(DATE(AnnéeCivile,8,17),1),\"[$-40c]aaa\")","v":"ven."},{"$f":"TEXT(WEEKDAY(DATE(AnnéeCivile,8,18),1),\"[$-40c]aaa\")","v":"sam."},{"$f":"TEXT(WEEKDAY(DATE(AnnéeCivile,8,19),1),\"[$-40c]aaa\")","v":"dim."},{"$f":"TEXT(WEEKDAY(DATE(AnnéeCivile,8,20),1),\"[$-40c]aaa\")","v":"lun."},{"$f":"TEXT(WEEKDAY(DATE(AnnéeCivile,8,21),1),\"[$-40c]aaa\")","v":"mar."},{"$f":"TEXT(WEEKDAY(DATE(AnnéeCivile,8,22),1),\"[$-40c]aaa\")","v":"mer."},{"$f":"TEXT(WEEKDAY(DATE(AnnéeCivile,8,23),1),\"[$-40c]aaa\")","v":"jeu."},{"$f":"TEXT(WEEKDAY(DATE(AnnéeCivile,8,24),1),\"[$-40c]aaa\")","v":"ven."},{"$f":"TEXT(WEEKDAY(DATE(AnnéeCivile,8,25),1),\"[$-40c]aaa\")","v":"sam."},{"$f":"TEXT(WEEKDAY(DATE(AnnéeCivile,8,26),1),\"[$-40c]aaa\")","v":"dim."},{"$f":"TEXT(WEEKDAY(DATE(AnnéeCivile,8,27),1),\"[$-40c]aaa\")","v":"lun."},{"$f":"TEXT(WEEKDAY(DATE(AnnéeCivile,8,28),1),\"[$-40c]aaa\")","v":"mar."},{"$f":"TEXT(WEEKDAY(DATE(AnnéeCivile,8,29),1),\"[$-40c]aaa\")","v":"mer."},{"$f":"TEXT(WEEKDAY(DATE(AnnéeCivile,8,30),1),\"[$-40c]aaa\")","v":"jeu."},{"$f":"TEXT(WEEKDAY(DATE(AnnéeCivile,8,31),1),\"[$-40c]aaa\")","v":"ven."},"Total"]
[null,"Référence","Nom de l’élève","1","2","3","4","5","6","7","8","9","10","11","12","13","14","15","16","17","18","19","20","21","22","23","24","25","26","27","28","29","30","31","R","E","N1","P","Jours d’absence"]
[null,"E001",{"$f":"IFERROR(VLOOKUP(ParticipationAoût[[#This Row],[Référence]],ListeÉtudiants[],18,FALSE),\"\")","v":"David Junca"},"P","P","R","R","P","N","N","P","P","E","P","P","N","N","P","P","P","P","P","N","N","P","P","P","P","P","N","N","P","P","P",{"$f":"COUNTIF(ParticipationAoût[[#This Row],[1]:[31]],Code1)","v":2},{"$f":"COUNTIF(ParticipationAoût[[#This Row],[1]:[31]],Code2)","v":1},{"$f":"COUNTIF(ParticipationAoût[[#This Row],[1]:[31]],Code3)","v":0},{"$f":"COUNTIF(ParticipationAoût[[#This Row],[1]:[31]],Code4)","v":20},{"$f":"SUM(ParticipationAoût[[#This Row],[E]:[N1]])","v":1}]
[null,"E002",{"$f":"IFERROR(VLOOKUP(ParticipationAoût[[#This Row],[Référence]],ListeÉtudiants[],18,FALSE),\"\")","v":"Élève 2"},"P","N1","P","P","P","N","N","P","E","E","E","E","N","N","P","P","P","P","P","N","N","P","P","P","R","R","N","N","P","P","P",{"$f":"COUNTIF(ParticipationAoût[[#This Row],[1]:[31]],Code1)","v":2},{"$f":"COUNTIF(ParticipationAoût[[#This Row],[1]:[31]],Code2)","v":4},{"$f":"COUNTIF(ParticipationAoût[[#This Row],[1]:[31]],Code3)","v":1},{"$f":"COUNTIF(ParticipationAoût[[#This Row],[1]:[31]],Code4)","v":16},{"$f":"SUM(ParticipationAoût[[#This Row],[E]:[N1]])","v":5}]
[null,"E003",{"$f":"IFERROR(VLOOKUP(ParticipationAoût[[#This Row],[Référence]],ListeÉtudiants[],18,FALSE),\"\")","v":"Élève 3"},"P","E","P","P","P","N","N","P","P","N1","P","P","N","N","P","P","P","P","P","N","N","P","P","E","E","P","N","N","P","P","P",{"$f":"COUNTIF(ParticipationAoût[[#This Row],[1]:[31]],Code1)","v":0},{"$f":"COUNTIF(ParticipationAoût[[#This Row],[1]:[31]],Code2)","v":3},{"$f":"COUNTIF(ParticipationAoût[[#This Row],[1]:[31]],Code3)","v":1},{"$f":"COUNTIF(ParticipationAoût[[#This Row],[1]:[31]],Code4)","v":19},{"$f":"SUM(ParticipationAoût[[#This Row],[E]:[N1]])","v":4}]
[null,"E004",{"$f":"IFERROR(VLOOKUP(ParticipationAoût[[#This Row],[Référence]],ListeÉtudiants[],18,FALSE),\"\")","v":"Élève 4"},"P","P","P","P","P","N","N","P","P","P","P","P","N","N","P","P","P","P","P","N","N","P","N1","P","P","E","N","N","P","E","P",{"$f":"COUNTIF(ParticipationAoût[[#This Row],[1]:[31]],Code1)","v":0},{"$f":"COUNTIF(ParticipationAoût[[#This Row],[1]:[31]],Code2)","v":2},{"$f":"COUNTIF(ParticipationAoût[[#This Row],[1]:[31]],Code3)","v":1},{"$f":"COUNTIF(ParticipationAoût[[#This Row],[1]:[31]],Code4)","v":20},{"$f":"SUM(ParticipationAoût[[#This Row],[E]:[N1]])","v":3}]
[null,"E005",{"$f":"IFERROR(VLOOKUP(ParticipationAoût[[#This Row],[Référence]],ListeÉtudiants[],18,FALSE),\"\")","v":"Élève 5"},"P","P","P","P","P","N","N","P","P","P","P","P","N","N","P","P","P","P","P","N","N","P","P","P","P","P","N","N","P","P","P",{"$f":"COUNTIF(ParticipationAoût[[#This Row],[1]:[31]],Code1)","v":0},{"$f":"COUNTIF(ParticipationAoût[[#This Row],[1]:[31]],Code2)","v":0},{"$f":"COUNTIF(ParticipationAoût[[#This Row],[1]:[31]],Code3)","v":0},{"$f":"COUNTIF(ParticipationAoût[[#This Row],[1]:[31]],Code4)","v":23},{"$f":"SUM(ParticipationAoût[[#This Row],[E]:[N1]])","v":0}]
[null,null,"Jours d’absence (total)",{"$f":"COUNTIF(ParticipationAoût[1],\"N1\")+COUNTIF(ParticipationAoût[1],\"E\")","v":0},{"$f":"COUNTIF(ParticipationAoût[2],\"N1\")+COUNTIF(ParticipationAoût[2],\"E\")","v":2},{"$f":"COUNTIF(ParticipationAoût[3],\"N1\")+COUNTIF(ParticipationAoût[3],\"E\")","v":0},{"$f":"COUNTIF(ParticipationAoût[4],\"N1\")+COUNTIF(ParticipationAoût[4],\"E\")","v":0},{"$f":"COUNTIF(ParticipationAoût[5],\"N1\")+COUNTIF(ParticipationAoût[5],\"E\")","v":0},{"$f":"COUNTIF(ParticipationAoût[6],\"N1\")+COUNTIF(ParticipationAoût[6],\"E\")","v":0},{"$f":"COUNTIF(ParticipationAoût[7],\"N1\")+COUNTIF(ParticipationAoût[7],\"E\")","v":0},{"$f":"COUNTIF(ParticipationAoût[8],\"N1\")+COUNTIF(ParticipationAoût[8],\"E\")","v":0},{"$f":"COUNTIF(ParticipationAoût[9],\"N1\")+COUNTIF(ParticipationAoût[9],\"E\")","v":1},{"$f":"COUNTIF(ParticipationAoût[10],\"N1\")+COUNTIF(ParticipationAoût[10],\"E\")","v":3},{"$f":"COUNTIF(ParticipationAoût[11],\"N1\")+COUNTIF(ParticipationAoût[11],\"E\")","v":1},{"$f":"COUNTIF(ParticipationAoût[12],\"N1\")+COUNTIF(ParticipationAoût[12],\"E\")","v":1},{"$f":"COUNTIF(ParticipationAoût[13],\"N1\")+COUNTIF(ParticipationAoût[13],\"E\")","v":0},{"$f":"COUNTIF(ParticipationAoût[14],\"N1\")+COUNTIF(ParticipationAoût[14],\"E\")","v":0},{"$f":"COUNTIF(ParticipationAoût[15],\"N1\")+COUNTIF(ParticipationAoût[15],\"E\")","v":0},{"$f":"COUNTIF(ParticipationAoût[16],\"N1\")+COUNTIF(ParticipationAoût[16],\"E\")","v":0},{"$f":"COUNTIF(ParticipationAoût[17],\"N1\")+COUNTIF(ParticipationAoût[17],\"E\")","v":0},{"$f":"COUNTIF(ParticipationAoût[18],\"N1\")+COUNTIF(ParticipationAoût[18],\"E\")","v":0},{"$f":"COUNTIF(ParticipationAoût[19],\"N1\")+COUNTIF(ParticipationAoût[19],\"E\")","v":0},{"$f":"COUNTIF(ParticipationAoût[20],\"N1\")+COUNTIF(ParticipationAoût[20],\"E\")","v":0},{"$f":"COUNTIF(ParticipationAoût[21],\"N1\")+COUNTIF(ParticipationAoût[21],\"E\")","v":0},{"$f":"COUNTIF(ParticipationAoût[22],\"N1\")+COUNTIF(ParticipationAoût[22],\"E\")","v":0},{"$f":"COUNTIF(ParticipationAoût[23],\"N1\")+COUNTIF(ParticipationAoût[23],\"E\")","v":1},{"$f":"COUNTIF(ParticipationAoût[24],\"N1\")+COUNTIF(ParticipationAoût[24],\"E\")","v":1},{"$f":"COUNTIF(ParticipationAoût[25],\"N1\")+COUNTIF(ParticipationAoût[25],\"E\")","v":1},{"$f":"COUNTIF(ParticipationAoût[26],\"N1\")+COUNTIF(ParticipationAoût[26],\"E\")","v":1},{"$f":"COUNTIF(ParticipationAoût[27],\"N1\")+COUNTIF(ParticipationAoût[27],\"E\")","v":0},{"$f":"COUNTIF(ParticipationAoût[28],\"N1\")+COUNTIF(ParticipationAoût[28],\"E\")","v":0},{"$f":"COUNTIF(ParticipationAoût[29],\"N1\")+COUNTIF(ParticipationAoût[29],\"E\")","v":0},{"$f":"COUNTIF(ParticipationAoût[30],\"N1\")+COUNTIF(ParticipationAoût[30],\"E\")","v":1},{"$f":"COUNTIF(ParticipationAoût[31],\"N1\")+COUNTIF(ParticipationAoût[31],\"E\")","v":0},{"$f":"SUBTOTAL(109,ParticipationAoût[R])","v":4},{"$f":"SUBTOTAL(109,ParticipationAoût[E])","v":10},{"$f":"SUBTOTAL(109,ParticipationAoût[N1])","v":3},{"$f":"SUBTOTAL(109,ParticipationAoût[P])","v":98},{"$f":"SUBTOTAL(109,ParticipationAoût[Jours d’absence])","v":13}]

{"sheet":"Septembre","index":3,"n_rows":12,"n_cols":39,"rows_kept":12,"merged":[[4,34,4,38]]}
["FICHE DE PRÉSENCE SCOLAIRE",{"$nulls":36},"Début de l’année scolaire :",{"$f":"AnnéeCivile","v":2012}]
[]
[null,null,{"$f":"TexteCléDeCouleur","v":"CODE DE COULEURS "},{"$f":"Code1","v":"R"},{"$f":"TexteCode1","v":"en retard"},null,null,{"$f":"Code2","v":"E"},{"$f":"TexteCode2","v":"excusé"},null,null,{"$f":"Code3","v":"N1"},{"$f":"TexteCode3","v":"non excusé"},null,null,{"$f":"Code4","v":"P"},{"$f":"TexteCode4","v":"présent"},null,null,{"$f":"Code5","v":"N"},{"$f":"TexteCode5","v":"école fermée"}]
[]
[null,{"$f":"DATE(AnnéeCivile,9,1)","v":"2012-09-01"},null,{"$f":"TEXT(WEEKDAY(DATE(AnnéeCivile,9,1),1),\"[$-40c]aaa\")","v":"sam."},{"$f":"TEXT(WEEKDAY(DATE(AnnéeCivile,9,2),1),\"[$-40c]aaa\")","v":"dim."},{"$f":"TEXT(WEEKDAY(DATE(AnnéeCivile,9,3),1),\"[$-40c]aaa\")","v":"lun."},{"$f":"TEXT(WEEKDAY(DATE(AnnéeCivile,9,4),1),\"[$-40c]aaa\")","v":"mar."},{"$f":"TEXT(WEEKDAY(DATE(AnnéeCivile,9,5),1),\"[$-40c]aaa\")","v":"mer."},{"$f":"TEXT(WEEKDAY(DATE(AnnéeCivile,9,6),1),\"[$-40c]aaa\")","v":"jeu."},{"$f":"TEXT(WEEKDAY(DATE(AnnéeCivile,9,7),1),\"[$-40c]aaa\")","v":"ven."},{"$f":"TEXT(WEEKDAY(DATE(AnnéeCivile,9,8),1),\"[$-40c]aaa\")","v":"sam."},{"$f":"TEXT(WEEKDAY(DATE(AnnéeCivile,9,9),1),\"[$-40c]aaa\")","v":"dim."},{"$f":"TEXT(WEEKDAY(DATE(AnnéeCivile,9,10),1),\"[$-40c]aaa\")","v":"lun."},{"$f":"TEXT(WEEKDAY(DATE(AnnéeCivile,9,11),1),\"[$-40c]aaa\")","v":"mar."},{"$f":"TEXT(WEEKDAY(DATE(AnnéeCivile,9,12),1),\"[$-40c]aaa\")","v":"mer."},{"$f":"TEXT(WEEKDAY(DATE(AnnéeCivile,9,13),1),\"[$-40c]aaa\")","v":"jeu."},{"$f":"TEXT(WEEKDAY(DATE(AnnéeCivile,9,14),1),\"[$-40c]aaa\")","v":"ven."},{"$f":"TEXT(WEEKDAY(DATE(AnnéeCivile,9,15),1),\"[$-40c]aaa\")","v":"sam."},{"$f":"TEXT(WEEKDAY(DATE(AnnéeCivile,9,16),1),\"[$-40c]aaa\")","v":"dim."},{"$f":"TEXT(WEEKDAY(DATE(AnnéeCivile,9,17),1),\"[$-40c]aaa\")","v":"lun."},{"$f":"TEXT(WEEKDAY(DATE(AnnéeCivile,9,18),1),\"[$-40c]aaa\")","v":"mar."},{"$f":"TEXT(WEEKDAY(DATE(AnnéeCivile,9,19),1),\"[$-40c]aaa\")","v":"mer."},{"$f":"TEXT(WEEKDAY(DATE(AnnéeCivile,9,20),1),\"[$-40c]aaa\")","v":"jeu."},{"$f":"TEXT(WEEKDAY(DATE(AnnéeCivile,9,21),1),\"[$-40c]aaa\")","v":"ven."},{"$f":"TEXT(WEEKDAY(DATE(AnnéeCivile,9,22),1),\"[$-40c]aaa\")","v":"sam."},{"$f":"TEXT(WEEKDAY(DATE(AnnéeCivile,9,23),1),\"[$-40c]aaa\")","v":"dim."},{"$f":"TEXT(WEEKDAY(DATE(AnnéeCivile,9,24),1),\"[$-40c]aaa\")","v":"lun."},{"$f":"TEXT(WEEKDAY(DATE(AnnéeCivile,9,25),1),\"[$-40c]aaa\")","v":"mar."},{"$f":"TEXT(WEEKDAY(DATE(AnnéeCivile,9,26),1),\"[$-40c]aaa\")","v":"mer."},{"$f":"TEXT(WEEKDAY(DATE(AnnéeCivile,9,27),1),\"[$-40c]aaa\")","v":"jeu."},{"$f":"TEXT(WEEKDAY(DATE(AnnéeCivile,9,28),1),\"[$-40c]aaa\")","v":"ven."},{"$f":"TEXT(WEEKDAY(DATE(AnnéeCivile,9,29),1),\"[$-40c]aaa\")","v":"sam."},{"$f":"TEXT(WEEKDAY(DATE(AnnéeCivile,9,30),1),\"[$-40c]aaa\")","v":"dim."},null,"Total"]
[null,"Référence","Nom de l’élève","1","2","3","4","5","6","7","8","9","10","11","12","13","14","15","16","17","18","19","20","21","22","23","24","25","26","27","28","29","30"," ","R","E","N1","P","Jours d’absence"]
[null,null,{"$f":"IFERROR(VLOOKUP(ParticipationSeptembre[[#This Row],[Référence]],ListeÉtudiants[],18,FALSE),\"\")","v":""},{"$nulls":31},{"$f":"COUNTIF(ParticipationSeptembre[[#This Row],[1]:[ ]],Code1)","v":0},{"$f":"COUNTIF(ParticipationSeptembre[[#This Row],[1]:[ ]],Code2)","v":0},{"$f":"COUNTIF(ParticipationSeptembre[[#This Row],[1]:[ ]],Code3)","v":0},{"$f":"COUNTIF(ParticipationSeptembre[[#This Row],[1]:[ ]],Code4)","v":0},{"$f":"SUM(ParticipationSeptembre[[#This Row],[E]:[N1]])","v":0}]
[null,null,{"$f":"IFERROR(VLOOKUP(ParticipationSeptembre[[#This Row],[Référence]],ListeÉtudiants[],18,FALSE),\"\")","v":""},{"$nulls":31},{"$f":"COUNTIF(ParticipationSeptembre[[#This Row],[1]:[ ]],Code1)","v":0},{"$f":"COUNTIF(ParticipationSeptembre[[#This Row],[1]:[ ]],Code2)","v":0},{"$f":"COUNTIF(ParticipationSeptembre[[#This Row],[1]:[ ]],Code3)","v":0},{"$f":"COUNTIF(ParticipationSeptembre[[#This Row],[1]:[ ]],Code4)","v":0},{"$f":"SUM(ParticipationSeptembre[[#This Row],[E]:[N1]])","v":0}]
[null,null,{"$f":"IFERROR(VLOOKUP(ParticipationSeptembre[[#This Row],[Référence]],ListeÉtudiants[],18,FALSE),\"\")","v":""},{"$nulls":31},{"$f":"COUNTIF(ParticipationSeptembre[[#This Row],[1]:[ ]],Code1)","v":0},{"$f":"COUNTIF(ParticipationSeptembre[[#This Row],[1]:[ ]],Code2)","v":0},{"$f":"COUNTIF(ParticipationSeptembre[[#This Row],[1]:[ ]],Code3)","v":0},{"$f":"COUNTIF(ParticipationSeptembre[[#This Row],[1]:[ ]],Code4)","v":0},{"$f":"SUM(ParticipationSeptembre[[#This Row],[E]:[N1]])","v":0}]
[null,null,{"$f":"IFERROR(VLOOKUP(ParticipationSeptembre[[#This Row],[Référence]],ListeÉtudiants[],18,FALSE),\"\")","v":""},{"$nulls":31},{"$f":"COUNTIF(ParticipationSeptembre[[#This Row],[1]:[ ]],Code1)","v":0},{"$f":"COUNTIF(ParticipationSeptembre[[#This Row],[1]:[ ]],Code2)","v":0},{"$f":"COUNTIF(ParticipationSeptembre[[#This Row],[1]:[ ]],Code3)","v":0},{"$f":"COUNTIF(ParticipationSeptembre[[#This Row],[1]:[ ]],Code4)","v":0},{"$f":"SUM(ParticipationSeptembre[[#This Row],[E]:[N1]])","v":0}]
[null,null,{"$f":"IFERROR(VLOOKUP(ParticipationSeptembre[[#This Row],[Référence]],ListeÉtudiants[],18,FALSE),\"\")","v":""},{"$nulls":31},{"$f":"COUNTIF(ParticipationSeptembre[[#This Row],[1]:[ ]],Code1)","v":0},{"$f":"COUNTIF(ParticipationSeptembre[[#This Row],[1]:[ ]],Code2)","v":0},{"$f":"COUNTIF(ParticipationSeptembre[[#This Row],[1]:[ ]],Code3)","v":0},{"$f":"COUNTIF(ParticipationSeptembre[[#This Row],[1]:[ ]],Code4)","v":0},{"$f":"SUM(ParticipationSeptembre[[#This Row],[E]:[N1]])","v":0}]
[null,null,"Jours d’absence (total)",{"$f":"COUNTIF(ParticipationSeptembre[1],\"N1\")+COUNTIF(ParticipationSeptembre[1],\"E\")","v":0},{"$f":"COUNTIF(ParticipationSeptembre[2],\"N1\")+COUNTIF(ParticipationSeptembre[2],\"E\")","v":0},{"$f":"COUNTIF(ParticipationSeptembre[3],\"N1\")+COUNTIF(ParticipationSeptembre[3],\"E\")","v":0},{"$f":"COUNTIF(ParticipationSeptembre[4],\"N1\")+COUNTIF(ParticipationSeptembre[4],\"E\")","v":0},{"$f":"COUNTIF(ParticipationSeptembre[5],\"N1\")+COUNTIF(ParticipationSeptembre[5],\"E\")","v":0},{"$f":"COUNTIF(ParticipationSeptembre[6],\"N1\")+COUNTIF(ParticipationSeptembre[6],\"E\")","v":0},{"$f":"COUNTIF(ParticipationSeptembre[7],\"N1\")+COUNTIF(ParticipationSeptembre[7],\"E\")","v":0},{"$f":"COUNTIF(ParticipationSeptembre[8],\"N1\")+COUNTIF(ParticipationSeptembre[8],\"E\")","v":0},{"$f":"COUNTIF(ParticipationSeptembre[9],\"N1\")+COUNTIF(ParticipationSeptembre[9],\"E\")","v":0},{"$f":"COUNTIF(ParticipationSeptembre[10],\"N1\")+COUNTIF(ParticipationSeptembre[10],\"E\")","v":0},{"$f":"COUNTIF(ParticipationSeptembre[11],\"N1\")+COUNTIF(ParticipationSeptembre[11],\"E\")","v":0},{"$f":"COUNTIF(ParticipationSeptembre[12],\"N1\")+COUNTIF(ParticipationSeptembre[12],\"E\")","v":0},{"$f":"COUNTIF(ParticipationSeptembre[13],\"N1\")+COUNTIF(ParticipationSeptembre[13],\"E\")","v":0},{"$f":"COUNTIF(ParticipationSeptembre[14],\"N1\")+COUNTIF(ParticipationSeptembre[14],\"E\")","v":0},{"$f":"COUNTIF(ParticipationSeptembre[15],\"N1\")+COUNTIF(ParticipationSeptembre[15],\"E\")","v":0},{"$f":"COUNTIF(ParticipationSeptembre[16],\"N1\")+COUNTIF(ParticipationSeptembre[16],\"E\")","v":0},{"$f":"COUNTIF(ParticipationSeptembre[17],\"N1\")+COUNTIF(ParticipationSeptembre[17],\"E\")","v":0},{"$f":"COUNTIF(ParticipationSeptembre[18],\"N1\")+COUNTIF(ParticipationSeptembre[18],\"E\")","v":0},{"$f":"COUNTIF(ParticipationSeptembre[19],\"N1\")+COUNTIF(ParticipationSeptembre[19],\"E\")","v":0},{"$f":"COUNTIF(ParticipationSeptembre[20],\"N1\")+COUNTIF(ParticipationSeptembre[20],\"E\")","v":0},{"$f":"COUNTIF(ParticipationSeptembre[21],\"N1\")+COUNTIF(ParticipationSeptembre[21],\"E\")","v":0},{"$f":"COUNTIF(ParticipationSeptembre[22],\"N1\")+COUNTIF(ParticipationSeptembre[22],\"E\")","v":0},{"$f":"COUNTIF(ParticipationSeptembre[23],\"N1\")+COUNTIF(ParticipationSeptembre[23],\"E\")","v":0},{"$f":"COUNTIF(ParticipationSeptembre[24],\"N1\")+COUNTIF(ParticipationSeptembre[24],\"E\")","v":0},{"$f":"COUNTIF(ParticipationSeptembre[25],\"N1\")+COUNTIF(ParticipationSeptembre[25],\"E\")","v":0},{"$f":"COUNTIF(ParticipationSeptembre[26],\"N1\")+COUNTIF(ParticipationSeptembre[26],\"E\")","v":0},{"$f":"COUNTIF(ParticipationSeptembre[27],\"N1\")+COUNTIF(ParticipationSeptembre[27],\"E\")","v":0},{"$f":"COUNTIF(ParticipationSeptembre[28],\"N1\")+COUNTIF(ParticipationSeptembre[28],\"E\")","v":0},{"$f":"COUNTIF(ParticipationSeptembre[29],\"N1\")+COUNTIF(ParticipationSeptembre[29],\"E\")","v":0},{"$f":"COUNTIF(ParticipationSeptembre[30],\"N1\")+COUNTIF(ParticipationSeptembre[30],\"E\")","v":0},{"$f":"COUNTIF(ParticipationSeptembre[[ ]],\"N1\")+COUNTIF(ParticipationSeptembre[[ ]],\"E\")","v":0},{"$f":"SUBTOTAL(109,ParticipationSeptembre[R])","v":0},{"$f":"SUBTOTAL(109,ParticipationSeptembre[E])","v":0},{"$f":"SUBTOTAL(109,ParticipationSeptembre[N1])","v":0},{"$f":"SUBTOTAL(109,ParticipationSeptembre[P])","v":0}]

{"sheet":"Octobre","index":4,"n_rows":12,"n_cols":39,"rows_kept":12,"merged":[[4,34,4,38]]}
["FICHE DE PRÉSENCE SCOLAIRE",{"$nulls":36},"Début de l’année scolaire :",{"$f":"AnnéeCivile","v":2012}]
[]
[null,null,{"$f":"TexteCléDeCouleur","v":"CODE DE COULEURS "},{"$f":"Code1","v":"R"},{"$f":"TexteCode1","v":"en retard"},null,null,{"$f":"Code2","v":"E"},{"$f":"TexteCode2","v":"excusé"},null,null,{"$f":"Code3","v":"N1"},{"$f":"TexteCode3","v":"non excusé"},null,null,{"$f":"Code4","v":"P"},{"$f":"TexteCode4","v":"présent"},null,null,{"$f":"Code5","v":"N"},{"$f":"TexteCode5","v":"école fermée"}]
[]
[null,{"$f":"DATE(AnnéeCivile,10,1)","v":"2012-10-01"},null,{"$f":"TEXT(WEEKDAY(DATE(AnnéeCivile,10,1),1),\"[$-40c]aaa\")","v":"lun."},{"$f":"TEXT(WEEKDAY(DATE(AnnéeCivile,10,2),1),\"[$-40c]aaa\")","v":"mar."},{"$f":"TEXT(WEEKDAY(DATE(AnnéeCivile,10,3),1),\"[$-40c]aaa\")","v":"mer."},{"$f":"TEXT(WEEKDAY(DATE(AnnéeCivile,10,4),1),\"[$-40c]aaa\")","v":"jeu."},{"$f":"TEXT(WEEKDAY(DATE(AnnéeCivile,10,5),1),\"[$-40c]aaa\")","v":"ven."},{"$f":"TEXT(WEEKDAY(DATE(AnnéeCivile,10,6),1),\"[$-40c]aaa\")","v":"sam."},{"$f":"TEXT(WEEKDAY(DATE(AnnéeCivile,10,7),1),\"[$-40c]aaa\")","v":"dim."},{"$f":"TEXT(WEEKDAY(DATE(AnnéeCivile,10,8),1),\"[$-40c]aaa\")","v":"lun."},{"$f":"TEXT(WEEKDAY(DATE(AnnéeCivile,10,9),1),\"[$-40c]aaa\")","v":"mar."},{"$f":"TEXT(WEEKDAY(DATE(AnnéeCivile,10,10),1),\"[$-40c]aaa\")","v":"mer."},{"$f":"TEXT(WEEKDAY(DATE(AnnéeCivile,10,11),1),\"[$-40c]aaa\")","v":"jeu."},{"$f":"TEXT(WEEKDAY(DATE(AnnéeCivile,10,12),1),\"[$-40c]aaa\")","v":"ven."},{"$f":"TEXT(WEEKDAY(DATE(AnnéeCivile,10,13),1),\"[$-40c]aaa\")","v":"sam."},{"$f":"TEXT(WEEKDAY(DATE(AnnéeCivile,10,14),1),\"[$-40c]aaa\")","v":"dim."},{"$f":"TEXT(WEEKDAY(DATE(AnnéeCivile,10,15),1),\"[$-40c]aaa\")","v":"lun."},{"$f":"TEXT(WEEKDAY(DATE(AnnéeCivile,10,16),1),\"[$-40c]aaa\")","v":"mar."},{"$f":"TEXT(WEEKDAY(DATE(AnnéeCivile,10,17),1),\"[$-40c]aaa\")","v":"mer."},{"$f":"TEXT(WEEKDAY(DATE(AnnéeCivile,10,18),1),\"[$-40c]aaa\")","v":"jeu."},{"$f":"TEXT(WEEKDAY(DATE(AnnéeCivile,10,19),1),\"[$-40c]aaa\")","v":"ven."},{"$f":"TEXT(WEEKDAY(DATE(AnnéeCivile,10,20),1),\"[$-40c]aaa\")","v":"sam."},{"$f":"TEXT(WEEKDAY(DATE(AnnéeCivile,10,21),1),\"[$-40c]aaa\")","v":"dim."},{"$f":"TEXT(WEEKDAY(DATE(AnnéeCivile,10,22),1),\"[$-40c]aaa\")","v":"lun."},{"$f":"TEXT(WEEKDAY(DATE(AnnéeCivile,10,23),1),\"[$-40c]aaa\")","v":"mar."},{"$f":"TEXT(WEEKDAY(DATE(AnnéeCivile,10,24),1),\"[$-40c]aaa\")","v":"mer."},{"$f":"TEXT(WEEKDAY(DATE(AnnéeCivile,10,25),1),\"[$-40c]aaa\")","v":"jeu."},{"$f":"TEXT(WEEKDAY(DATE(AnnéeCivile,10,26),1),\"[$-40c]aaa\")","v":"ven."},{"$f":"TEXT(WEEKDAY(DATE(AnnéeCivile,10,27),1),\"[$-40c]aaa\")","v":"sam."},{"$f":"TEXT(WEEKDAY(DATE(AnnéeCivile,10,28),1),\"[$-40c]aaa\")","v":"dim."},{"$f":"TEXT(WEEKDAY(DATE(AnnéeCivile,10,29),1),\"[$-40c]aaa\")","v":"lun."},{"$f":"TEXT(WEEKDAY(DATE(AnnéeCivile,10,30),1),\"[$-40c]aaa\")","v":"mar."},{"$f":"TEXT(WEEKDAY(DATE(AnnéeCivile,10,31),1),\"[$-40c]aaa\")","v":"mer."},"Total"]
[null,"Référence","Nom de l’élève","1","2","3","4","5","6","7","8","9","10","11","12","13","14","15","16","17","18","19","20","21","22","23","24","25","26","27","28","29","30","31","R","E","N1","P","Jours d’absence"]
[null,null,{"$f":"IFERROR(VLOOKUP(ParticipationOctobre[[#This Row],[Référence]],ListeÉtudiants[],18,FALSE),\"\")","v":""},{"$nulls":31},{"$f":"COUNTIF(ParticipationOctobre[[#This Row],[1]:[31]],Code1)","v":0},{"$f":"COUNTIF(ParticipationOctobre[[#This Row],[1]:[31]],Code2)","v":0},{"$f":"COUNTIF(ParticipationOctobre[[#This Row],[1]:[31]],Code3)","v":0},{"$f":"COUNTIF(ParticipationOctobre[[#This Row],[1]:[31]],Code4)","v":0},{"$f":"SUM(ParticipationOctobre[[#This Row],[E]:[N1]])","v":0}]
[null,null,{"$f":"IFERROR(VLOOKUP(ParticipationOctobre[[#This Row],[Référence]],ListeÉtudiants[],18,FALSE),\"\")","v":""},{"$nulls":31},{"$f":"COUNTIF(ParticipationOctobre[[#This Row],[1]:[31]],Code1)","v":0},{"$f":"COUNTIF(ParticipationOctobre[[#This Row],[1]:[31]],Code2)","v":0},{"$f":"COUNTIF(ParticipationOctobre[[#This Row],[1]:[31]],Code3)","v":0},{"$f":"COUNTIF(ParticipationOctobre[[#This Row],[1]:[31]],Code4)","v":0},{"$f":"SUM(ParticipationOctobre[[#This Row],[E]:[N1]])","v":0}]
[null,null,{"$f":"IFERROR(VLOOKUP(ParticipationOctobre[[#This Row],[Référence]],ListeÉtudiants[],18,FALSE),\"\")","v":""},{"$nulls":31},{"$f":"COUNTIF(ParticipationOctobre[[#This Row],[1]:[31]],Code1)","v":0},{"$f":"COUNTIF(ParticipationOctobre[[#This Row],[1]:[31]],Code2)","v":0},{"$f":"COUNTIF(ParticipationOctobre[[#This Row],[1]:[31]],Code3)","v":0},{"$f":"COUNTIF(ParticipationOctobre[[#This Row],[1]:[31]],Code4)","v":0},{"$f":"SUM(ParticipationOctobre[[#This Row],[E]:[N1]])","v":0}]
[null,null,{"$f":"IFERROR(VLOOKUP(ParticipationOctobre[[#This Row],[Référence]],ListeÉtudiants[],18,FALSE),\"\")","v":""},{"$nulls":31},{"$f":"COUNTIF(ParticipationOctobre[[#This Row],[1]:[31]],Code1)","v":0},{"$f":"COUNTIF(ParticipationOctobre[[#This Row],[1]:[31]],Code2)","v":0},{"$f":"COUNTIF(ParticipationOctobre[[#This Row],[1]:[31]],Code3)","v":0},{"$f":"COUNTIF(ParticipationOctobre[[#This Row],[1]:[31]],Code4)","v":0},{"$f":"SUM(ParticipationOctobre[[#This Row],[E]:[N1]])","v":0}]
[null,null,{"$f":"IFERROR(VLOOKUP(ParticipationOctobre[[#This Row],[Référence]],ListeÉtudiants[],18,FALSE),\"\")","v":""},{"$nulls":31},{"$f":"COUNTIF(ParticipationOctobre[[#This Row],[1]:[31]],Code1)","v":0},{"$f":"COUNTIF(ParticipationOctobre[[#This Row],[1]:[31]],Code2)","v":0},{"$f":"COUNTIF(ParticipationOctobre[[#This Row],[1]:[31]],Code3)","v":0},{"$f":"COUNTIF(ParticipationOctobre[[#This Row],[1]:[31]],Code4)","v":0},{"$f":"SUM(ParticipationOctobre[[#This Row],[E]:[N1]])","v":0}]
[null,null,"Jours d’absence (total)",{"$f":"COUNTIF(ParticipationOctobre[1],\"N1\")+COUNTIF(ParticipationOctobre[1],\"E\")","v":0},{"$f":"COUNTIF(ParticipationOctobre[2],\"N1\")+COUNTIF(ParticipationOctobre[2],\"E\")","v":0},{"$f":"COUNTIF(ParticipationOctobre[3],\"N1\")+COUNTIF(ParticipationOctobre[3],\"E\")","v":0},{"$f":"COUNTIF(ParticipationOctobre[4],\"N1\")+COUNTIF(ParticipationOctobre[4],\"E\")","v":0},{"$f":"COUNTIF(ParticipationOctobre[5],\"N1\")+COUNTIF(ParticipationOctobre[5],\"E\")","v":0},{"$f":"COUNTIF(ParticipationOctobre[6],\"N1\")+COUNTIF(ParticipationOctobre[6],\"E\")","v":0},{"$f":"COUNTIF(ParticipationOctobre[7],\"N1\")+COUNTIF(ParticipationOctobre[7],\"E\")","v":0},{"$f":"COUNTIF(ParticipationOctobre[8],\"N1\")+COUNTIF(ParticipationOctobre[8],\"E\")","v":0},{"$f":"COUNTIF(ParticipationOctobre[9],\"N1\")+COUNTIF(ParticipationOctobre[9],\"E\")","v":0},{"$f":"COUNTIF(ParticipationOctobre[10],\"N1\")+COUNTIF(ParticipationOctobre[10],\"E\")","v":0},{"$f":"COUNTIF(ParticipationOctobre[11],\"N1\")+COUNTIF(ParticipationOctobre[11],\"E\")","v":0},{"$f":"COUNTIF(ParticipationOctobre[12],\"N1\")+COUNTIF(ParticipationOctobre[12],\"E\")","v":0},{"$f":"COUNTIF(ParticipationOctobre[13],\"N1\")+COUNTIF(ParticipationOctobre[13],\"E\")","v":0},{"$f":"COUNTIF(ParticipationOctobre[14],\"N1\")+COUNTIF(ParticipationOctobre[14],\"E\")","v":0},{"$f":"COUNTIF(ParticipationOctobre[15],\"N1\")+COUNTIF(ParticipationOctobre[15],\"E\")","v":0},{"$f":"COUNTIF(ParticipationOctobre[16],\"N1\")+COUNTIF(ParticipationOctobre[16],\"E\")","v":0},{"$f":"COUNTIF(ParticipationOctobre[17],\"N1\")+COUNTIF(ParticipationOctobre[17],\"E\")","v":0},{"$f":"COUNTIF(ParticipationOctobre[18],\"N1\")+COUNTIF(ParticipationOctobre[18],\"E\")","v":0},{"$f":"COUNTIF(ParticipationOctobre[19],\"N1\")+COUNTIF(ParticipationOctobre[19],\"E\")","v":0},{"$f":"COUNTIF(ParticipationOctobre[20],\"N1\")+COUNTIF(ParticipationOctobre[20],\"E\")","v":0},{"$f":"COUNTIF(ParticipationOctobre[21],\"N1\")+COUNTIF(ParticipationOctobre[21],\"E\")","v":0},{"$f":"COUNTIF(ParticipationOctobre[22],\"N1\")+COUNTIF(ParticipationOctobre[22],\"E\")","v":0},{"$f":"COUNTIF(ParticipationOctobre[23],\"N1\")+COUNTIF(ParticipationOctobre[23],\"E\")","v":0},{"$f":"COUNTIF(ParticipationOctobre[24],\"N1\")+COUNTIF(ParticipationOctobre[24],\"E\")","v":0},{"$f":"COUNTIF(ParticipationOctobre[25],\"N1\")+COUNTIF(ParticipationOctobre[25],\"E\")","v":0},{"$f":"COUNTIF(ParticipationOctobre[26],\"N1\")+COUNTIF(ParticipationOctobre[26],\"E\")","v":0},{"$f":"COUNTIF(ParticipationOctobre[27],\"N1\")+COUNTIF(ParticipationOctobre[27],\"E\")","v":0},{"$f":"COUNTIF(ParticipationOctobre[28],\"N1\")+COUNTIF(ParticipationOctobre[28],\"E\")","v":0},{"$f":"COUNTIF(ParticipationOctobre[29],\"N1\")+COUNTIF(ParticipationOctobre[29],\"E\")","v":0},{"$f":"COUNTIF(ParticipationOctobre[30],\"N1\")+COUNTIF(ParticipationOctobre[30],\"E\")","v":0},{"$f":"COUNTIF(ParticipationOctobre[31],\"N1\")+COUNTIF(ParticipationOctobre[31],\"E\")","v":0},{"$f":"SUBTOTAL(109,ParticipationOctobre[R])","v":0},{"$f":"SUBTOTAL(109,ParticipationOctobre[E])","v":0},{"$f":"SUBTOTAL(109,ParticipationOctobre[N1])","v":0},{"$f":"SUBTOTAL(109,ParticipationOctobre[P])","v":0},{"$f":"SUBTOTAL(109,ParticipationOctobre[Jours d’absence])","v":0}]

{"sheet":"Novembre","index":5,"n_rows":12,"n_cols":39,"rows_kept":12,"merged":[[4,34,4,38]]}
["FICHE DE PRÉSENCE SCOLAIRE",{"$nulls":36},"Début de l’année scolaire :",{"$f":"AnnéeCivile","v":2012}]
[]
[null,null,{"$f":"TexteCléDeCouleur","v":"CODE DE COULEURS "},{"$f":"Code1","v":"R"},{"$f":"TexteCode1","v":"en retard"},null,null,{"$f":"Code2","v":"E"},{"$f":"TexteCode2","v":"excusé"},null,null,{"$f":"Code3","v":"N1"},{"$f":"TexteCode3","v":"non excusé"},null,null,{"$f":"Code4","v":"P"},{"$f":"TexteCode4","v":"présent"},null,null,{"$f":"Code5","v":"N"},{"$f":"TexteCode5","v":"école fermée"}]
[]
[null,{"$f":"DATE(AnnéeCivile,11,1)","v":"2012-11-01"},null,{"$f":"TEXT(WEEKDAY(DATE(AnnéeCivile,11,1),1),\"[$-40c]aaa\")","v":"jeu."},{"$f":"TEXT(WEEKDAY(DATE(AnnéeCivile,11,2),1),\"[$-40c]aaa\")","v":"ven."},{"$f":"TEXT(WEEKDAY(DATE(AnnéeCivile,11,3),1),\"[$-40c]aaa\")","v":"sam."},{"$f":"TEXT(WEEKDAY(DATE(AnnéeCivile,11,4),1),\"[$-40c]aaa\")","v":"dim."},{"$f":"TEXT(WEEKDAY(DATE(AnnéeCivile,11,5),1),\"[$-40c]aaa\")","v":"lun."},{"$f":"TEXT(WEEKDAY(DATE(AnnéeCivile,11,6),1),\"[$-40c]aaa\")","v":"mar."},{"$f":"TEXT(WEEKDAY(DATE(AnnéeCivile,11,7),1),\"[$-40c]aaa\")","v":"mer."},{"$f":"TEXT(WEEKDAY(DATE(AnnéeCivile,11,8),1),\"[$-40c]aaa\")","v":"jeu."},{"$f":"TEXT(WEEKDAY(DATE(AnnéeCivile,11,9),1),\"[$-40c]aaa\")","v":"ven."},{"$f":"TEXT(WEEKDAY(DATE(AnnéeCivile,11,10),1),\"[$-40c]aaa\")","v":"sam."},{"$f":"TEXT(WEEKDAY(DATE(AnnéeCivile,11,11),1),\"[$-40c]aaa\")","v":"dim."},{"$f":"TEXT(WEEKDAY(DATE(AnnéeCivile,11,12),1),\"[$-40c]aaa\")","v":"lun."},{"$f":"TEXT(WEEKDAY(DATE(AnnéeCivile,11,13),1),\"[$-40c]aaa\")","v":"mar."},{"$f":"TEXT(WEEKDAY(DATE(AnnéeCivile,11,14),1),\"[$-40c]aaa\")","v":"mer."},{"$f":"TEXT(WEEKDAY(DATE(AnnéeCivile,11,15),1),\"[$-40c]aaa\")","v":"jeu."},{"$f":"TEXT(WEEKDAY(DATE(AnnéeCivile,11,16),1),\"[$-40c]aaa\")","v":"ven."},{"$f":"TEXT(WEEKDAY(DATE(AnnéeCivile,11,17),1),\"[$-40c]aaa\")","v":"sam."},{"$f":"TEXT(WEEKDAY(DATE(AnnéeCivile,11,18),1),\"[$-40c]aaa\")","v":"dim."},{"$f":"TEXT(WEEKDAY(DATE(AnnéeCivile,11,19),1),\"[$-40c]aaa\")","v":"lun."},{"$f":"TEXT(WEEKDAY(DATE(AnnéeCivile,11,20),1),\"[$-40c]aaa\")","v":"mar."},{"$f":"TEXT(WEEKDAY(DATE(AnnéeCivile,11,21),1),\"[$-40c]aaa\")","v":"mer."},{"$f":"TEXT(WEEKDAY(DATE(AnnéeCivile,11,22),1),\"[$-40c]aaa\")","v":"jeu."},{"$f":"TEXT(WEEKDAY(DATE(AnnéeCivile,11,23),1),\"[$-40c]aaa\")","v":"ven."},{"$f":"TEXT(WEEKDAY(DATE(AnnéeCivile,11,24),1),\"[$-40c]aaa\")","v":"sam."},{"$f":"TEXT(WEEKDAY(DATE(AnnéeCivile,11,25),1),\"[$-40c]aaa\")","v":"dim."},{"$f":"TEXT(WEEKDAY(DATE(AnnéeCivile,11,26),1),\"[$-40c]aaa\")","v":"lun."},{"$f":"TEXT(WEEKDAY(DATE(AnnéeCivile,11,27),1),\"[$-40c]aaa\")","v":"mar."},{"$f":"TEXT(WEEKDAY(DATE(AnnéeCivile,11,28),1),\"[$-40c]aaa\")","v":"mer."},{"$f":"TEXT(WEEKDAY(DATE(AnnéeCivile,11,29),1),\"[$-40c]aaa\")","v":"jeu."},{"$f":"TEXT(WEEKDAY(DATE(AnnéeCivile,11,30),1),\"[$-40c]aaa\")","v":"ven."},null,"Total"]
[null,"Référence","Nom de l’élève","1","2","3","4","5","6","7","8","9","10","11","12","13","14","15","16","17","18","19","20","21","22","23","24","25","26","27","28","29","30"," ","R","E","N1","P","Jours d’absence"]
[null,null,{"$f":"IFERROR(VLOOKUP(ParticipationNovembre[[#This Row],[Référence]],ListeÉtudiants[],18,FALSE),\"\")","v":""},{"$nulls":31},{"$f":"COUNTIF(ParticipationNovembre[[#This Row],[1]:[ ]],Code1)","v":0},{"$f":"COUNTIF(ParticipationNovembre[[#This Row],[1]:[ ]],Code2)","v":0},{"$f":"COUNTIF(ParticipationNovembre[[#This Row],[1]:[ ]],Code3)","v":0},{"$f":"COUNTIF(ParticipationNovembre[[#This Row],[1]:[ ]],Code4)","v":0},{"$f":"SUM(ParticipationNovembre[[#This Row],[E]:[N1]])","v":0}]
[null,null,{"$f":"IFERROR(VLOOKUP(ParticipationNovembre[[#This Row],[Référence]],ListeÉtudiants[],18,FALSE),\"\")","v":""},{"$nulls":31},{"$f":"COUNTIF(ParticipationNovembre[[#This Row],[1]:[ ]],Code1)","v":0},{"$f":"COUNTIF(ParticipationNovembre[[#This Row],[1]:[ ]],Code2)","v":0},{"$f":"COUNTIF(ParticipationNovembre[[#This Row],[1]:[ ]],Code3)","v":0},{"$f":"COUNTIF(ParticipationNovembre[[#This Row],[1]:[ ]],Code4)","v":0},{"$f":"SUM(ParticipationNovembre[[#This Row],[E]:[N1]])","v":0}]
[null,null,{"$f":"IFERROR(VLOOKUP(ParticipationNovembre[[#This Row],[Référence]],ListeÉtudiants[],18,FALSE),\"\")","v":""},{"$nulls":31},{"$f":"COUNTIF(ParticipationNovembre[[#This Row],[1]:[ ]],Code1)","v":0},{"$f":"COUNTIF(ParticipationNovembre[[#This Row],[1]:[ ]],Code2)","v":0},{"$f":"COUNTIF(ParticipationNovembre[[#This Row],[1]:[ ]],Code3)","v":0},{"$f":"COUNTIF(ParticipationNovembre[[#This Row],[1]:[ ]],Code4)","v":0},{"$f":"SUM(ParticipationNovembre[[#This Row],[E]:[N1]])","v":0}]
[null,null,{"$f":"IFERROR(VLOOKUP(ParticipationNovembre[[#This Row],[Référence]],ListeÉtudiants[],18,FALSE),\"\")","v":""},{"$nulls":31},{"$f":"COUNTIF(ParticipationNovembre[[#This Row],[1]:[ ]],Code1)","v":0},{"$f":"COUNTIF(ParticipationNovembre[[#This Row],[1]:[ ]],Code2)","v":0},{"$f":"COUNTIF(ParticipationNovembre[[#This Row],[1]:[ ]],Code3)","v":0},{"$f":"COUNTIF(ParticipationNovembre[[#This Row],[1]:[ ]],Code4)","v":0},{"$f":"SUM(ParticipationNovembre[[#This Row],[E]:[N1]])","v":0}]
[null,null,{"$f":"IFERROR(VLOOKUP(ParticipationNovembre[[#This Row],[Référence]],ListeÉtudiants[],18,FALSE),\"\")","v":""},{"$nulls":31},{"$f":"COUNTIF(ParticipationNovembre[[#This Row],[1]:[ ]],Code1)","v":0},{"$f":"COUNTIF(ParticipationNovembre[[#This Row],[1]:[ ]],Code2)","v":0},{"$f":"COUNTIF(ParticipationNovembre[[#This Row],[1]:[ ]],Code3)","v":0},{"$f":"COUNTIF(ParticipationNovembre[[#This Row],[1]:[ ]],Code4)","v":0},{"$f":"SUM(ParticipationNovembre[[#This Row],[E]:[N1]])","v":0}]
[null,null,"Jours d’absence (total)",{"$f":"COUNTIF(ParticipationNovembre[1],\"N1\")+COUNTIF(ParticipationNovembre[1],\"E\")","v":0},{"$f":"COUNTIF(ParticipationNovembre[2],\"N1\")+COUNTIF(ParticipationNovembre[2],\"E\")","v":0},{"$f":"COUNTIF(ParticipationNovembre[3],\"N1\")+COUNTIF(ParticipationNovembre[3],\"E\")","v":0},{"$f":"COUNTIF(ParticipationNovembre[4],\"N1\")+COUNTIF(ParticipationNovembre[4],\"E\")","v":0},{"$f":"COUNTIF(ParticipationNovembre[5],\"N1\")+COUNTIF(ParticipationNovembre[5],\"E\")","v":0},{"$f":"COUNTIF(ParticipationNovembre[6],\"N1\")+COUNTIF(ParticipationNovembre[6],\"E\")","v":0},{"$f":"COUNTIF(ParticipationNovembre[7],\"N1\")+COUNTIF(ParticipationNovembre[7],\"E\")","v":0},{"$f":"COUNTIF(ParticipationNovembre[8],\"N1\")+COUNTIF(ParticipationNovembre[8],\"E\")","v":0},{"$f":"COUNTIF(ParticipationNovembre[9],\"N1\")+COUNTIF(ParticipationNovembre[9],\"E\")","v":0},{"$f":"COUNTIF(ParticipationNovembre[10],\"N1\")+COUNTIF(ParticipationNovembre[10],\"E\")","v":0},{"$f":"COUNTIF(ParticipationNovembre[11],\"N1\")+COUNTIF(ParticipationNovembre[11],\"E\")","v":0},{"$f":"COUNTIF(ParticipationNovembre[12],\"N1\")+COUNTIF(ParticipationNovembre[12],\"E\")","v":0},{"$f":"COUNTIF(ParticipationNovembre[13],\"N1\")+COUNTIF(ParticipationNovembre[13],\"E\")","v":0},{"$f":"COUNTIF(ParticipationNovembre[14],\"N1\")+COUNTIF(ParticipationNovembre[14],\"E\")","v":0},{"$f":"COUNTIF(ParticipationNovembre[15],\"N1\")+COUNTIF(ParticipationNovembre[15],\"E\")","v":0},{"$f":"COUNTIF(ParticipationNovembre[16],\"N1\")+COUNTIF(ParticipationNovembre[16],\"E\")","v":0},{"$f":"COUNTIF(ParticipationNovembre[17],\"N1\")+COUNTIF(ParticipationNovembre[17],\"E\")","v":0},{"$f":"COUNTIF(ParticipationNovembre[18],\"N1\")+COUNTIF(ParticipationNovembre[18],\"E\")","v":0},{"$f":"COUNTIF(ParticipationNovembre[19],\"N1\")+COUNTIF(ParticipationNovembre[19],\"E\")","v":0},{"$f":"COUNTIF(ParticipationNovembre[20],\"N1\")+COUNTIF(ParticipationNovembre[20],\"E\")","v":0},{"$f":"COUNTIF(ParticipationNovembre[21],\"N1\")+COUNTIF(ParticipationNovembre[21],\"E\")","v":0},{"$f":"COUNTIF(ParticipationNovembre[22],\"N1\")+COUNTIF(ParticipationNovembre[22],\"E\")","v":0},{"$f":"COUNTIF(ParticipationNovembre[23],\"N1\")+COUNTIF(ParticipationNovembre[23],\"E\")","v":0},{"$f":"COUNTIF(ParticipationNovembre[24],\"N1\")+COUNTIF(ParticipationNovembre[24],\"E\")","v":0},{"$f":"COUNTIF(ParticipationNovembre[25],\"N1\")+COUNTIF(ParticipationNovembre[25],\"E\")","v":0},{"$f":"COUNTIF(ParticipationNovembre[26],\"N1\")+COUNTIF(ParticipationNovembre[26],\"E\")","v":0},{"$f":"COUNTIF(ParticipationNovembre[27],\"N1\")+COUNTIF(ParticipationNovembre[27],\"E\")","v":0},{"$f":"COUNTIF(ParticipationNovembre[28],\"N1\")+COUNTIF(ParticipationNovembre[28],\"E\")","v":0},{"$f":"COUNTIF(ParticipationNovembre[29],\"N1\")+COUNTIF(ParticipationNovembre[29],\"E\")","v":0},{"$f":"COUNTIF(ParticipationNovembre[30],\"N1\")+COUNTIF(ParticipationNovembre[30],\"E\")","v":0},{"$f":"COUNTIF(ParticipationNovembre[[ ]],\"N1\")+COUNTIF(ParticipationNovembre[[ ]],\"E\")","v":0},{"$f":"SUBTOTAL(109,ParticipationNovembre[R])","v":0},{"$f":"SUBTOTAL(109,ParticipationNovembre[E])","v":0},{"$f":"SUBTOTAL(109,ParticipationNovembre[N1])","v":0},{"$f":"SUBTOTAL(109,ParticipationNovembre[P])","v":0},{"$f":"SUBTOTAL(109,ParticipationNovembre[Jours d’absence])","v":0}]

{"sheet":"Décembre","index":6,"n_rows":12,"n_cols":39,"rows_kept":12,"merged":[[4,34,4,38]]}
["FICHE DE PRÉSENCE SCOLAIRE",{"$nulls":36},"Début de l’année scolaire :",{"$f":"AnnéeCivile","v":2012}]
[]
[null,null,{"$f":"TexteCléDeCouleur","v":"CODE DE COULEURS "},{"$f":"Code1","v":"R"},{"$f":"TexteCode1","v":"en retard"},null,null,{"$f":"Code2","v":"E"},{"$f":"TexteCode2","v":"excusé"},null,null,{"$f":"Code3","v":"N1"},{"$f":"TexteCode3","v":"non excusé"},null,null,{"$f":"Code4","v":"P"},{"$f":"TexteCode4","v":"présent"},null,null,{"$f":"Code5","v":"N"},{"$f":"TexteCode5","v":"école fermée"}]
[]
[null,{"$f":"DATE(AnnéeCivile,12,1)","v":"2012-12-01"},null,{"$f":"TEXT(WEEKDAY(DATE(AnnéeCivile,12,1),1),\"[$-40c]aaa\")","v":"sam."},{"$f":"TEXT(WEEKDAY(DATE(AnnéeCivile,12,2),1),\"[$-40c]aaa\")","v":"dim."},{"$f":"TEXT(WEEKDAY(DATE(AnnéeCivile,12,3),1),\"[$-40c]aaa\")","v":"lun."},{"$f":"TEXT(WEEKDAY(DATE(AnnéeCivile,12,4),1),\"[$-40c]aaa\")","v":"mar."},{"$f":"TEXT(WEEKDAY(DATE(AnnéeCivile,12,5),1),\"[$-40c]aaa\")","v":"mer."},{"$f":"TEXT(WEEKDAY(DATE(AnnéeCivile,12,6),1),\"[$-40c]aaa\")","v":"jeu."},{"$f":"TEXT(WEEKDAY(DATE(AnnéeCivile,12,7),1),\"[$-40c]aaa\")","v":"ven."},{"$f":"TEXT(WEEKDAY(DATE(AnnéeCivile,12,8),1),\"[$-40c]aaa\")","v":"sam."},{"$f":"TEXT(WEEKDAY(DATE(AnnéeCivile,12,9),1),\"[$-40c]aaa\")","v":"dim."},{"$f":"TEXT(WEEKDAY(DATE(AnnéeCivile,12,10),1),\"[$-40c]aaa\")","v":"lun."},{"$f":"TEXT(WEEKDAY(DATE(AnnéeCivile,12,11),1),\"[$-40c]aaa\")","v":"mar."},{"$f":"TEXT(WEEKDAY(DATE(AnnéeCivile,12,12),1),\"[$-40c]aaa\")","v":"mer."},{"$f":"TEXT(WEEKDAY(DATE(AnnéeCivile,12,13),1),\"[$-40c]aaa\")","v":"jeu."},{"$f":"TEXT(WEEKDAY(DATE(AnnéeCivile,12,14),1),\"[$-40c]aaa\")","v":"ven."},{"$f":"TEXT(WEEKDAY(DATE(AnnéeCivile,12,15),1),\"[$-40c]aaa\")","v":"sam."},{"$f":"TEXT(WEEKDAY(DATE(AnnéeCivile,12,16),1),\"[$-40c]aaa\")","v":"dim."},{"$f":"TEXT(WEEKDAY(DATE(AnnéeCivile,12,17),1),\"[$-40c]aaa\")","v":"lun."},{"$f":"TEXT(WEEKDAY(DATE(AnnéeCivile,12,18),1),\"[$-40c]aaa\")","v":"mar."},{"$f":"TEXT(WEEKDAY(DATE(AnnéeCivile,12,19),1),\"[$-40c]aaa\")","v":"mer."},{"$f":"TEXT(WEEKDAY(DATE(AnnéeCivile,12,20),1),\"[$-40c]aaa\")","v":"jeu."},{"$f":"TEXT(WEEKDAY(DATE(AnnéeCivile,12,21),1),\"[$-40c]aaa\")","v":"ven."},{"$f":"TEXT(WEEKDAY(DATE(AnnéeCivile,12,22),1),\"[$-40c]aaa\")","v":"sam."},{"$f":"TEXT(WEEKDAY(DATE(AnnéeCivile,12,23),1),\"[$-40c]aaa\")","v":"dim."},{"$f":"TEXT(WEEKDAY(DATE(AnnéeCivile,12,24),1),\"[$-40c]aaa\")","v":"lun."},{"$f":"TEXT(WEEKDAY(DATE(AnnéeCivile,12,25),1),\"[$-40c]aaa\")","v":"mar."},{"$f":"TEXT(WEEKDAY(DATE(AnnéeCivile,12,26),1),\"[$-40c]aaa\")","v":"mer."},{"$f":"TEXT(WEEKDAY(DATE(AnnéeCivile,12,27),1),\"[$-40c]aaa\")","v":"jeu."},{"$f":"TEXT(WEEKDAY(DATE(AnnéeCivile,12,28),1),\"[$-40c]aaa\")","v":"ven."},{"$f":"TEXT(WEEKDAY(DATE(AnnéeCivile,12,29),1),\"[$-40c]aaa\")","v":"sam."},{"$f":"TEXT(WEEKDAY(DATE(AnnéeCivile,12,30),1),\"[$-40c]aaa\")","v":"dim."},{"$f":"TEXT(WEEKDAY(DATE(AnnéeCivile,12,31),1),\"[$-40c]aaa\")","v":"lun."},"Total"]
[null,"Référence","Nom de l’élève","1","2","3","4","5","6","7","8","9","10","11","12","13","14","15","16","17","18","19","20","21","22","23","24","25","26","27","28","29","30","31","R","E","N1","P","Jours d’absence"]
[null,null,{"$f":"IFERROR(VLOOKUP(ParticipationDécembre[[#This Row],[Référence]],ListeÉtudiants[],18,FALSE),\"\")","v":""},{"$nulls":31},{"$f":"COUNTIF(ParticipationDécembre[[#This Row],[1]:[31]],Code1)","v":0},{"$f":"COUNTIF(ParticipationDécembre[[#This Row],[1]:[31]],Code2)","v":0},{"$f":"COUNTIF(ParticipationDécembre[[#This Row],[1]:[31]],Code3)","v":0},{"$f":"COUNTIF(ParticipationDécembre[[#This Row],[1]:[31]],Code4)","v":0},{"$f":"SUM(ParticipationDécembre[[#This Row],[E]:[N1]])","v":0}]
[null,null,{"$f":"IFERROR(VLOOKUP(ParticipationDécembre[[#This Row],[Référence]],ListeÉtudiants[],18,FALSE),\"\")","v":""},{"$nulls":31},{"$f":"COUNTIF(ParticipationDécembre[[#This Row],[1]:[31]],Code1)","v":0},{"$f":"COUNTIF(ParticipationDécembre[[#This Row],[1]:[31]],Code2)","v":0},{"$f":"COUNTIF(ParticipationDécembre[[#This Row],[1]:[31]],Code3)","v":0},{"$f":"COUNTIF(ParticipationDécembre[[#This Row],[1]:[31]],Code4)","v":0},{"$f":"SUM(ParticipationDécembre[[#This Row],[E]:[N1]])","v":0}]
[null,null,{"$f":"IFERROR(VLOOKUP(ParticipationDécembre[[#This Row],[Référence]],ListeÉtudiants[],18,FALSE),\"\")","v":""},{"$nulls":31},{"$f":"COUNTIF(ParticipationDécembre[[#This Row],[1]:[31]],Code1)","v":0},{"$f":"COUNTIF(ParticipationDécembre[[#This Row],[1]:[31]],Code2)","v":0},{"$f":"COUNTIF(ParticipationDécembre[[#This Row],[1]:[31]],Code3)","v":0},{"$f":"COUNTIF(ParticipationDécembre[[#This Row],[1]:[31]],Code4)","v":0},{"$f":"SUM(ParticipationDécembre[[#This Row],[E]:[N1]])","v":0}]
[null,null,{"$f":"IFERROR(VLOOKUP(ParticipationDécembre[[#This Row],[Référence]],ListeÉtudiants[],18,FALSE),\"\")","v":""},{"$nulls":31},{"$f":"COUNTIF(ParticipationDécembre[[#This Row],[1]:[31]],Code1)","v":0},{"$f":"COUNTIF(ParticipationDécembre[[#This Row],[1]:[31]],Code2)","v":0},{"$f":"COUNTIF(ParticipationDécembre[[#This Row],[1]:[31]],Code3)","v":0},{"$f":"COUNTIF(ParticipationDécembre[[#This Row],[1]:[31]],Code4)","v":0},{"$f":"SUM(ParticipationDécembre[[#This Row],[E]:[N1]])","v":0}]
[null,null,{"$f":"IFERROR(VLOOKUP(ParticipationDécembre[[#This Row],[Référence]],ListeÉtudiants[],18,FALSE),\"\")","v":""},{"$nulls":31},{"$f":"COUNTIF(ParticipationDécembre[[#This Row],[1]:[31]],Code1)","v":0},{"$f":"COUNTIF(ParticipationDécembre[[#This Row],[1]:[31]],Code2)","v":0},{"$f":"COUNTIF(ParticipationDécembre[[#This Row],[1]:[31]],Code3)","v":0},{"$f":"COUNTIF(ParticipationDécembre[[#This Row],[1]:[31]],Code4)","v":0},{"$f":"SUM(ParticipationDécembre[[#This Row],[E]:[N1]])","v":0}]
[null,null,"Jours d’absence (total)",{"$f":"COUNTIF(ParticipationDécembre[1],\"N1\")+COUNTIF(ParticipationDécembre[1],\"E\")","v":0},{"$f":"COUNTIF(ParticipationDécembre[2],\"N1\")+COUNTIF(ParticipationDécembre[2],\"E\")","v":0},{"$f":"COUNTIF(ParticipationDécembre[3],\"N1\")+COUNTIF(ParticipationDécembre[3],\"E\")","v":0},{"$f":"COUNTIF(ParticipationDécembre[4],\"N1\")+COUNTIF(ParticipationDécembre[4],\"E\")","v":0},{"$f":"COUNTIF(ParticipationDécembre[5],\"N1\")+COUNTIF(ParticipationDécembre[5],\"E\")","v":0},{"$f":"COUNTIF(ParticipationDécembre[6],\"N1\")+COUNTIF(ParticipationDécembre[6],\"E\")","v":0},{"$f":"COUNTIF(ParticipationDécembre[7],\"N1\")+COUNTIF(ParticipationDécembre[7],\"E\")","v":0},{"$f":"COUNTIF(ParticipationDécembre[8],\"N1\")+COUNTIF(ParticipationDécembre[8],\"E\")","v":0},{"$f":"COUNTIF(ParticipationDécembre[9],\"N1\")+COUNTIF(ParticipationDécembre[9],\"E\")","v":0},{"$f":"COUNTIF(ParticipationDécembre[10],\"N1\")+COUNTIF(ParticipationDécembre[10],\"E\")","v":0},{"$f":"COUNTIF(ParticipationDécembre[11],\"N1\")+COUNTIF(ParticipationDécembre[11],\"E\")","v":0},{"$f":"COUNTIF(ParticipationDécembre[12],\"N1\")+COUNTIF(ParticipationDécembre[12],\"E\")","v":0},{"$f":"COUNTIF(ParticipationDécembre[13],\"N1\")+COUNTIF(ParticipationDécembre[13],\"E\")","v":0},{"$f":"COUNTIF(ParticipationDécembre[14],\"N1\")+COUNTIF(ParticipationDécembre[14],\"E\")","v":0},{"$f":"COUNTIF(ParticipationDécembre[15],\"N1\")+COUNTIF(ParticipationDécembre[15],\"E\")","v":0},{"$f":"COUNTIF(ParticipationDécembre[16],\"N1\")+COUNTIF(ParticipationDécembre[16],\"E\")","v":0},{"$f":"COUNTIF(ParticipationDécembre[17],\"N1\")+COUNTIF(ParticipationDécembre[17],\"E\")","v":0},{"$f":"COUNTIF(ParticipationDécembre[18],\"N1\")+COUNTIF(ParticipationDécembre[18],\"E\")","v":0},{"$f":"COUNTIF(ParticipationDécembre[19],\"N1\")+COUNTIF(ParticipationDécembre[19],\"E\")","v":0},{"$f":"COUNTIF(ParticipationDécembre[20],\"N1\")+COUNTIF(ParticipationDécembre[20],\"E\")","v":0},{"$f":"COUNTIF(ParticipationDécembre[21],\"N1\")+COUNTIF(ParticipationDécembre[21],\"E\")","v":0},{"$f":"COUNTIF(ParticipationDécembre[22],\"N1\")+COUNTIF(ParticipationDécembre[22],\"E\")","v":0},{"$f":"COUNTIF(ParticipationDécembre[23],\"N1\")+COUNTIF(ParticipationDécembre[23],\"E\")","v":0},{"$f":"COUNTIF(ParticipationDécembre[24],\"N1\")+COUNTIF(ParticipationDécembre[24],\"E\")","v":0},{"$f":"COUNTIF(ParticipationDécembre[25],\"N1\")+COUNTIF(ParticipationDécembre[25],\"E\")","v":0},{"$f":"COUNTIF(ParticipationDécembre[26],\"N1\")+COUNTIF(ParticipationDécembre[26],\"E\")","v":0},{"$f":"COUNTIF(ParticipationDécembre[27],\"N1\")+COUNTIF(ParticipationDécembre[27],\"E\")","v":0},{"$f":"COUNTIF(ParticipationDécembre[28],\"N1\")+COUNTIF(ParticipationDécembre[28],\"E\")","v":0},{"$f":"COUNTIF(ParticipationDécembre[29],\"N1\")+COUNTIF(ParticipationDécembre[29],\"E\")","v":0},{"$f":"COUNTIF(ParticipationDécembre[30],\"N1\")+COUNTIF(ParticipationDécembre[30],\"E\")","v":0},{"$f":"COUNTIF(ParticipationDécembre[31],\"N1\")+COUNTIF(ParticipationDécembre[31],\"E\")","v":0},{"$f":"SUBTOTAL(109,ParticipationDécembre[R])","v":0},{"$f":"SUBTOTAL(109,ParticipationDécembre[E])","v":0},{"$f":"SUBTOTAL(109,ParticipationDécembre[N1])","v":0},{"$f":"SUBTOTAL(109,ParticipationDécembre[P])","v":0},{"$f":"SUBTOTAL(109,ParticipationDécembre[Jours d’absence])","v":0}]

{"sheet":"Janvier","index":7,"n_rows":12,"n_cols":39,"rows_kept":12,"merged":[[4,34,4,38]]}
["FICHE DE PRÉSENCE SCOLAIRE",{"$nulls":36},"Début de l’année scolaire :",{"$f":"AnnéeCivile","v":2012}]
[]
[null,null,{"$f":"TexteCléDeCouleur","v":"CODE DE COULEURS "},{"$f":"Code1","v":"R"},{"$f":"TexteCode1","v":"en retard"},null,null,{"$f":"Code2","v":"E"},{"$f":"TexteCode2","v":"excusé"},null,null,{"$f":"Code3","v":"N1"},{"$f":"TexteCode3","v":"non excusé"},null,null,{"$f":"Code4","v":"P"},{"$f":"TexteCode4","v":"présent"},null,null,{"$f":"Code5","v":"N"},{"$f":"TexteCode5","v":"école fermée"}]
[]
[null,{"$f":"DATE(AnnéeCivile+1,1,1)","v":"2013-01-01"},null,{"$f":"TEXT(WEEKDAY(DATE(AnnéeCivile+1,1,1),1),\"[$-40c]aaa\")","v":"mar."},{"$f":"TEXT(WEEKDAY(DATE(AnnéeCivile+1,1,2),1),\"[$-40c]aaa\")","v":"mer."},{"$f":"TEXT(WEEKDAY(DATE(AnnéeCivile+1,1,3),1),\"[$-40c]aaa\")","v":"jeu."},{"$f":"TEXT(WEEKDAY(DATE(AnnéeCivile+1,1,4),1),\"[$-40c]aaa\")","v":"ven."},{"$f":"TEXT(WEEKDAY(DATE(AnnéeCivile+1,1,5),1),\"[$-40c]aaa\")","v":"sam."},{"$f":"TEXT(WEEKDAY(DATE(AnnéeCivile+1,1,6),1),\"[$-40c]aaa\")","v":"dim."},{"$f":"TEXT(WEEKDAY(DATE(AnnéeCivile+1,1,7),1),\"[$-40c]aaa\")","v":"lun."},{"$f":"TEXT(WEEKDAY(DATE(AnnéeCivile+1,1,8),1),\"[$-40c]aaa\")","v":"mar."},{"$f":"TEXT(WEEKDAY(DATE(AnnéeCivile+1,1,9),1),\"[$-40c]aaa\")","v":"mer."},{"$f":"TEXT(WEEKDAY(DATE(AnnéeCivile+1,1,10),1),\"[$-40c]aaa\")","v":"jeu."},{"$f":"TEXT(WEEKDAY(DATE(AnnéeCivile+1,1,11),1),\"[$-40c]aaa\")","v":"ven."},{"$f":"TEXT(WEEKDAY(DATE(AnnéeCivile+1,1,12),1),\"[$-40c]aaa\")","v":"sam."},{"$f":"TEXT(WEEKDAY(DATE(AnnéeCivile+1,1,13),1),\"[$-40c]aaa\")","v":"dim."},{"$f":"TEXT(WEEKDAY(DATE(AnnéeCivile+1,1,14),1),\"[$-40c]aaa\")","v":"lun."},{"$f":"TEXT(WEEKDAY(DATE(AnnéeCivile+1,1,15),1),\"[$-40c]aaa\")","v":"mar."},{"$f":"TEXT(WEEKDAY(DATE(AnnéeCivile+1,1,16),1),\"[$-40c]aaa\")","v":"mer."},{"$f":"TEXT(WEEKDAY(DATE(AnnéeCivile+1,1,17),1),\"[$-40c]aaa\")","v":"jeu."},{"$f":"TEXT(WEEKDAY(DATE(AnnéeCivile+1,1,18),1),\"[$-40c]aaa\")","v":"ven."},{"$f":"TEXT(WEEKDAY(DATE(AnnéeCivile+1,1,19),1),\"[$-40c]aaa\")","v":"sam."},{"$f":"TEXT(WEEKDAY(DATE(AnnéeCivile+1,1,20),1),\"[$-40c]aaa\")","v":"dim."},{"$f":"TEXT(WEEKDAY(DATE(AnnéeCivile+1,1,21),1),\"[$-40c]aaa\")","v":"lun."},{"$f":"TEXT(WEEKDAY(DATE(AnnéeCivile+1,1,22),1),\"[$-40c]aaa\")","v":"mar."},{"$f":"TEXT(WEEKDAY(DATE(AnnéeCivile+1,1,23),1),\"[$-40c]aaa\")","v":"mer."},{"$f":"TEXT(WEEKDAY(DATE(AnnéeCivile+1,1,24),1),\"[$-40c]aaa\")","v":"jeu."},{"$f":"TEXT(WEEKDAY(DATE(AnnéeCivile+1,1,25),1),\"[$-40c]aaa\")","v":"ven."},{"$f":"TEXT(WEEKDAY(DATE(AnnéeCivile+1,1,26),1),\"[$-40c]aaa\")","v":"sam."},{"$f":"TEXT(WEEKDAY(DATE(AnnéeCivile+1,1,27),1),\"[$-40c]aaa\")","v":"dim."},{"$f":"TEXT(WEEKDAY(DATE(AnnéeCivile+1,1,28),1),\"[$-40c]aaa\")","v":"lun."},{"$f":"TEXT(WEEKDAY(DATE(AnnéeCivile+1,1,29),1),\"[$-40c]aaa\")","v":"mar."},{"$f":"TEXT(WEEKDAY(DATE(AnnéeCivile+1,1,30),1),\"[$-40c]aaa\")","v":"mer."},{"$f":"TEXT(WEEKDAY(DATE(AnnéeCivile+1,1,31),1),\"[$-40c]aaa\")","v":"jeu."},"Total"]
[null,"Référence","Nom de l’élève","1","2","3","4","5","6","7","8","9","10","11","12","13","14","15","16","17","18","19","20","21","22","23","24","25","26","27","28","29","30","31","R","E","N1","P","Jours d’absence"]
[null,null,{"$f":"IFERROR(VLOOKUP(ParticipationJanvier[[#This Row],[Référence]],ListeÉtudiants[],18,FALSE),\"\")","v":""},{"$nulls":31},{"$f":"COUNTIF(ParticipationJanvier[[#This Row],[1]:[31]],Code1)","v":0},{"$f":"COUNTIF(ParticipationJanvier[[#This Row],[1]:[31]],Code2)","v":0},{"$f":"COUNTIF(ParticipationJanvier[[#This Row],[1]:[31]],Code3)","v":0},{"$f":"COUNTIF(ParticipationJanvier[[#This Row],[1]:[31]],Code4)","v":0},{"$f":"SUM(ParticipationJanvier[[#This Row],[E]:[N1]])","v":0}]
[null,null,{"$f":"IFERROR(VLOOKUP(ParticipationJanvier[[#This Row],[Référence]],ListeÉtudiants[],18,FALSE),\"\")","v":""},{"$nulls":31},{"$f":"COUNTIF(ParticipationJanvier[[#This Row],[1]:[31]],Code1)","v":0},{"$f":"COUNTIF(ParticipationJanvier[[#This Row],[1]:[31]],Code2)","v":0},{"$f":"COUNTIF(ParticipationJanvier[[#This Row],[1]:[31]],Code3)","v":0},{"$f":"COUNTIF(ParticipationJanvier[[#This Row],[1]:[31]],Code4)","v":0},{"$f":"SUM(ParticipationJanvier[[#This Row],[E]:[N1]])","v":0}]
[null,null,{"$f":"IFERROR(VLOOKUP(ParticipationJanvier[[#This Row],[Référence]],ListeÉtudiants[],18,FALSE),\"\")","v":""},{"$nulls":31},{"$f":"COUNTIF(ParticipationJanvier[[#This Row],[1]:[31]],Code1)","v":0},{"$f":"COUNTIF(ParticipationJanvier[[#This Row],[1]:[31]],Code2)","v":0},{"$f":"COUNTIF(ParticipationJanvier[[#This Row],[1]:[31]],Code3)","v":0},{"$f":"COUNTIF(ParticipationJanvier[[#This Row],[1]:[31]],Code4)","v":0},{"$f":"SUM(ParticipationJanvier[[#This Row],[E]:[N1]])","v":0}]
[null,null,{"$f":"IFERROR(VLOOKUP(ParticipationJanvier[[#This Row],[Référence]],ListeÉtudiants[],18,FALSE),\"\")","v":""},{"$nulls":31},{"$f":"COUNTIF(ParticipationJanvier[[#This Row],[1]:[31]],Code1)","v":0},{"$f":"COUNTIF(ParticipationJanvier[[#This Row],[1]:[31]],Code2)","v":0},{"$f":"COUNTIF(ParticipationJanvier[[#This Row],[1]:[31]],Code3)","v":0},{"$f":"COUNTIF(ParticipationJanvier[[#This Row],[1]:[31]],Code4)","v":0},{"$f":"SUM(ParticipationJanvier[[#This Row],[E]:[N1]])","v":0}]
[null,null,{"$f":"IFERROR(VLOOKUP(ParticipationJanvier[[#This Row],[Référence]],ListeÉtudiants[],18,FALSE),\"\")","v":""},{"$nulls":31},{"$f":"COUNTIF(ParticipationJanvier[[#This Row],[1]:[31]],Code1)","v":0},{"$f":"COUNTIF(ParticipationJanvier[[#This Row],[1]:[31]],Code2)","v":0},{"$f":"COUNTIF(ParticipationJanvier[[#This Row],[1]:[31]],Code3)","v":0},{"$f":"COUNTIF(ParticipationJanvier[[#This Row],[1]:[31]],Code4)","v":0},{"$f":"SUM(ParticipationJanvier[[#This Row],[E]:[N1]])","v":0}]
[null,null,"Jours d’absence (total)",{"$f":"COUNTIF(ParticipationJanvier[1],\"N1\")+COUNTIF(ParticipationJanvier[1],\"E\")","v":0},{"$f":"COUNTIF(ParticipationJanvier[2],\"N1\")+COUNTIF(ParticipationJanvier[2],\"E\")","v":0},{"$f":"COUNTIF(ParticipationJanvier[3],\"N1\")+COUNTIF(ParticipationJanvier[3],\"E\")","v":0},{"$f":"COUNTIF(ParticipationJanvier[4],\"N1\")+COUNTIF(ParticipationJanvier[4],\"E\")","v":0},{"$f":"COUNTIF(ParticipationJanvier[5],\"N1\")+COUNTIF(ParticipationJanvier[5],\"E\")","v":0},{"$f":"COUNTIF(ParticipationJanvier[6],\"N1\")+COUNTIF(ParticipationJanvier[6],\"E\")","v":0},{"$f":"COUNTIF(ParticipationJanvier[7],\"N1\")+COUNTIF(ParticipationJanvier[7],\"E\")","v":0},{"$f":"COUNTIF(ParticipationJanvier[8],\"N1\")+COUNTIF(ParticipationJanvier[8],\"E\")","v":0},{"$f":"COUNTIF(ParticipationJanvier[9],\"N1\")+COUNTIF(ParticipationJanvier[9],\"E\")","v":0},{"$f":"COUNTIF(ParticipationJanvier[10],\"N1\")+COUNTIF(ParticipationJanvier[10],\"E\")","v":0},{"$f":"COUNTIF(ParticipationJanvier[11],\"N1\")+COUNTIF(ParticipationJanvier[11],\"E\")","v":0},{"$f":"COUNTIF(ParticipationJanvier[12],\"N1\")+COUNTIF(ParticipationJanvier[12],\"E\")","v":0},{"$f":"COUNTIF(ParticipationJanvier[13],\"N1\")+COUNTIF(ParticipationJanvier[13],\"E\")","v":0},{"$f":"COUNTIF(ParticipationJanvier[14],\"N1\")+COUNTIF(ParticipationJanvier[14],\"E\")","v":0},{"$f":"COUNTIF(ParticipationJanvier[15],\"N1\")+COUNTIF(ParticipationJanvier[15],\"E\")","v":0},{"$f":"COUNTIF(ParticipationJanvier[16],\"N1\")+COUNTIF(ParticipationJanvier[16],\"E\")","v":0},{"$f":"COUNTIF(ParticipationJanvier[17],\"N1\")+COUNTIF(ParticipationJanvier[17],\"E\")","v":0},{"$f":"COUNTIF(ParticipationJanvier[18],\"N1\")+COUNTIF(ParticipationJanvier[18],\"E\")","v":0},{"$f":"COUNTIF(ParticipationJanvier[19],\"N1\")+COUNTIF(ParticipationJanvier[19],\"E\")","v":0},{"$f":"COUNTIF(ParticipationJanvier[20],\"N1\")+COUNTIF(ParticipationJanvier[20],\"E\")","v":0},{"$f":"COUNTIF(ParticipationJanvier[21],\"N1\")+COUNTIF(ParticipationJanvier[21],\"E\")","v":0},{"$f":"COUNTIF(ParticipationJanvier[22],\"N1\")+COUNTIF(ParticipationJanvier[22],\"E\")","v":0},{"$f":"COUNTIF(ParticipationJanvier[23],\"N1\")+COUNTIF(ParticipationJanvier[23],\"E\")","v":0},{"$f":"COUNTIF(ParticipationJanvier[24],\"N1\")+COUNTIF(ParticipationJanvier[24],\"E\")","v":0},{"$f":"COUNTIF(ParticipationJanvier[25],\"N1\")+COUNTIF(ParticipationJanvier[25],\"E\")","v":0},{"$f":"COUNTIF(ParticipationJanvier[26],\"N1\")+COUNTIF(ParticipationJanvier[26],\"E\")","v":0},{"$f":"COUNTIF(ParticipationJanvier[27],\"N1\")+COUNTIF(ParticipationJanvier[27],\"E\")","v":0},{"$f":"COUNTIF(ParticipationJanvier[28],\"N1\")+COUNTIF(ParticipationJanvier[28],\"E\")","v":0},{"$f":"COUNTIF(ParticipationJanvier[29],\"N1\")+COUNTIF(ParticipationJanvier[29],\"E\")","v":0},{"$f":"COUNTIF(ParticipationJanvier[30],\"N1\")+COUNTIF(ParticipationJanvier[30],\"E\")","v":0},{"$f":"COUNTIF(ParticipationJanvier[31],\"N1\")+COUNTIF(ParticipationJanvier[31],\"E\")","v":0},{"$f":"SUBTOTAL(109,ParticipationJanvier[R])","v":0},{"$f":"SUBTOTAL(109,ParticipationJanvier[E])","v":0},{"$f":"SUBTOTAL(109,ParticipationJanvier[N1])","v":0},{"$f":"SUBTOTAL(109,ParticipationJanvier[P])","v":0},{"$f":"SUBTOTAL(109,ParticipationJanvier[Jours d’absence])","v":0}]

{"sheet":"Février","index":8,"n_rows":12,"n_cols":39,"rows_kept":12,"merged":[[4,34,4,38]]}
["FICHE DE PRÉSENCE SCOLAIRE",{"$nulls":36},"Début de l’année scolaire :",{"$f":"AnnéeCivile","v":2012}]
[]
[null,null,{"$f":"TexteCléDeCouleur","v":"CODE DE COULEURS "},{"$f":"Code1","v":"R"},{"$f":"TexteCode1","v":"en retard"},null,null,{"$f":"Code2","v":"E"},{"$f":"TexteCode2","v":"excusé"},null,null,{"$f":"Code3","v":"N1"},{"$f":"TexteCode3","v":"non excusé"},null,null,{"$f":"Code4","v":"P"},{"$f":"TexteCode4","v":"présent"},null,null,{"$f":"Code5","v":"N"},{"$f":"TexteCode5","v":"école fermée"}]
[]
[null,{"$f":"DATE(AnnéeCivile+1,2,1)","v":"2013-02-01"},null,{"$f":"TEXT(WEEKDAY(DATE(AnnéeCivile+1,2,1),1),\"[$-40c]aaa\")","v":"ven."},{"$f":"TEXT(WEEKDAY(DATE(AnnéeCivile+1,2,2),1),\"[$-40c]aaa\")","v":"sam."},{"$f":"TEXT(WEEKDAY(DATE(AnnéeCivile+1,2,3),1),\"[$-40c]aaa\")","v":"dim."},{"$f":"TEXT(WEEKDAY(DATE(AnnéeCivile+1,2,4),1),\"[$-40c]aaa\")","v":"lun."},{"$f":"TEXT(WEEKDAY(DATE(AnnéeCivile+1,2,5),1),\"[$-40c]aaa\")","v":"mar."},{"$f":"TEXT(WEEKDAY(DATE(AnnéeCivile+1,2,6),1),\"[$-40c]aaa\")","v":"mer."},{"$f":"TEXT(WEEKDAY(DATE(AnnéeCivile+1,2,7),1),\"[$-40c]aaa\")","v":"jeu."},{"$f":"TEXT(WEEKDAY(DATE(AnnéeCivile+1,2,8),1),\"[$-40c]aaa\")","v":"ven."},{"$f":"TEXT(WEEKDAY(DATE(AnnéeCivile+1,2,9),1),\"[$-40c]aaa\")","v":"sam."},{"$f":"TEXT(WEEKDAY(DATE(AnnéeCivile+1,2,10),1),\"[$-40c]aaa\")","v":"dim."},{"$f":"TEXT(WEEKDAY(DATE(AnnéeCivile+1,2,11),1),\"[$-40c]aaa\")","v":"lun."},{"$f":"TEXT(WEEKDAY(DATE(AnnéeCivile+1,2,12),1),\"[$-40c]aaa\")","v":"mar."},{"$f":"TEXT(WEEKDAY(DATE(AnnéeCivile+1,2,13),1),\"[$-40c]aaa\")","v":"mer."},{"$f":"TEXT(WEEKDAY(DATE(AnnéeCivile+1,2,14),1),\"[$-40c]aaa\")","v":"jeu."},{"$f":"TEXT(WEEKDAY(DATE(AnnéeCivile+1,2,15),1),\"[$-40c]aaa\")","v":"ven."},{"$f":"TEXT(WEEKDAY(DATE(AnnéeCivile+1,2,16),1),\"[$-40c]aaa\")","v":"sam."},{"$f":"TEXT(WEEKDAY(DATE(AnnéeCivile+1,2,17),1),\"[$-40c]aaa\")","v":"dim."},{"$f":"TEXT(WEEKDAY(DATE(AnnéeCivile+1,2,18),1),\"[$-40c]aaa\")","v":"lun."},{"$f":"TEXT(WEEKDAY(DATE(AnnéeCivile+1,2,19),1),\"[$-40c]aaa\")","v":"mar."},{"$f":"TEXT(WEEKDAY(DATE(AnnéeCivile+1,2,20),1),\"[$-40c]aaa\")","v":"mer."},{"$f":"TEXT(WEEKDAY(DATE(AnnéeCivile+1,2,21),1),\"[$-40c]aaa\")","v":"jeu."},{"$f":"TEXT(WEEKDAY(DATE(AnnéeCivile+1,2,22),1),\"[$-40c]aaa\")","v":"ven."},{"$f":"TEXT(WEEKDAY(DATE(AnnéeCivile+1,2,23),1),\"[$-40c]aaa\")","v":"sam."},{"$f":"TEXT(WEEKDAY(DATE(AnnéeCivile+1,2,24),1),\"[$-40c]aaa\")","v":"dim."},{"$f":"TEXT(WEEKDAY(DATE(AnnéeCivile+1,2,25),1),\"[$-40c]aaa\")","v":"lun."},{"$f":"TEXT(WEEKDAY(DATE(AnnéeCivile+1,2,26),1),\"[$-40c]aaa\")","v":"mar."},{"$f":"TEXT(WEEKDAY(DATE(AnnéeCivile+1,2,27),1),\"[$-40c]aaa\")","v":"mer."},{"$f":"TEXT(WEEKDAY(DATE(AnnéeCivile+1,2,28),1),\"[$-40c]aaa\")","v":"jeu."},{"$f":"TEXT(WEEKDAY(DATE(AnnéeCivile+1,2,29),1),\"[$-40c]aaa\")","v":"ven."},null,null,"Total"]
[null,"Référence","Nom de l’élève","1","2","3","4","5","6","7","8","9","10","11","12","13","14","15","16","17","18","19","20","21","22","23","24","25","26","27","28","29","30","31","R","E","N1","P","Jours d’absence"]
[null,null,{"$f":"IFERROR(VLOOKUP(ParticipationFévrier[[#This Row],[Référence]],ListeÉtudiants[],18,FALSE),\"\")","v":""},{"$nulls":31},{"$f":"COUNTIF(ParticipationFévrier[[#This Row],[1]:[31]],Code1)","v":0},{"$f":"COUNTIF(ParticipationFévrier[[#This Row],[1]:[31]],Code2)","v":0},{"$f":"COUNTIF(ParticipationFévrier[[#This Row],[1]:[31]],Code3)","v":0},{"$f":"COUNTIF(ParticipationFévrier[[#This Row],[1]:[31]],Code4)","v":0},{"$f":"SUM(ParticipationFévrier[[#This Row],[E]:[N1]])","v":0}]
[null,null,{"$f":"IFERROR(VLOOKUP(ParticipationFévrier[[#This Row],[Référence]],ListeÉtudiants[],18,FALSE),\"\")","v":""},{"$nulls":31},{"$f":"COUNTIF(ParticipationFévrier[[#This Row],[1]:[31]],Code1)","v":0},{"$f":"COUNTIF(ParticipationFévrier[[#This Row],[1]:[31]],Code2)","v":0},{"$f":"COUNTIF(ParticipationFévrier[[#This Row],[1]:[31]],Code3)","v":0},{"$f":"COUNTIF(ParticipationFévrier[[#This Row],[1]:[31]],Code4)","v":0},{"$f":"SUM(ParticipationFévrier[[#This Row],[E]:[N1]])","v":0}]
[null,null,{"$f":"IFERROR(VLOOKUP(ParticipationFévrier[[#This Row],[Référence]],ListeÉtudiants[],18,FALSE),\"\")","v":""},{"$nulls":31},{"$f":"COUNTIF(ParticipationFévrier[[#This Row],[1]:[31]],Code1)","v":0},{"$f":"COUNTIF(ParticipationFévrier[[#This Row],[1]:[31]],Code2)","v":0},{"$f":"COUNTIF(ParticipationFévrier[[#This Row],[1]:[31]],Code3)","v":0},{"$f":"COUNTIF(ParticipationFévrier[[#This Row],[1]:[31]],Code4)","v":0},{"$f":"SUM(ParticipationFévrier[[#This Row],[E]:[N1]])","v":0}]
[null,null,{"$f":"IFERROR(VLOOKUP(ParticipationFévrier[[#This Row],[Référence]],ListeÉtudiants[],18,FALSE),\"\")","v":""},{"$nulls":31},{"$f":"COUNTIF(ParticipationFévrier[[#This Row],[1]:[31]],Code1)","v":0},{"$f":"COUNTIF(ParticipationFévrier[[#This Row],[1]:[31]],Code2)","v":0},{"$f":"COUNTIF(ParticipationFévrier[[#This Row],[1]:[31]],Code3)","v":0},{"$f":"COUNTIF(ParticipationFévrier[[#This Row],[1]:[31]],Code4)","v":0},{"$f":"SUM(ParticipationFévrier[[#This Row],[E]:[N1]])","v":0}]
[null,null,{"$f":"IFERROR(VLOOKUP(ParticipationFévrier[[#This Row],[Référence]],ListeÉtudiants[],18,FALSE),\"\")","v":""},{"$nulls":31},{"$f":"COUNTIF(ParticipationFévrier[[#This Row],[1]:[31]],Code1)","v":0},{"$f":"COUNTIF(ParticipationFévrier[[#This Row],[1]:[31]],Code2)","v":0},{"$f":"COUNTIF(ParticipationFévrier[[#This Row],[1]:[31]],Code3)","v":0},{"$f":"COUNTIF(ParticipationFévrier[[#This Row],[1]:[31]],Code4)","v":0},{"$f":"SUM(ParticipationFévrier[[#This Row],[E]:[N1]])","v":0}]
[null,null,"Jours d’absence (total)",{"$f":"COUNTIF(ParticipationFévrier[1],\"N1\")+COUNTIF(ParticipationFévrier[1],\"E\")","v":0},{"$f":"COUNTIF(ParticipationFévrier[2],\"N1\")+COUNTIF(ParticipationFévrier[2],\"E\")","v":0},{"$f":"COUNTIF(ParticipationFévrier[3],\"N1\")+COUNTIF(ParticipationFévrier[3],\"E\")","v":0},{"$f":"COUNTIF(ParticipationFévrier[4],\"N1\")+COUNTIF(ParticipationFévrier[4],\"E\")","v":0},{"$f":"COUNTIF(ParticipationFévrier[5],\"N1\")+COUNTIF(ParticipationFévrier[5],\"E\")","v":0},{"$f":"COUNTIF(ParticipationFévrier[6],\"N1\")+COUNTIF(ParticipationFévrier[6],\"E\")","v":0},{"$f":"COUNTIF(ParticipationFévrier[7],\"N1\")+COUNTIF(ParticipationFévrier[7],\"E\")","v":0},{"$f":"COUNTIF(ParticipationFévrier[8],\"N1\")+COUNTIF(ParticipationFévrier[8],\"E\")","v":0},{"$f":"COUNTIF(ParticipationFévrier[9],\"N1\")+COUNTIF(ParticipationFévrier[9],\"E\")","v":0},{"$f":"COUNTIF(ParticipationFévrier[10],\"N1\")+COUNTIF(ParticipationFévrier[10],\"E\")","v":0},{"$f":"COUNTIF(ParticipationFévrier[11],\"N1\")+COUNTIF(ParticipationFévrier[11],\"E\")","v":0},{"$f":"COUNTIF(ParticipationFévrier[12],\"N1\")+COUNTIF(ParticipationFévrier[12],\"E\")","v":0},{"$f":"COUNTIF(ParticipationFévrier[13],\"N1\")+COUNTIF(ParticipationFévrier[13],\"E\")","v":0},{"$f":"COUNTIF(ParticipationFévrier[14],\"N1\")+COUNTIF(ParticipationFévrier[14],\"E\")","v":0},{"$f":"COUNTIF(ParticipationFévrier[15],\"N1\")+COUNTIF(ParticipationFévrier[15],\"E\")","v":0},{"$f":"COUNTIF(ParticipationFévrier[16],\"N1\")+COUNTIF(ParticipationFévrier[16],\"E\")","v":0},{"$f":"COUNTIF(ParticipationFévrier[17],\"N1\")+COUNTIF(ParticipationFévrier[17],\"E\")","v":0},{"$f":"COUNTIF(ParticipationFévrier[18],\"N1\")+COUNTIF(ParticipationFévrier[18],\"E\")","v":0},{"$f":"COUNTIF(ParticipationFévrier[19],\"N1\")+COUNTIF(ParticipationFévrier[19],\"E\")","v":0},{"$f":"COUNTIF(ParticipationFévrier[20],\"N1\")+COUNTIF(ParticipationFévrier[20],\"E\")","v":0},{"$f":"COUNTIF(ParticipationFévrier[21],\"N1\")+COUNTIF(ParticipationFévrier[21],\"E\")","v":0},{"$f":"COUNTIF(ParticipationFévrier[22],\"N1\")+COUNTIF(ParticipationFévrier[22],\"E\")","v":0},{"$f":"COUNTIF(ParticipationFévrier[23],\"N1\")+COUNTIF(ParticipationFévrier[23],\"E\")","v":0},{"$f":"COUNTIF(ParticipationFévrier[24],\"N1\")+COUNTIF(ParticipationFévrier[24],\"E\")","v":0},{"$f":"COUNTIF(ParticipationFévrier[25],\"N1\")+COUNTIF(ParticipationFévrier[25],\"E\")","v":0},{"$f":"COUNTIF(ParticipationFévrier[26],\"N1\")+COUNTIF(ParticipationFévrier[26],\"E\")","v":0},{"$f":"COUNTIF(ParticipationFévrier[27],\"N1\")+COUNTIF(ParticipationFévrier[27],\"E\")","v":0},{"$f":"COUNTIF(ParticipationFévrier[28],\"N1\")+COUNTIF(ParticipationFévrier[28],\"E\")","v":0},{"$f":"COUNTIF(ParticipationFévrier[29],\"N1\")+COUNTIF(ParticipationFévrier[29],\"E\")","v":0},{"$f":"COUNTIF(ParticipationFévrier[30],\"N1\")+COUNTIF(ParticipationFévrier[30],\"E\")","v":0},{"$f":"COUNTIF(ParticipationFévrier[31],\"N1\")+COUNTIF(ParticipationFévrier[31],\"E\")","v":0},{"$f":"SUBTOTAL(109,ParticipationFévrier[R])","v":0},{"$f":"SUBTOTAL(109,ParticipationFévrier[E])","v":0},{"$f":"SUBTOTAL(109,ParticipationFévrier[N1])","v":0},{"$f":"SUBTOTAL(109,ParticipationFévrier[P])","v":0},{"$f":"SUBTOTAL(109,ParticipationFévrier[Jours d’absence])","v":0}]

{"sheet":"Mars","index":9,"n_rows":12,"n_cols":39,"rows_kept":12,"merged":[[4,34,4,38]]}
["FICHE DE PRÉSENCE SCOLAIRE",{"$nulls":36},"Début de l’année scolaire :",{"$f":"AnnéeCivile","v":2012}]
[]
[null,null,{"$f":"TexteCléDeCouleur","v":"CODE DE COULEURS "},{"$f":"Code1","v":"R"},{"$f":"TexteCode1","v":"en retard"},null,null,{"$f":"Code2","v":"E"},{"$f":"TexteCode2","v":"excusé"},null,null,{"$f":"Code3","v":"N1"},{"$f":"TexteCode3","v":"non excusé"},null,null,{"$f":"Code4","v":"P"},{"$f":"TexteCode4","v":"présent"},null,null,{"$f":"Code5","v":"N"},{"$f":"TexteCode5","v":"école fermée"}]
[]
[null,{"$f":"DATE(AnnéeCivile+1,3,1)","v":"2013-03-01"},null,{"$f":"TEXT(WEEKDAY(DATE(AnnéeCivile+1,3,1),1),\"[$-40c]aaa\")","v":"ven."},{"$f":"TEXT(WEEKDAY(DATE(AnnéeCivile+1,3,2),1),\"[$-40c]aaa\")","v":"sam."},{"$f":"TEXT(WEEKDAY(DATE(AnnéeCivile+1,3,3),1),\"[$-40c]aaa\")","v":"dim."},{"$f":"TEXT(WEEKDAY(DATE(AnnéeCivile+1,3,4),1),\"[$-40c]aaa\")","v":"lun."},{"$f":"TEXT(WEEKDAY(DATE(AnnéeCivile+1,3,5),1),\"[$-40c]aaa\")","v":"mar."},{"$f":"TEXT(WEEKDAY(DATE(AnnéeCivile+1,3,6),1),\"[$-40c]aaa\")","v":"mer."},{"$f":"TEXT(WEEKDAY(DATE(AnnéeCivile+1,3,7),1),\"[$-40c]aaa\")","v":"jeu."},{"$f":"TEXT(WEEKDAY(DATE(AnnéeCivile+1,3,8),1),\"[$-40c]aaa\")","v":"ven."},{"$f":"TEXT(WEEKDAY(DATE(AnnéeCivile+1,3,9),1),\"[$-40c]aaa\")","v":"sam."},{"$f":"TEXT(WEEKDAY(DATE(AnnéeCivile+1,3,10),1),\"[$-40c]aaa\")","v":"dim."},{"$f":"TEXT(WEEKDAY(DATE(AnnéeCivile+1,3,11),1),\"[$-40c]aaa\")","v":"lun."},{"$f":"TEXT(WEEKDAY(DATE(AnnéeCivile+1,3,12),1),\"[$-40c]aaa\")","v":"mar."},{"$f":"TEXT(WEEKDAY(DATE(AnnéeCivile+1,3,13),1),\"[$-40c]aaa\")","v":"mer."},{"$f":"TEXT(WEEKDAY(DATE(AnnéeCivile+1,3,14),1),\"[$-40c]aaa\")","v":"jeu."},{"$f":"TEXT(WEEKDAY(DATE(AnnéeCivile+1,3,15),1),\"[$-40c]aaa\")","v":"ven."},{"$f":"TEXT(WEEKDAY(DATE(AnnéeCivile+1,3,16),1),\"[$-40c]aaa\")","v":"sam."},{"$f":"TEXT(WEEKDAY(DATE(AnnéeCivile+1,3,17),1),\"[$-40c]aaa\")","v":"dim."},{"$f":"TEXT(WEEKDAY(DATE(AnnéeCivile+1,3,18),1),\"[$-40c]aaa\")","v":"lun."},{"$f":"TEXT(WEEKDAY(DATE(AnnéeCivile+1,3,19),1),\"[$-40c]aaa\")","v":"mar."},{"$f":"TEXT(WEEKDAY(DATE(AnnéeCivile+1,3,20),1),\"[$-40c]aaa\")","v":"mer."},{"$f":"TEXT(WEEKDAY(DATE(AnnéeCivile+1,3,21),1),\"[$-40c]aaa\")","v":"jeu."},{"$f":"TEXT(WEEKDAY(DATE(AnnéeCivile+1,3,22),1),\"[$-40c]aaa\")","v":"ven."},{"$f":"TEXT(WEEKDAY(DATE(AnnéeCivile+1,3,23),1),\"[$-40c]aaa\")","v":"sam."},{"$f":"TEXT(WEEKDAY(DATE(AnnéeCivile+1,3,24),1),\"[$-40c]aaa\")","v":"dim."},{"$f":"TEXT(WEEKDAY(DATE(AnnéeCivile+1,3,25),1),\"[$-40c]aaa\")","v":"lun."},{"$f":"TEXT(WEEKDAY(DATE(AnnéeCivile+1,3,26),1),\"[$-40c]aaa\")","v":"mar."},{"$f":"TEXT(WEEKDAY(DATE(AnnéeCivile+1,3,27),1),\"[$-40c]aaa\")","v":"mer."},{"$f":"TEXT(WEEKDAY(DATE(AnnéeCivile+1,3,28),1),\"[$-40c]aaa\")","v":"jeu."},{"$f":"TEXT(WEEKDAY(DATE(AnnéeCivile+1,3,29),1),\"[$-40c]aaa\")","v":"ven."},{"$f":"TEXT(WEEKDAY(DATE(AnnéeCivile+1,3,30),1),\"[$-40c]aaa\")","v":"sam."},{"$f":"TEXT(WEEKDAY(DATE(AnnéeCivile+1,3,31),1),\"[$-40c]aaa\")","v":"dim."},"Total"]
[null,"Référence","Nom de l’élève","1","2","3","4","5","6","7","8","9","10","11","12","13","14","15","16","17","18","19","20","21","22","23","24","25","26","27","28","29","30","31","R","E","N1","P","Jours d’absence"]
[null,null,{"$f":"IFERROR(VLOOKUP(ParticipationMars[[#This Row],[Référence]],ListeÉtudiants[],18,FALSE),\"\")","v":""},{"$nulls":31},{"$f":"COUNTIF(ParticipationMars[[#This Row],[1]:[31]],Code1)","v":0},{"$f":"COUNTIF(ParticipationMars[[#This Row],[1]:[31]],Code2)","v":0},{"$f":"COUNTIF(ParticipationMars[[#This Row],[1]:[31]],Code3)","v":0},{"$f":"COUNTIF(ParticipationMars[[#This Row],[1]:[31]],Code4)","v":0},{"$f":"SUM(ParticipationMars[[#This Row],[E]:[N1]])","v":0}]
[null,null,{"$f":"IFERROR(VLOOKUP(ParticipationMars[[#This Row],[Référence]],ListeÉtudiants[],18,FALSE),\"\")","v":""},{"$nulls":31},{"$f":"COUNTIF(ParticipationMars[[#This Row],[1]:[31]],Code1)","v":0},{"$f":"COUNTIF(ParticipationMars[[#This Row],[1]:[31]],Code2)","v":0},{"$f":"COUNTIF(ParticipationMars[[#This Row],[1]:[31]],Code3)","v":0},{"$f":"COUNTIF(ParticipationMars[[#This Row],[1]:[31]],Code4)","v":0},{"$f":"SUM(ParticipationMars[[#This Row],[E]:[N1]])","v":0}]
[null,null,{"$f":"IFERROR(VLOOKUP(ParticipationMars[[#This Row],[Référence]],ListeÉtudiants[],18,FALSE),\"\")","v":""},{"$nulls":31},{"$f":"COUNTIF(ParticipationMars[[#This Row],[1]:[31]],Code1)","v":0},{"$f":"COUNTIF(ParticipationMars[[#This Row],[1]:[31]],Code2)","v":0},{"$f":"COUNTIF(ParticipationMars[[#This Row],[1]:[31]],Code3)","v":0},{"$f":"COUNTIF(ParticipationMars[[#This Row],[1]:[31]],Code4)","v":0},{"$f":"SUM(ParticipationMars[[#This Row],[E]:[N1]])","v":0}]
[null,null,{"$f":"IFERROR(VLOOKUP(ParticipationMars[[#This Row],[Référence]],ListeÉtudiants[],18,FALSE),\"\")","v":""},{"$nulls":31},{"$f":"COUNTIF(ParticipationMars[[#This Row],[1]:[31]],Code1)","v":0},{"$f":"COUNTIF(ParticipationMars[[#This Row],[1]:[31]],Code2)","v":0},{"$f":"COUNTIF(ParticipationMars[[#This Row],[1]:[31]],Code3)","v":0},{"$f":"COUNTIF(ParticipationMars[[#This Row],[1]:[31]],Code4)","v":0},{"$f":"SUM(ParticipationMars[[#This Row],[E]:[N1]])","v":0}]
[null,null,{"$f":"IFERROR(VLOOKUP(ParticipationMars[[#This Row],[Référence]],ListeÉtudiants[],18,FALSE),\"\")","v":""},{"$nulls":31},{"$f":"COUNTIF(ParticipationMars[[#This Row],[1]:[31]],Code1)","v":0},{"$f":"COUNTIF(ParticipationMars[[#This Row],[1]:[31]],Code2)","v":0},{"$f":"COUNTIF(ParticipationMars[[#This Row],[1]:[31]],Code3)","v":0},{"$f":"COUNTIF(ParticipationMars[[#This Row],[1]:[31]],Code4)","v":0},{"$f":"SUM(ParticipationMars[[#This Row],[E]:[N1]])","v":0}]
[null,null,"Jours d’absence (total)",{"$f":"COUNTIF(ParticipationMars[1],\"N1\")+COUNTIF(ParticipationMars[1],\"E\")","v":0},{"$f":"COUNTIF(ParticipationMars[2],\"N1\")+COUNTIF(ParticipationMars[2],\"E\")","v":0},{"$f":"COUNTIF(ParticipationMars[3],\"N1\")+COUNTIF(ParticipationMars[3],\"E\")","v":0},{"$f":"COUNTIF(ParticipationMars[4],\"N1\")+COUNTIF(ParticipationMars[4],\"E\")","v":0},{"$f":"COUNTIF(ParticipationMars[5],\"N1\")+COUNTIF(ParticipationMars[5],\"E\")","v":0},{"$f":"COUNTIF(ParticipationMars[6],\"N1\")+COUNTIF(ParticipationMars[6],\"E\")","v":0},{"$f":"COUNTIF(ParticipationMars[7],\"N1\")+COUNTIF(ParticipationMars[7],\"E\")","v":0},{"$f":"COUNTIF(ParticipationMars[8],\"N1\")+COUNTIF(ParticipationMars[8],\"E\")","v":0},{"$f":"COUNTIF(ParticipationMars[9],\"N1\")+COUNTIF(ParticipationMars[9],\"E\")","v":0},{"$f":"COUNTIF(ParticipationMars[10],\"N1\")+COUNTIF(ParticipationMars[10],\"E\")","v":0},{"$f":"COUNTIF(ParticipationMars[11],\"N1\")+COUNTIF(ParticipationMars[11],\"E\")","v":0},{"$f":"COUNTIF(ParticipationMars[12],\"N1\")+COUNTIF(ParticipationMars[12],\"E\")","v":0},{"$f":"COUNTIF(ParticipationMars[13],\"N1\")+COUNTIF(ParticipationMars[13],\"E\")","v":0},{"$f":"COUNTIF(ParticipationMars[14],\"N1\")+COUNTIF(ParticipationMars[14],\"E\")","v":0},{"$f":"COUNTIF(ParticipationMars[15],\"N1\")+COUNTIF(ParticipationMars[15],\"E\")","v":0},{"$f":"COUNTIF(ParticipationMars[16],\"N1\")+COUNTIF(ParticipationMars[16],\"E\")","v":0},{"$f":"COUNTIF(ParticipationMars[17],\"N1\")+COUNTIF(ParticipationMars[17],\"E\")","v":0},{"$f":"COUNTIF(ParticipationMars[18],\"N1\")+COUNTIF(ParticipationMars[18],\"E\")","v":0},{"$f":"COUNTIF(ParticipationMars[19],\"N1\")+COUNTIF(ParticipationMars[19],\"E\")","v":0},{"$f":"COUNTIF(ParticipationMars[20],\"N1\")+COUNTIF(ParticipationMars[20],\"E\")","v":0},{"$f":"COUNTIF(ParticipationMars[21],\"N1\")+COUNTIF(ParticipationMars[21],\"E\")","v":0},{"$f":"COUNTIF(ParticipationMars[22],\"N1\")+COUNTIF(ParticipationMars[22],\"E\")","v":0},{"$f":"COUNTIF(ParticipationMars[23],\"N1\")+COUNTIF(ParticipationMars[23],\"E\")","v":0},{"$f":"COUNTIF(ParticipationMars[24],\"N1\")+COUNTIF(ParticipationMars[24],\"E\")","v":0},{"$f":"COUNTIF(ParticipationMars[25],\"N1\")+COUNTIF(ParticipationMars[25],\"E\")","v":0},{"$f":"COUNTIF(ParticipationMars[26],\"N1\")+COUNTIF(ParticipationMars[26],\"E\")","v":0},{"$f":"COUNTIF(ParticipationMars[27],\"N1\")+COUNTIF(ParticipationMars[27],\"E\")","v":0},{"$f":"COUNTIF(ParticipationMars[28],\"N1\")+COUNTIF(ParticipationMars[28],\"E\")","v":0},{"$f":"COUNTIF(ParticipationMars[29],\"N1\")+COUNTIF(ParticipationMars[29],\"E\")","v":0},{"$f":"COUNTIF(ParticipationMars[30],\"N1\")+COUNTIF(ParticipationMars[30],\"E\")","v":0},{"$f":"COUNTIF(ParticipationMars[31],\"N1\")+COUNTIF(ParticipationMars[31],\"E\")","v":0},{"$f":"SUBTOTAL(109,ParticipationMars[R])","v":0},{"$f":"SUBTOTAL(109,ParticipationMars[E])","v":0},{"$f":"SUBTOTAL(109,ParticipationMars[N1])","v":0},{"$f":"SUBTOTAL(109,ParticipationMars[P])","v":0},{"$f":"SUBTOTAL(109,ParticipationMars[Jours d’absence])","v":0}]

{"sheet":"Avril","index":10,"n_rows":12,"n_cols":39,"rows_kept":12,"merged":[[4,34,4,38]]}
["FICHE DE PRÉSENCE SCOLAIRE",{"$nulls":36},"Début de l’année scolaire :",{"$f":"AnnéeCivile","v":2012}]
[]
[null,null,{"$f":"TexteCléDeCouleur","v":"CODE DE COULEURS "},{"$f":"Code1","v":"R"},{"$f":"TexteCode1","v":"en retard"},null,null,{"$f":"Code2","v":"E"},{"$f":"TexteCode2","v":"excusé"},null,null,{"$f":"Code3","v":"N1"},{"$f":"TexteCode3","v":"non excusé"},null,null,{"$f":"Code4","v":"P"},{"$f":"TexteCode4","v":"présent"},null,null,{"$f":"Code5","v":"N"},{"$f":"TexteCode5","v":"école fermée"}]
[]
[null,{"$f":"DATE(AnnéeCivile+1,4,1)","v":"2013-04-01"},null,{"$f":"TEXT(WEEKDAY(DATE(AnnéeCivile+1,4,1),1),\"[$-40c]aaa\")","v":"lun."},{"$f":"TEXT(WEEKDAY(DATE(AnnéeCivile+1,4,2),1),\"[$-40c]aaa\")","v":"mar."},{"$f":"TEXT(WEEKDAY(DATE(AnnéeCivile+1,4,3),1),\"[$-40c]aaa\")","v":"mer."},{"$f":"TEXT(WEEKDAY(DATE(AnnéeCivile+1,4,4),1),\"[$-40c]aaa\")","v":"jeu."},{"$f":"TEXT(WEEKDAY(DATE(AnnéeCivile+1,4,5),1),\"[$-40c]aaa\")","v":"ven."},{"$f":"TEXT(WEEKDAY(DATE(AnnéeCivile+1,4,6),1),\"[$-40c]aaa\")","v":"sam."},{"$f":"TEXT(WEEKDAY(DATE(AnnéeCivile+1,4,7),1),\"[$-40c]aaa\")","v":"dim."},{"$f":"TEXT(WEEKDAY(DATE(AnnéeCivile+1,4,8),1),\"[$-40c]aaa\")","v":"lun."},{"$f":"TEXT(WEEKDAY(DATE(AnnéeCivile+1,4,9),1),\"[$-40c]aaa\")","v":"mar."},{"$f":"TEXT(WEEKDAY(DATE(AnnéeCivile+1,4,10),1),\"[$-40c]aaa\")","v":"mer."},{"$f":"TEXT(WEEKDAY(DATE(AnnéeCivile+1,4,11),1),\"[$-40c]aaa\")","v":"jeu."},{"$f":"TEXT(WEEKDAY(DATE(AnnéeCivile+1,4,12),1),\"[$-40c]aaa\")","v":"ven."},{"$f":"TEXT(WEEKDAY(DATE(AnnéeCivile+1,4,13),1),\"[$-40c]aaa\")","v":"sam."},{"$f":"TEXT(WEEKDAY(DATE(AnnéeCivile+1,4,14),1),\"[$-40c]aaa\")","v":"dim."},{"$f":"TEXT(WEEKDAY(DATE(AnnéeCivile+1,4,15),1),\"[$-40c]aaa\")","v":"lun."},{"$f":"TEXT(WEEKDAY(DATE(AnnéeCivile+1,4,16),1),\"[$-40c]aaa\")","v":"mar."},{"$f":"TEXT(WEEKDAY(DATE(AnnéeCivile+1,4,17),1),\"[$-40c]aaa\")","v":"mer."},{"$f":"TEXT(WEEKDAY(DATE(AnnéeCivile+1,4,18),1),\"[$-40c]aaa\")","v":"jeu."},{"$f":"TEXT(WEEKDAY(DATE(AnnéeCivile+1,4,19),1),\"[$-40c]aaa\")","v":"ven."},{"$f":"TEXT(WEEKDAY(DATE(AnnéeCivile+1,4,20),1),\"[$-40c]aaa\")","v":"sam."},{"$f":"TEXT(WEEKDAY(DATE(AnnéeCivile+1,4,21),1),\"[$-40c]aaa\")","v":"dim."},{"$f":"TEXT(WEEKDAY(DATE(AnnéeCivile+1,4,22),1),\"[$-40c]aaa\")","v":"lun."},{"$f":"TEXT(WEEKDAY(DATE(AnnéeCivile+1,4,23),1),\"[$-40c]aaa\")","v":"mar."},{"$f":"TEXT(WEEKDAY(DATE(AnnéeCivile+1,4,24),1),\"[$-40c]aaa\")","v":"mer."},{"$f":"TEXT(WEEKDAY(DATE(AnnéeCivile+1,4,25),1),\"[$-40c]aaa\")","v":"jeu."},{"$f":"TEXT(WEEKDAY(DATE(AnnéeCivile+1,4,26),1),\"[$-40c]aaa\")","v":"ven."},{"$f":"TEXT(WEEKDAY(DATE(AnnéeCivile+1,4,27),1),\"[$-40c]aaa\")","v":"sam."},{"$f":"TEXT(WEEKDAY(DATE(AnnéeCivile+1,4,28),1),\"[$-40c]aaa\")","v":"dim."},{"$f":"TEXT(WEEKDAY(DATE(AnnéeCivile+1,4,29),1),\"[$-40c]aaa\")","v":"lun."},{"$f":"TEXT(WEEKDAY(DATE(AnnéeCivile+1,4,30),1),\"[$-40c]aaa\")","v":"mar."},null,"Total"]
[null,"Référence","Nom de l’élève","1","2","3","4","5","6","7","8","9","10","11","12","13","14","15","16","17","18","19","20","21","22","23","24","25","26","27","28","29","30"," ","R","E","N1","P","Jours d’absence"]
[null,null,{"$f":"IFERROR(VLOOKUP(ParticipationAvril[[#This Row],[Référence]],ListeÉtudiants[],18,FALSE),\"\")","v":""},{"$nulls":31},{"$f":"COUNTIF(ParticipationAvril[[#This Row],[1]:[ ]],Code1)","v":0},{"$f":"COUNTIF(ParticipationAvril[[#This Row],[1]:[ ]],Code2)","v":0},{"$f":"COUNTIF(ParticipationAvril[[#This Row],[1]:[ ]],Code3)","v":0},{"$f":"COUNTIF(ParticipationAvril[[#This Row],[1]:[ ]],Code4)","v":0},{"$f":"SUM(ParticipationAvril[[#This Row],[E]:[N1]])","v":0}]
[null,null,{"$f":"IFERROR(VLOOKUP(ParticipationAvril[[#This Row],[Référence]],ListeÉtudiants[],18,FALSE),\"\")","v":""},{"$nulls":31},{"$f":"COUNTIF(ParticipationAvril[[#This Row],[1]:[ ]],Code1)","v":0},{"$f":"COUNTIF(ParticipationAvril[[#This Row],[1]:[ ]],Code2)","v":0},{"$f":"COUNTIF(ParticipationAvril[[#This Row],[1]:[ ]],Code3)","v":0},{"$f":"COUNTIF(ParticipationAvril[[#This Row],[1]:[ ]],Code4)","v":0},{"$f":"SUM(ParticipationAvril[[#This Row],[E]:[N1]])","v":0}]
[null,null,{"$f":"IFERROR(VLOOKUP(ParticipationAvril[[#This Row],[Référence]],ListeÉtudiants[],18,FALSE),\"\")","v":""},{"$nulls":31},{"$f":"COUNTIF(ParticipationAvril[[#This Row],[1]:[ ]],Code1)","v":0},{"$f":"COUNTIF(ParticipationAvril[[#This Row],[1]:[ ]],Code2)","v":0},{"$f":"COUNTIF(ParticipationAvril[[#This Row],[1]:[ ]],Code3)","v":0},{"$f":"COUNTIF(ParticipationAvril[[#This Row],[1]:[ ]],Code4)","v":0},{"$f":"SUM(ParticipationAvril[[#This Row],[E]:[N1]])","v":0}]
[null,null,{"$f":"IFERROR(VLOOKUP(ParticipationAvril[[#This Row],[Référence]],ListeÉtudiants[],18,FALSE),\"\")","v":""},{"$nulls":31},{"$f":"COUNTIF(ParticipationAvril[[#This Row],[1]:[ ]],Code1)","v":0},{"$f":"COUNTIF(ParticipationAvril[[#This Row],[1]:[ ]],Code2)","v":0},{"$f":"COUNTIF(ParticipationAvril[[#This Row],[1]:[ ]],Code3)","v":0},{"$f":"COUNTIF(ParticipationAvril[[#This Row],[1]:[ ]],Code4)","v":0},{"$f":"SUM(ParticipationAvril[[#This Row],[E]:[N1]])","v":0}]
[null,null,{"$f":"IFERROR(VLOOKUP(ParticipationAvril[[#This Row],[Référence]],ListeÉtudiants[],18,FALSE),\"\")","v":""},{"$nulls":31},{"$f":"COUNTIF(ParticipationAvril[[#This Row],[1]:[ ]],Code1)","v":0},{"$f":"COUNTIF(ParticipationAvril[[#This Row],[1]:[ ]],Code2)","v":0},{"$f":"COUNTIF(ParticipationAvril[[#This Row],[1]:[ ]],Code3)","v":0},{"$f":"COUNTIF(ParticipationAvril[[#This Row],[1]:[ ]],Code4)","v":0},{"$f":"SUM(ParticipationAvril[[#This Row],[E]:[N1]])","v":0}]
[null,null,"Jours d’absence (total)",{"$f":"COUNTIF(ParticipationAvril[1],\"N1\")+COUNTIF(ParticipationAvril[1],\"E\")","v":0},{"$f":"COUNTIF(ParticipationAvril[2],\"N1\")+COUNTIF(ParticipationAvril[2],\"E\")","v":0},{"$f":"COUNTIF(ParticipationAvril[3],\"N1\")+COUNTIF(ParticipationAvril[3],\"E\")","v":0},{"$f":"COUNTIF(ParticipationAvril[4],\"N1\")+COUNTIF(ParticipationAvril[4],\"E\")","v":0},{"$f":"COUNTIF(ParticipationAvril[5],\"N1\")+COUNTIF(ParticipationAvril[5],\"E\")","v":0},{"$f":"COUNTIF(ParticipationAvril[6],\"N1\")+COUNTIF(ParticipationAvril[6],\"E\")","v":0},{"$f":"COUNTIF(ParticipationAvril[7],\"N1\")+COUNTIF(ParticipationAvril[7],\"E\")","v":0},{"$f":"COUNTIF(ParticipationAvril[8],\"N1\")+COUNTIF(ParticipationAvril[8],\"E\")","v":0},{"$f":"COUNTIF(ParticipationAvril[9],\"N1\")+COUNTIF(ParticipationAvril[9],\"E\")","v":0},{"$f":"COUNTIF(ParticipationAvril[10],\"N1\")+COUNTIF(ParticipationAvril[10],\"E\")","v":0},{"$f":"COUNTIF(ParticipationAvril[11],\"N1\")+COUNTIF(ParticipationAvril[11],\"E\")","v":0},{"$f":"COUNTIF(ParticipationAvril[12],\"N1\")+COUNTIF(ParticipationAvril[12],\"E\")","v":0},{"$f":"COUNTIF(ParticipationAvril[13],\"N1\")+COUNTIF(ParticipationAvril[13],\"E\")","v":0},{"$f":"COUNTIF(ParticipationAvril[14],\"N1\")+COUNTIF(ParticipationAvril[14],\"E\")","v":0},{"$f":"COUNTIF(ParticipationAvril[15],\"N1\")+COUNTIF(ParticipationAvril[15],\"E\")","v":0},{"$f":"COUNTIF(ParticipationAvril[16],\"N1\")+COUNTIF(ParticipationAvril[16],\"E\")","v":0},{"$f":"COUNTIF(ParticipationAvril[17],\"N1\")+COUNTIF(ParticipationAvril[17],\"E\")","v":0},{"$f":"COUNTIF(ParticipationAvril[18],\"N1\")+COUNTIF(ParticipationAvril[18],\"E\")","v":0},{"$f":"COUNTIF(ParticipationAvril[19],\"N1\")+COUNTIF(ParticipationAvril[19],\"E\")","v":0},{"$f":"COUNTIF(ParticipationAvril[20],\"N1\")+COUNTIF(ParticipationAvril[20],\"E\")","v":0},{"$f":"COUNTIF(ParticipationAvril[21],\"N1\")+COUNTIF(ParticipationAvril[21],\"E\")","v":0},{"$f":"COUNTIF(ParticipationAvril[22],\"N1\")+COUNTIF(ParticipationAvril[22],\"E\")","v":0},{"$f":"COUNTIF(ParticipationAvril[23],\"N1\")+COUNTIF(ParticipationAvril[23],\"E\")","v":0},{"$f":"COUNTIF(ParticipationAvril[24],\"N1\")+COUNTIF(ParticipationAvril[24],\"E\")","v":0},{"$f":"COUNTIF(ParticipationAvril[25],\"N1\")+COUNTIF(ParticipationAvril[25],\"E\")","v":0},{"$f":"COUNTIF(ParticipationAvril[26],\"N1\")+COUNTIF(ParticipationAvril[26],\"E\")","v":0},{"$f":"COUNTIF(ParticipationAvril[27],\"N1\")+COUNTIF(ParticipationAvril[27],\"E\")","v":0},{"$f":"COUNTIF(ParticipationAvril[28],\"N1\")+COUNTIF(ParticipationAvril[28],\"E\")","v":0},{"$f":"COUNTIF(ParticipationAvril[29],\"N1\")+COUNTIF(ParticipationAvril[29],\"E\")","v":0},{"$f":"COUNTIF(ParticipationAvril[30],\"N1\")+COUNTIF(ParticipationAvril[30],\"E\")","v":0},{"$f":"COUNTIF(ParticipationAvril[[ ]],\"N1\")+COUNTIF(ParticipationAvril[[ ]],\"E\")","v":0},{"$f":"SUBTOTAL(109,ParticipationAvril[R])","v":0},{"$f":"SUBTOTAL(109,ParticipationAvril[E])","v":0},{"$f":"SUBTOTAL(109,ParticipationAvril[N1])","v":0},{"$f":"SUBTOTAL(109,ParticipationAvril[P])","v":0},{"$f":"SUBTOTAL(109,ParticipationAvril[Jours d’absence])","v":0}]

{"sheet":"Mai","index":11,"n_rows":12,"n_cols":39,"rows_kept":12,"merged":[[4,34,4,38]]}
["FICHE DE PRÉSENCE SCOLAIRE",{"$nulls":36},"Début de l’année scolaire :",{"$f":"AnnéeCivile","v":2012}]
[]
[null,null,{"$f":"TexteCléDeCouleur","v":"CODE DE COULEURS "},{"$f":"Code1","v":"R"},{"$f":"TexteCode1","v":"en retard"},null,null,{"$f":"Code2","v":"E"},{"$f":"TexteCode2","v":"excusé"},null,null,{"$f":"Code3","v":"N1"},{"$f":"TexteCode3","v":"non excusé"},null,null,{"$f":"Code4","v":"P"},{"$f":"TexteCode4","v":"présent"},null,null,{"$f":"Code5","v":"N"},{"$f":"TexteCode5","v":"école fermée"}]
[]
[null,{"$f":"DATE(AnnéeCivile+1,5,1)","v":"2013-05-01"},null,{"$f":"TEXT(WEEKDAY(DATE(AnnéeCivile+1,5,1),1),\"[$-40c]aaa\")","v":"mer."},{"$f":"TEXT(WEEKDAY(DATE(AnnéeCivile+1,5,2),1),\"[$-40c]aaa\")","v":"jeu."},{"$f":"TEXT(WEEKDAY(DATE(AnnéeCivile+1,5,3),1),\"[$-40c]aaa\")","v":"ven."},{"$f":"TEXT(WEEKDAY(DATE(AnnéeCivile+1,5,4),1),\"[$-40c]aaa\")","v":"sam."},{"$f":"TEXT(WEEKDAY(DATE(AnnéeCivile+1,5,5),1),\"[$-40c]aaa\")","v":"dim."},{"$f":"TEXT(WEEKDAY(DATE(AnnéeCivile+1,5,6),1),\"[$-40c]aaa\")","v":"lun."},{"$f":"TEXT(WEEKDAY(DATE(AnnéeCivile+1,5,7),1),\"[$-40c]aaa\")","v":"mar."},{"$f":"TEXT(WEEKDAY(DATE(AnnéeCivile+1,5,8),1),\"[$-40c]aaa\")","v":"mer."},{"$f":"TEXT(WEEKDAY(DATE(AnnéeCivile+1,5,9),1),\"[$-40c]aaa\")","v":"jeu."},{"$f":"TEXT(WEEKDAY(DATE(AnnéeCivile+1,5,10),1),\"[$-40c]aaa\")","v":"ven."},{"$f":"TEXT(WEEKDAY(DATE(AnnéeCivile+1,5,11),1),\"[$-40c]aaa\")","v":"sam."},{"$f":"TEXT(WEEKDAY(DATE(AnnéeCivile+1,5,12),1),\"[$-40c]aaa\")","v":"dim."},{"$f":"TEXT(WEEKDAY(DATE(AnnéeCivile+1,5,13),1),\"[$-40c]aaa\")","v":"lun."},{"$f":"TEXT(WEEKDAY(DATE(AnnéeCivile+1,5,14),1),\"[$-40c]aaa\")","v":"mar."},{"$f":"TEXT(WEEKDAY(DATE(AnnéeCivile+1,5,15),1),\"[$-40c]aaa\")","v":"mer."},{"$f":"TEXT(WEEKDAY(DATE(AnnéeCivile+1,5,16),1),\"[$-40c]aaa\")","v":"jeu."},{"$f":"TEXT(WEEKDAY(DATE(AnnéeCivile+1,5,17),1),\"[$-40c]aaa\")","v":"ven."},{"$f":"TEXT(WEEKDAY(DATE(AnnéeCivile+1,5,18),1),\"[$-40c]aaa\")","v":"sam."},{"$f":"TEXT(WEEKDAY(DATE(AnnéeCivile+1,5,19),1),\"[$-40c]aaa\")","v":"dim."},{"$f":"TEXT(WEEKDAY(DATE(AnnéeCivile+1,5,20),1),\"[$-40c]aaa\")","v":"lun."},{"$f":"TEXT(WEEKDAY(DATE(AnnéeCivile+1,5,21),1),\"[$-40c]aaa\")","v":"mar."},{"$f":"TEXT(WEEKDAY(DATE(AnnéeCivile+1,5,22),1),\"[$-40c]aaa\")","v":"mer."},{"$f":"TEXT(WEEKDAY(DATE(AnnéeCivile+1,5,23),1),\"[$-40c]aaa\")","v":"jeu."},{"$f":"TEXT(WEEKDAY(DATE(AnnéeCivile+1,5,24),1),\"[$-40c]aaa\")","v":"ven."},{"$f":"TEXT(WEEKDAY(DATE(AnnéeCivile+1,5,25),1),\"[$-40c]aaa\")","v":"sam."},{"$f":"TEXT(WEEKDAY(DATE(AnnéeCivile+1,5,26),1),\"[$-40c]aaa\")","v":"dim."},{"$f":"TEXT(WEEKDAY(DATE(AnnéeCivile+1,5,27),1),\"[$-40c]aaa\")","v":"lun."},{"$f":"TEXT(WEEKDAY(DATE(AnnéeCivile+1,5,28),1),\"[$-40c]aaa\")","v":"mar."},{"$f":"TEXT(WEEKDAY(DATE(AnnéeCivile+1,5,29),1),\"[$-40c]aaa\")","v":"mer."},{"$f":"TEXT(WEEKDAY(DATE(AnnéeCivile+1,5,30),1),\"[$-40c]aaa\")","v":"jeu."},{"$f":"TEXT(WEEKDAY(DATE(AnnéeCivile+1,5,31),1),\"[$-40c]aaa\")","v":"ven."},"Total"]
[null,"Référence","Nom de l’élève","1","2","3","4","5","6","7","8","9","10","11","12","13","14","15","16","17","18","19","20","21","22","23","24","25","26","27","28","29","30","31","R","E","N1","P","Jours d’absence"]
[null,null,{"$f":"IFERROR(VLOOKUP(ParticipationMai[[#This Row],[Référence]],ListeÉtudiants[],18,FALSE),\"\")","v":""},{"$nulls":31},{"$f":"COUNTIF(ParticipationMai[[#This Row],[1]:[31]],Code1)","v":0},{"$f":"COUNTIF(ParticipationMai[[#This Row],[1]:[31]],Code2)","v":0},{"$f":"COUNTIF(ParticipationMai[[#This Row],[1]:[31]],Code3)","v":0},{"$f":"COUNTIF(ParticipationMai[[#This Row],[1]:[31]],Code4)","v":0},{"$f":"SUM(ParticipationMai[[#This Row],[E]:[N1]])","v":0}]
[null,null,{"$f":"IFERROR(VLOOKUP(ParticipationMai[[#This Row],[Référence]],ListeÉtudiants[],18,FALSE),\"\")","v":""},{"$nulls":31},{"$f":"COUNTIF(ParticipationMai[[#This Row],[1]:[31]],Code1)","v":0},{"$f":"COUNTIF(ParticipationMai[[#This Row],[1]:[31]],Code2)","v":0},{"$f":"COUNTIF(ParticipationMai[[#This Row],[1]:[31]],Code3)","v":0},{"$f":"COUNTIF(ParticipationMai[[#This Row],[1]:[31]],Code4)","v":0},{"$f":"SUM(ParticipationMai[[#This Row],[E]:[N1]])","v":0}]
[null,null,{"$f":"IFERROR(VLOOKUP(ParticipationMai[[#This Row],[Référence]],ListeÉtudiants[],18,FALSE),\"\")","v":""},{"$nulls":31},{"$f":"COUNTIF(ParticipationMai[[#This Row],[1]:[31]],Code1)","v":0},{"$f":"COUNTIF(ParticipationMai[[#This Row],[1]:[31]],Code2)","v":0},{"$f":"COUNTIF(ParticipationMai[[#This Row],[1]:[31]],Code3)","v":0},{"$f":"COUNTIF(ParticipationMai[[#This Row],[1]:[31]],Code4)","v":0},{"$f":"SUM(ParticipationMai[[#This Row],[E]:[N1]])","v":0}]
[null,null,{"$f":"IFERROR(VLOOKUP(ParticipationMai[[#This Row],[Référence]],ListeÉtudiants[],18,FALSE),\"\")","v":""},{"$nulls":31},{"$f":"COUNTIF(ParticipationMai[[#This Row],[1]:[31]],Code1)","v":0},{"$f":"COUNTIF(ParticipationMai[[#This Row],[1]:[31]],Code2)","v":0},{"$f":"COUNTIF(ParticipationMai[[#This Row],[1]:[31]],Code3)","v":0},{"$f":"COUNTIF(ParticipationMai[[#This Row],[1]:[31]],Code4)","v":0},{"$f":"SUM(ParticipationMai[[#This Row],[E]:[N1]])","v":0}]
[null,null,{"$f":"IFERROR(VLOOKUP(ParticipationMai[[#This Row],[Référence]],ListeÉtudiants[],18,FALSE),\"\")","v":""},{"$nulls":31},{"$f":"COUNTIF(ParticipationMai[[#This Row],[1]:[31]],Code1)","v":0},{"$f":"COUNTIF(ParticipationMai[[#This Row],[1]:[31]],Code2)","v":0},{"$f":"COUNTIF(ParticipationMai[[#This Row],[1]:[31]],Code3)","v":0},{"$f":"COUNTIF(ParticipationMai[[#This Row],[1]:[31]],Code4)","v":0},{"$f":"SUM(ParticipationMai[[#This Row],[E]:[N1]])","v":0}]
[null,null,"Jours d’absence (total)",{"$f":"COUNTIF(ParticipationMai[1],\"N1\")+COUNTIF(ParticipationMai[1],\"E\")","v":0},{"$f":"COUNTIF(ParticipationMai[2],\"N1\")+COUNTIF(ParticipationMai[2],\"E\")","v":0},{"$f":"COUNTIF(ParticipationMai[3],\"N1\")+COUNTIF(ParticipationMai[3],\"E\")","v":0},{"$f":"COUNTIF(ParticipationMai[4],\"N1\")+COUNTIF(ParticipationMai[4],\"E\")","v":0},{"$f":"COUNTIF(ParticipationMai[5],\"N1\")+COUNTIF(ParticipationMai[5],\"E\")","v":0},{"$f":"COUNTIF(ParticipationMai[6],\"N1\")+COUNTIF(ParticipationMai[6],\"E\")","v":0},{"$f":"COUNTIF(ParticipationMai[7],\"N1\")+COUNTIF(ParticipationMai[7],\"E\")","v":0},{"$f":"COUNTIF(ParticipationMai[8],\"N1\")+COUNTIF(ParticipationMai[8],\"E\")","v":0},{"$f":"COUNTIF(ParticipationMai[9],\"N1\")+COUNTIF(ParticipationMai[9],\"E\")","v":0},{"$f":"COUNTIF(ParticipationMai[10],\"N1\")+COUNTIF(ParticipationMai[10],\"E\")","v":0},{"$f":"COUNTIF(ParticipationMai[11],\"N1\")+COUNTIF(ParticipationMai[11],\"E\")","v":0},{"$f":"COUNTIF(ParticipationMai[12],\"N1\")+COUNTIF(ParticipationMai[12],\"E\")","v":0},{"$f":"COUNTIF(ParticipationMai[13],\"N1\")+COUNTIF(ParticipationMai[13],\"E\")","v":0},{"$f":"COUNTIF(ParticipationMai[14],\"N1\")+COUNTIF(ParticipationMai[14],\"E\")","v":0},{"$f":"COUNTIF(ParticipationMai[15],\"N1\")+COUNTIF(ParticipationMai[15],\"E\")","v":0},{"$f":"COUNTIF(ParticipationMai[16],\"N1\")+COUNTIF(ParticipationMai[16],\"E\")","v":0},{"$f":"COUNTIF(ParticipationMai[17],\"N1\")+COUNTIF(ParticipationMai[17],\"E\")","v":0},{"$f":"COUNTIF(ParticipationMai[18],\"N1\")+COUNTIF(ParticipationMai[18],\"E\")","v":0},{"$f":"COUNTIF(ParticipationMai[19],\"N1\")+COUNTIF(ParticipationMai[19],\"E\")","v":0},{"$f":"COUNTIF(ParticipationMai[20],\"N1\")+COUNTIF(ParticipationMai[20],\"E\")","v":0},{"$f":"COUNTIF(ParticipationMai[21],\"N1\")+COUNTIF(ParticipationMai[21],\"E\")","v":0},{"$f":"COUNTIF(ParticipationMai[22],\"N1\")+COUNTIF(ParticipationMai[22],\"E\")","v":0},{"$f":"COUNTIF(ParticipationMai[23],\"N1\")+COUNTIF(ParticipationMai[23],\"E\")","v":0},{"$f":"COUNTIF(ParticipationMai[24],\"N1\")+COUNTIF(ParticipationMai[24],\"E\")","v":0},{"$f":"COUNTIF(ParticipationMai[25],\"N1\")+COUNTIF(ParticipationMai[25],\"E\")","v":0},{"$f":"COUNTIF(ParticipationMai[26],\"N1\")+COUNTIF(ParticipationMai[26],\"E\")","v":0},{"$f":"COUNTIF(ParticipationMai[27],\"N1\")+COUNTIF(ParticipationMai[27],\"E\")","v":0},{"$f":"COUNTIF(ParticipationMai[28],\"N1\")+COUNTIF(ParticipationMai[28],\"E\")","v":0},{"$f":"COUNTIF(ParticipationMai[29],\"N1\")+COUNTIF(ParticipationMai[29],\"E\")","v":0},{"$f":"COUNTIF(ParticipationMai[30],\"N1\")+COUNTIF(ParticipationMai[30],\"E\")","v":0},{"$f":"COUNTIF(ParticipationMai[31],\"N1\")+COUNTIF(ParticipationMai[31],\"E\")","v":0},{"$f":"SUBTOTAL(109,ParticipationMai[R])","v":0},{"$f":"SUBTOTAL(109,ParticipationMai[E])","v":0},{"$f":"SUBTOTAL(109,ParticipationMai[N1])","v":0},{"$f":"SUBTOTAL(109,ParticipationMai[P])","v":0},{"$f":"SUBTOTAL(109,ParticipationMai[Jours d’absence])","v":0}]

{"sheet":"Juin","index":12,"n_rows":12,"n_cols":39,"rows_kept":12,"merged":[[4,34,4,38]]}
["FICHE DE PRÉSENCE SCOLAIRE",{"$nulls":36},"Début de l’année scolaire :",{"$f":"AnnéeCivile","v":2012}]
[]
[null,null,{"$f":"TexteCléDeCouleur","v":"CODE DE COULEURS "},{"$f":"Code1","v":"R"},{"$f":"TexteCode1","v":"en retard"},null,null,{"$f":"Code2","v":"E"},{"$f":"TexteCode2","v":"excusé"},null,null,{"$f":"Code3","v":"N1"},{"$f":"TexteCode3","v":"non excusé"},null,null,{"$f":"Code4","v":"P"},{"$f":"TexteCode4","v":"présent"},null,null,{"$f":"Code5","v":"N"},{"$f":"TexteCode5","v":"école fermée"}]
[]
[null,{"$f":"DATE(AnnéeCivile+1,6,1)","v":"2013-06-01"},null,{"$f":"TEXT(WEEKDAY(DATE(AnnéeCivile+1,6,1),1),\"[$-40c]aaa\")","v":"sam."},{"$f":"TEXT(WEEKDAY(DATE(AnnéeCivile+1,6,2),1),\"[$-40c]aaa\")","v":"dim."},{"$f":"TEXT(WEEKDAY(DATE(AnnéeCivile+1,6,3),1),\"[$-40c]aaa\")","v":"lun."},{"$f":"TEXT(WEEKDAY(DATE(AnnéeCivile+1,6,4),1),\"[$-40c]aaa\")","v":"mar."},{"$f":"TEXT(WEEKDAY(DATE(AnnéeCivile+1,6,5),1),\"[$-40c]aaa\")","v":"mer."},{"$f":"TEXT(WEEKDAY(DATE(AnnéeCivile+1,6,6),1),\"[$-40c]aaa\")","v":"jeu."},{"$f":"TEXT(WEEKDAY(DATE(AnnéeCivile+1,6,7),1),\"[$-40c]aaa\")","v":"ven."},{"$f":"TEXT(WEEKDAY(DATE(AnnéeCivile+1,6,8),1),\"[$-40c]aaa\")","v":"sam."},{"$f":"TEXT(WEEKDAY(DATE(AnnéeCivile+1,6,9),1),\"[$-40c]aaa\")","v":"dim."},{"$f":"TEXT(WEEKDAY(DATE(AnnéeCivile+1,6,10),1),\"[$-40c]aaa\")","v":"lun."},{"$f":"TEXT(WEEKDAY(DATE(AnnéeCivile+1,6,11),1),\"[$-40c]aaa\")","v":"mar."},{"$f":"TEXT(WEEKDAY(DATE(AnnéeCivile+1,6,12),1),\"[$-40c]aaa\")","v":"mer."},{"$f":"TEXT(WEEKDAY(DATE(AnnéeCivile+1,6,13),1),\"[$-40c]aaa\")","v":"jeu."},{"$f":"TEXT(WEEKDAY(DATE(AnnéeCivile+1,6,14),1),\"[$-40c]aaa\")","v":"ven."},{"$f":"TEXT(WEEKDAY(DATE(AnnéeCivile+1,6,15),1),\"[$-40c]aaa\")","v":"sam."},{"$f":"TEXT(WEEKDAY(DATE(AnnéeCivile+1,6,16),1),\"[$-40c]aaa\")","v":"dim."},{"$f":"TEXT(WEEKDAY(DATE(AnnéeCivile+1,6,17),1),\"[$-40c]aaa\")","v":"lun."},{"$f":"TEXT(WEEKDAY(DATE(AnnéeCivile+1,6,18),1),\"[$-40c]aaa\")","v":"mar."},{"$f":"TEXT(WEEKDAY(DATE(AnnéeCivile+1,6,19),1),\"[$-40c]aaa\")","v":"mer."},{"$f":"TEXT(WEEKDAY(DATE(AnnéeCivile+1,6,20),1),\"[$-40c]aaa\")","v":"jeu."},{"$f":"TEXT(WEEKDAY(DATE(AnnéeCivile+1,6,21),1),\"[$-40c]aaa\")","v":"ven."},{"$f":"TEXT(WEEKDAY(DATE(AnnéeCivile+1,6,22),1),\"[$-40c]aaa\")","v":"sam."},{"$f":"TEXT(WEEKDAY(DATE(AnnéeCivile+1,6,23),1),\"[$-40c]aaa\")","v":"dim."},{"$f":"TEXT(WEEKDAY(DATE(AnnéeCivile+1,6,24),1),\"[$-40c]aaa\")","v":"lun."},{"$f":"TEXT(WEEKDAY(DATE(AnnéeCivile+1,6,25),1),\"[$-40c]aaa\")","v":"mar."},{"$f":"TEXT(WEEKDAY(DATE(AnnéeCivile+1,6,26),1),\"[$-40c]aaa\")","v":"mer."},{"$f":"TEXT(WEEKDAY(DATE(AnnéeCivile+1,6,27),1),\"[$-40c]aaa\")","v":"jeu."},{"$f":"TEXT(WEEKDAY(DATE(AnnéeCivile+1,6,28),1),\"[$-40c]aaa\")","v":"ven."},{"$f":"TEXT(WEEKDAY(DATE(AnnéeCivile+1,6,29),1),\"[$-40c]aaa\")","v":"sam."},{"$f":"TEXT(WEEKDAY(DATE(AnnéeCivile+1,6,30),1),\"[$-40c]aaa\")","v":"dim."},null,"Total"]
[null,"Référence","Nom de l’élève","1","2","3","4","5","6","7","8","9","10","11","12","13","14","15","16","17","18","19","20","21","22","23","24","25","26","27","28","29","30"," ","R","E","N1","P","Jours d’absence"]
[null,null,{"$f":"IFERROR(VLOOKUP(ParticipationJuin[[#This Row],[Référence]],ListeÉtudiants[],18,FALSE),\"\")","v":""},{"$nulls":31},{"$f":"COUNTIF(ParticipationJuin[[#This Row],[1]:[ ]],Code1)","v":0},{"$f":"COUNTIF(ParticipationJuin[[#This Row],[1]:[ ]],Code2)","v":0},{"$f":"COUNTIF(ParticipationJuin[[#This Row],[1]:[ ]],Code3)","v":0},{"$f":"COUNTIF(ParticipationJuin[[#This Row],[1]:[ ]],Code4)","v":0},{"$f":"SUM(ParticipationJuin[[#This Row],[E]:[N1]])","v":0}]
[null,null,{"$f":"IFERROR(VLOOKUP(ParticipationJuin[[#This Row],[Référence]],ListeÉtudiants[],18,FALSE),\"\")","v":""},{"$nulls":31},{"$f":"COUNTIF(ParticipationJuin[[#This Row],[1]:[ ]],Code1)","v":0},{"$f":"COUNTIF(ParticipationJuin[[#This Row],[1]:[ ]],Code2)","v":0},{"$f":"COUNTIF(ParticipationJuin[[#This Row],[1]:[ ]],Code3)","v":0},{"$f":"COUNTIF(ParticipationJuin[[#This Row],[1]:[ ]],Code4)","v":0},{"$f":"SUM(ParticipationJuin[[#This Row],[E]:[N1]])","v":0}]
[null,null,{"$f":"IFERROR(VLOOKUP(ParticipationJuin[[#This Row],[Référence]],ListeÉtudiants[],18,FALSE),\"\")","v":""},{"$nulls":31},{"$f":"COUNTIF(ParticipationJuin[[#This Row],[1]:[ ]],Code1)","v":0},{"$f":"COUNTIF(ParticipationJuin[[#This Row],[1]:[ ]],Code2)","v":0},{"$f":"COUNTIF(ParticipationJuin[[#This Row],[1]:[ ]],Code3)","v":0},{"$f":"COUNTIF(ParticipationJuin[[#This Row],[1]:[ ]],Code4)","v":0},{"$f":"SUM(ParticipationJuin[[#This Row],[E]:[N1]])","v":0}]
[null,null,{"$f":"IFERROR(VLOOKUP(ParticipationJuin[[#This Row],[Référence]],ListeÉtudiants[],18,FALSE),\"\")","v":""},{"$nulls":31},{"$f":"COUNTIF(ParticipationJuin[[#This Row],[1]:[ ]],Code1)","v":0},{"$f":"COUNTIF(ParticipationJuin[[#This Row],[1]:[ ]],Code2)","v":0},{"$f":"COUNTIF(ParticipationJuin[[#This Row],[1]:[ ]],Code3)","v":0},{"$f":"COUNTIF(ParticipationJuin[[#This Row],[1]:[ ]],Code4)","v":0},{"$f":"SUM(ParticipationJuin[[#This Row],[E]:[N1]])","v":0}]
[null,null,{"$f":"IFERROR(VLOOKUP(ParticipationJuin[[#This Row],[Référence]],ListeÉtudiants[],18,FALSE),\"\")","v":""},{"$nulls":31},{"$f":"COUNTIF(ParticipationJuin[[#This Row],[1]:[ ]],Code1)","v":0},{"$f":"COUNTIF(ParticipationJuin[[#This Row],[1]:[ ]],Code2)","v":0},{"$f":"COUNTIF(ParticipationJuin[[#This Row],[1]:[ ]],Code3)","v":0},{"$f":"COUNTIF(ParticipationJuin[[#This Row],[1]:[ ]],Code4)","v":0},{"$f":"SUM(ParticipationJuin[[#This Row],[E]:[N1]])","v":0}]
[null,null,"Jours d’absence (total)",{"$f":"COUNTIF(ParticipationJuin[1],\"N1\")+COUNTIF(ParticipationJuin[1],\"E\")","v":0},{"$f":"COUNTIF(ParticipationJuin[2],\"N1\")+COUNTIF(ParticipationJuin[2],\"E\")","v":0},{"$f":"COUNTIF(ParticipationJuin[3],\"N1\")+COUNTIF(ParticipationJuin[3],\"E\")","v":0},{"$f":"COUNTIF(ParticipationJuin[4],\"N1\")+COUNTIF(ParticipationJuin[4],\"E\")","v":0},{"$f":"COUNTIF(ParticipationJuin[5],\"N1\")+COUNTIF(ParticipationJuin[5],\"E\")","v":0},{"$f":"COUNTIF(ParticipationJuin[6],\"N1\")+COUNTIF(ParticipationJuin[6],\"E\")","v":0},{"$f":"COUNTIF(ParticipationJuin[7],\"N1\")+COUNTIF(ParticipationJuin[7],\"E\")","v":0},{"$f":"COUNTIF(ParticipationJuin[8],\"N1\")+COUNTIF(ParticipationJuin[8],\"E\")","v":0},{"$f":"COUNTIF(ParticipationJuin[9],\"N1\")+COUNTIF(ParticipationJuin[9],\"E\")","v":0},{"$f":"COUNTIF(ParticipationJuin[10],\"N1\")+COUNTIF(ParticipationJuin[10],\"E\")","v":0},{"$f":"COUNTIF(ParticipationJuin[11],\"N1\")+COUNTIF(ParticipationJuin[11],\"E\")","v":0},{"$f":"COUNTIF(ParticipationJuin[12],\"N1\")+COUNTIF(ParticipationJuin[12],\"E\")","v":0},{"$f":"COUNTIF(ParticipationJuin[13],\"N1\")+COUNTIF(ParticipationJuin[13],\"E\")","v":0},{"$f":"COUNTIF(ParticipationJuin[14],\"N1\")+COUNTIF(ParticipationJuin[14],\"E\")","v":0},{"$f":"COUNTIF(ParticipationJuin[15],\"N1\")+COUNTIF(ParticipationJuin[15],\"E\")","v":0},{"$f":"COUNTIF(ParticipationJuin[16],\"N1\")+COUNTIF(ParticipationJuin[16],\"E\")","v":0},{"$f":"COUNTIF(ParticipationJuin[17],\"N1\")+COUNTIF(ParticipationJuin[17],\"E\")","v":0},{"$f":"COUNTIF(ParticipationJuin[18],\"N1\")+COUNTIF(ParticipationJuin[18],\"E\")","v":0},{"$f":"COUNTIF(ParticipationJuin[19],\"N1\")+COUNTIF(ParticipationJuin[19],\"E\")","v":0},{"$f":"COUNTIF(ParticipationJuin[20],\"N1\")+COUNTIF(ParticipationJuin[20],\"E\")","v":0},{"$f":"COUNTIF(ParticipationJuin[21],\"N1\")+COUNTIF(ParticipationJuin[21],\"E\")","v":0},{"$f":"COUNTIF(ParticipationJuin[22],\"N1\")+COUNTIF(ParticipationJuin[22],\"E\")","v":0},{"$f":"COUNTIF(ParticipationJuin[23],\"N1\")+COUNTIF(ParticipationJuin[23],\"E\")","v":0},{"$f":"COUNTIF(ParticipationJuin[24],\"N1\")+COUNTIF(ParticipationJuin[24],\"E\")","v":0},{"$f":"COUNTIF(ParticipationJuin[25],\"N1\")+COUNTIF(ParticipationJuin[25],\"E\")","v":0},{"$f":"COUNTIF(ParticipationJuin[26],\"N1\")+COUNTIF(ParticipationJuin[26],\"E\")","v":0},{"$f":"COUNTIF(ParticipationJuin[27],\"N1\")+COUNTIF(ParticipationJuin[27],\"E\")","v":0},{"$f":"COUNTIF(ParticipationJuin[28],\"N1\")+COUNTIF(ParticipationJuin[28],\"E\")","v":0},{"$f":"COUNTIF(ParticipationJuin[29],\"N1\")+COUNTIF(ParticipationJuin[29],\"E\")","v":0},{"$f":"COUNTIF(ParticipationJuin[30],\"N1\")+COUNTIF(ParticipationJuin[30],\"E\")","v":0},{"$f":"COUNTIF(ParticipationJuin[[ ]],\"N1\")+COUNTIF(ParticipationJuin[[ ]],\"E\")","v":0},{"$f":"SUBTOTAL(109,ParticipationJuin[R])","v":0},{"$f":"SUBTOTAL(109,ParticipationJuin[E])","v":0},{"$f":"SUBTOTAL(109,ParticipationJuin[N1])","v":0},{"$f":"SUBTOTAL(109,ParticipationJuin[P])","v":0},{"$f":"SUBTOTAL(109,ParticipationJuin[Jours d’absence])","v":0}]

{"sheet":"Juillet","index":13,"n_rows":12,"n_cols":39,"rows_kept":12,"merged":[[4,34,4,38]]}
["FICHE DE PRÉSENCE SCOLAIRE",{"$nulls":36},"Début de l’année scolaire :",{"$f":"AnnéeCivile","v":2012}]
[]
[null,null,{"$f":"TexteCléDeCouleur","v":"CODE DE COULEURS "},{"$f":"Code1","v":"R"},{"$f":"TexteCode1","v":"en retard"},null,null,{"$f":"Code2","v":"E"},{"$f":"TexteCode2","v":"excusé"},null,null,{"$f":"Code3","v":"N1"},{"$f":"TexteCode3","v":"non excusé"},null,null,{"$f":"Code4","v":"P"},{"$f":"TexteCode4","v":"présent"},null,null,{"$f":"Code5","v":"N"},{"$f":"TexteCode5","v":"école fermée"}]
[]
[null,{"$f":"DATE(AnnéeCivile+1,7,1)","v":"2013-07-01"},null,{"$f":"TEXT(WEEKDAY(DATE(AnnéeCivile+1,7,1),1),\"[$-40c]aaa\")","v":"lun."},{"$f":"TEXT(WEEKDAY(DATE(AnnéeCivile+1,7,2),1),\"[$-40c]aaa\")","v":"mar."},{"$f":"TEXT(WEEKDAY(DATE(AnnéeCivile+1,7,3),1),\"[$-40c]aaa\")","v":"mer."},{"$f":"TEXT(WEEKDAY(DATE(AnnéeCivile+1,7,4),1),\"[$-40c]aaa\")","v":"jeu."},{"$f":"TEXT(WEEKDAY(DATE(AnnéeCivile+1,7,5),1),\"[$-40c]aaa\")","v":"ven."},{"$f":"TEXT(WEEKDAY(DATE(AnnéeCivile+1,7,6),1),\"[$-40c]aaa\")","v":"sam."},{"$f":"TEXT(WEEKDAY(DATE(AnnéeCivile+1,7,7),1),\"[$-40c]aaa\")","v":"dim."},{"$f":"TEXT(WEEKDAY(DATE(AnnéeCivile+1,7,8),1),\"[$-40c]aaa\")","v":"lun."},{"$f":"TEXT(WEEKDAY(DATE(AnnéeCivile+1,7,9),1),\"[$-40c]aaa\")","v":"mar."},{"$f":"TEXT(WEEKDAY(DATE(AnnéeCivile+1,7,10),1),\"[$-40c]aaa\")","v":"mer."},{"$f":"TEXT(WEEKDAY(DATE(AnnéeCivile+1,7,11),1),\"[$-40c]aaa\")","v":"jeu."},{"$f":"TEXT(WEEKDAY(DATE(AnnéeCivile+1,7,12),1),\"[$-40c]aaa\")","v":"ven."},{"$f":"TEXT(WEEKDAY(DATE(AnnéeCivile+1,7,13),1),\"[$-40c]aaa\")","v":"sam."},{"$f":"TEXT(WEEKDAY(DATE(AnnéeCivile+1,7,14),1),\"[$-40c]aaa\")","v":"dim."},{"$f":"TEXT(WEEKDAY(DATE(AnnéeCivile+1,7,15),1),\"[$-40c]aaa\")","v":"lun."},{"$f":"TEXT(WEEKDAY(DATE(AnnéeCivile+1,7,16),1),\"[$-40c]aaa\")","v":"mar."},{"$f":"TEXT(WEEKDAY(DATE(AnnéeCivile+1,7,17),1),\"[$-40c]aaa\")","v":"mer."},{"$f":"TEXT(WEEKDAY(DATE(AnnéeCivile+1,7,18),1),\"[$-40c]aaa\")","v":"jeu."},{"$f":"TEXT(WEEKDAY(DATE(AnnéeCivile+1,7,19),1),\"[$-40c]aaa\")","v":"ven."},{"$f":"TEXT(WEEKDAY(DATE(AnnéeCivile+1,7,20),1),\"[$-40c]aaa\")","v":"sam."},{"$f":"TEXT(WEEKDAY(DATE(AnnéeCivile+1,7,21),1),\"[$-40c]aaa\")","v":"dim."},{"$f":"TEXT(WEEKDAY(DATE(AnnéeCivile+1,7,22),1),\"[$-40c]aaa\")","v":"lun."},{"$f":"TEXT(WEEKDAY(DATE(AnnéeCivile+1,7,23),1),\"[$-40c]aaa\")","v":"mar."},{"$f":"TEXT(WEEKDAY(DATE(AnnéeCivile+1,7,24),1),\"[$-40c]aaa\")","v":"mer."},{"$f":"TEXT(WEEKDAY(DATE(AnnéeCivile+1,7,25),1),\"[$-40c]aaa\")","v":"jeu."},{"$f":"TEXT(WEEKDAY(DATE(AnnéeCivile+1,7,26),1),\"[$-40c]aaa\")","v":"ven."},{"$f":"TEXT(WEEKDAY(DATE(AnnéeCivile+1,7,27),1),\"[$-40c]aaa\")","v":"sam."},{"$f":"TEXT(WEEKDAY(DATE(AnnéeCivile+1,7,28),1),\"[$-40c]aaa\")","v":"dim."},{"$f":"TEXT(WEEKDAY(DATE(AnnéeCivile+1,7,29),1),\"[$-40c]aaa\")","v":"lun."},{"$f":"TEXT(WEEKDAY(DATE(AnnéeCivile+1,7,30),1),\"[$-40c]aaa\")","v":"mar."},{"$f":"TEXT(WEEKDAY(DATE(AnnéeCivile+1,7,31),1),\"[$-40c]aaa\")","v":"mer."},"Total"]
[null,"Référence","Nom de l’élève","1","2","3","4","5","6","7","8","9","10","11","12","13","14","15","16","17","18","19","20","21","22","23","24","25","26","27","28","29","30","31","R","E","N1","P","Jours d’absence"]
[null,null,{"$f":"IFERROR(VLOOKUP(ParticipationJuillet[[#This Row],[Référence]],ListeÉtudiants[],18,FALSE),\"\")","v":""},{"$nulls":31},{"$f":"COUNTIF(ParticipationJuillet[[#This Row],[1]:[31]],Code1)","v":0},{"$f":"COUNTIF(ParticipationJuillet[[#This Row],[1]:[31]],Code2)","v":0},{"$f":"COUNTIF(ParticipationJuillet[[#This Row],[1]:[31]],Code3)","v":0},{"$f":"COUNTIF(ParticipationJuillet[[#This Row],[1]:[31]],Code4)","v":0},{"$f":"SUM(ParticipationJuillet[[#This Row],[E]:[N1]])","v":0}]
[null,null,{"$f":"IFERROR(VLOOKUP(ParticipationJuillet[[#This Row],[Référence]],ListeÉtudiants[],18,FALSE),\"\")","v":""},{"$nulls":31},{"$f":"COUNTIF(ParticipationJuillet[[#This Row],[1]:[31]],Code1)","v":0},{"$f":"COUNTIF(ParticipationJuillet[[#This Row],[1]:[31]],Code2)","v":0},{"$f":"COUNTIF(ParticipationJuillet[[#This Row],[1]:[31]],Code3)","v":0},{"$f":"COUNTIF(ParticipationJuillet[[#This Row],[1]:[31]],Code4)","v":0},{"$f":"SUM(ParticipationJuillet[[#This Row],[E]:[N1]])","v":0}]
[null,null,{"$f":"IFERROR(VLOOKUP(ParticipationJuillet[[#This Row],[Référence]],ListeÉtudiants[],18,FALSE),\"\")","v":""},{"$nulls":31},{"$f":"COUNTIF(ParticipationJuillet[[#This Row],[1]:[31]],Code1)","v":0},{"$f":"COUNTIF(ParticipationJuillet[[#This Row],[1]:[31]],Code2)","v":0},{"$f":"COUNTIF(ParticipationJuillet[[#This Row],[1]:[31]],Code3)","v":0},{"$f":"COUNTIF(ParticipationJuillet[[#This Row],[1]:[31]],Code4)","v":0},{"$f":"SUM(ParticipationJuillet[[#This Row],[E]:[N1]])","v":0}]
[null,null,{"$f":"IFERROR(VLOOKUP(ParticipationJuillet[[#This Row],[Référence]],ListeÉtudiants[],18,FALSE),\"\")","v":""},{"$nulls":31},{"$f":"COUNTIF(ParticipationJuillet[[#This Row],[1]:[31]],Code1)","v":0},{"$f":"COUNTIF(ParticipationJuillet[[#This Row],[1]:[31]],Code2)","v":0},{"$f":"COUNTIF(ParticipationJuillet[[#This Row],[1]:[31]],Code3)","v":0},{"$f":"COUNTIF(ParticipationJuillet[[#This Row],[1]:[31]],Code4)","v":0},{"$f":"SUM(ParticipationJuillet[[#This Row],[E]:[N1]])","v":0}]
[null,null,{"$f":"IFERROR(VLOOKUP(ParticipationJuillet[[#This Row],[Référence]],ListeÉtudiants[],18,FALSE),\"\")","v":""},{"$nulls":31},{"$f":"COUNTIF(ParticipationJuillet[[#This Row],[1]:[31]],Code1)","v":0},{"$f":"COUNTIF(ParticipationJuillet[[#This Row],[1]:[31]],Code2)","v":0},{"$f":"COUNTIF(ParticipationJuillet[[#This Row],[1]:[31]],Code3)","v":0},{"$f":"COUNTIF(ParticipationJuillet[[#This Row],[1]:[31]],Code4)","v":0},{"$f":"SUM(ParticipationJuillet[[#This Row],[E]:[N1]])","v":0}]
[null,null,"Jours d’absence (total)",{"$f":"COUNTIF(ParticipationJuillet[1],\"N1\")+COUNTIF(ParticipationJuillet[1],\"E\")","v":0},{"$f":"COUNTIF(ParticipationJuillet[2],\"N1\")+COUNTIF(ParticipationJuillet[2],\"E\")","v":0},{"$f":"COUNTIF(ParticipationJuillet[3],\"N1\")+COUNTIF(ParticipationJuillet[3],\"E\")","v":0},{"$f":"COUNTIF(ParticipationJuillet[4],\"N1\")+COUNTIF(ParticipationJuillet[4],\"E\")","v":0},{"$f":"COUNTIF(ParticipationJuillet[5],\"N1\")+COUNTIF(ParticipationJuillet[5],\"E\")","v":0},{"$f":"COUNTIF(ParticipationJuillet[6],\"N1\")+COUNTIF(ParticipationJuillet[6],\"E\")","v":0},{"$f":"COUNTIF(ParticipationJuillet[7],\"N1\")+COUNTIF(ParticipationJuillet[7],\"E\")","v":0},{"$f":"COUNTIF(ParticipationJuillet[8],\"N1\")+COUNTIF(ParticipationJuillet[8],\"E\")","v":0},{"$f":"COUNTIF(ParticipationJuillet[9],\"N1\")+COUNTIF(ParticipationJuillet[9],\"E\")","v":0},{"$f":"COUNTIF(ParticipationJuillet[10],\"N1\")+COUNTIF(ParticipationJuillet[10],\"E\")","v":0},{"$f":"COUNTIF(ParticipationJuillet[11],\"N1\")+COUNTIF(ParticipationJuillet[11],\"E\")","v":0},{"$f":"COUNTIF(ParticipationJuillet[12],\"N1\")+COUNTIF(ParticipationJuillet[12],\"E\")","v":0},{"$f":"COUNTIF(ParticipationJuillet[13],\"N1\")+COUNTIF(ParticipationJuillet[13],\"E\")","v":0},{"$f":"COUNTIF(ParticipationJuillet[14],\"N1\")+COUNTIF(ParticipationJuillet[14],\"E\")","v":0},{"$f":"COUNTIF(ParticipationJuillet[15],\"N1\")+COUNTIF(ParticipationJuillet[15],\"E\")","v":0},{"$f":"COUNTIF(ParticipationJuillet[16],\"N1\")+COUNTIF(ParticipationJuillet[16],\"E\")","v":0},{"$f":"COUNTIF(ParticipationJuillet[17],\"N1\")+COUNTIF(ParticipationJuillet[17],\"E\")","v":0},{"$f":"COUNTIF(ParticipationJuillet[18],\"N1\")+COUNTIF(ParticipationJuillet[18],\"E\")","v":0},{"$f":"COUNTIF(ParticipationJuillet[19],\"N1\")+COUNTIF(ParticipationJuillet[19],\"E\")","v":0},{"$f":"COUNTIF(ParticipationJuillet[20],\"N1\")+COUNTIF(ParticipationJuillet[20],\"E\")","v":0},{"$f":"COUNTIF(ParticipationJuillet[21],\"N1\")+COUNTIF(ParticipationJuillet[21],\"E\")","v":0},{"$f":"COUNTIF(ParticipationJuillet[22],\"N1\")+COUNTIF(ParticipationJuillet[22],\"E\")","v":0},{"$f":"COUNTIF(ParticipationJuillet[23],\"N1\")+COUNTIF(ParticipationJuillet[23],\"E\")","v":0},{"$f":"COUNTIF(ParticipationJuillet[24],\"N1\")+COUNTIF(ParticipationJuillet[24],\"E\")","v":0},{"$f":"COUNTIF(ParticipationJuillet[25],\"N1\")+COUNTIF(ParticipationJuillet[25],\"E\")","v":0},{"$f":"COUNTIF(ParticipationJuillet[26],\"N1\")+COUNTIF(ParticipationJuillet[26],\"E\")","v":0},{"$f":"COUNTIF(ParticipationJuillet[27],\"N1\")+COUNTIF(ParticipationJuillet[27],\"E\")","v":0},{"$f":"COUNTIF(ParticipationJuillet[28],\"N1\")+COUNTIF(ParticipationJuillet[28],\"E\")","v":0},{"$f":"COUNTIF(ParticipationJuillet[29],\"N1\")+COUNTIF(ParticipationJuillet[29],\"E\")","v":0},{"$f":"COUNTIF(ParticipationJuillet[30],\"N1\")+COUNTIF(ParticipationJuillet[30],\"E\")","v":0},{"$f":"COUNTIF(ParticipationJuillet[31],\"N1\")+COUNTIF(ParticipationJuillet[31],\"E\")","v":0},{"$f":"SUBTOTAL(109,ParticipationJuillet[R])","v":0},{"$f":"SUBTOTAL(109,ParticipationJuillet[E])","v":0},{"$f":"SUBTOTAL(109,ParticipationJuillet[N1])","v":0},{"$f":"SUBTOTAL(109,ParticipationJuillet[P])","v":0},{"$f":"SUBTOTAL(109,ParticipationJuillet[Jours d’absence])","v":0}]

{"sheet":"Rapport de présence des élèves","index":14,"n_rows":40,"n_cols":37,"rows_kept":40,"merged":[[2,3,2,14],[2,15,2,17],[2,18,2,21],[2,22,2,29],[2,30,2,31],[2,32,2,35],[3,1,3,2],[3,3,3,14],[3,15,3,17],[3,18,3,21],[3,22,3,29],[3,30,3,31],[3,32,3,35],[4,1,4,9],[4,10,4,21],[4,22,4,29],[4,30,4,36],[5,1,5,9],[5,10,5,21],[5,22,5,29],[5,30,5,36],[6,1,6,9],[6,10,6,21],[6,22,6,29],[6,30,6,36],[7,1,7,9],[7,10,7,21],[7,22,7,29],[7,30,7,36],[8,1,8,9],[8,10,8,21],[8,22,8,29],[8,30,8,36],[9,1,9,9],[9,10,9,21],[9,22,9,29],[9,30,9,36],[13,1,14,32],[13,33,13,36],[15,1,16,1],[15,33,16,33],[15,34,16,34],[15,35,16,35],[15,36,16,36],[17,1,18,1],[17,33,18,33],[17,34,18,34],[17,35,18,35],[17,36,18,36],[19,1,20,1],[19,33,20,33],[19,34,20,34],[19,35,20,35],[19,36,20,36],[21,1,22,1],[21,33,22,33],[21,34,22,34],[21,35,22,35],[21,36,22,36],[23,1,24,1],[23,33,24,33],[23,34,24,34],[23,35,24,35],[23,36,24,36],[25,1,26,1],[25,33,26,33],[25,34,26,34],[25,35,26,35],[25,36,26,36],[27,1,28,1],[27,33,28,33],[27,34,28,34],[27,35,28,35],[27,36,28,36],[29,1,30,1],[29,33,30,33],[29,34,30,34],[29,35,30,35],[29,36,30,36],[31,1,32,1],[31,33,32,33],[31,34,32,34],[31,35,32,35],[31,36,32,36],[33,1,34,1],[33,33,34,33],[33,34,34,34],[33,35,34,35],[33,36,34,36],[35,1,36,1],[35,33,36,33],[35,34,36,34],[35,35,36,35],[35,36,36,36],[37,1,38,1],[37,33,38,33],[37,34,38,34],[37,35,38,35],[37,36,38,36],[39,30,39,32]]}
[{"$f":"\"Registre de présence pour \"","v":"Registre de présence pour "},{"$nulls":7},{"$f":"D4","v":"David Junca"}]
[]
[null,"Référence",null,"Nom de l’élève",{"$nulls":11},"Sexe",null,null,"Date de naissance",{"$nulls":3},"École",{"$nulls":7},"Note",null,"Enseignant",{"$nulls":3},"Salle"]
[null,"E001",null,{"$f":"IFERROR(VLOOKUP(RechercheÉtudiant,ListeÉtudiants[],18,FALSE),\"\")","v":"David Junca"},{"$nulls":11},{"$f":"IFERROR(VLOOKUP(RechercheÉtudiant,ListeÉtudiants[],4,FALSE),\"\")","v":"M"},null,null,{"$f":"IFERROR(VLOOKUP(RechercheÉtudiant,ListeÉtudiants[],5,FALSE),\"\")","v":"1997-03-28"},{"$nulls":3},"École des Beaux-arts ",{"$nulls":7},7,null,"Fabrice Canel",{"$nulls":3},123]
[null,"Nom du parent ou responsable 1",{"$nulls":8},"Relation",{"$nulls":11},"Téléphone (bureau)",{"$nulls":7},"Téléphone (domicile)"]
[null,{"$f":"IFERROR(VLOOKUP(RechercheÉtudiant,ListeÉtudiants[],6,FALSE),\"\")","v":"Delphine"},{"$nulls":8},{"$f":"IFERROR(VLOOKUP(RechercheÉtudiant,ListeÉtudiants[],7,FALSE),\"\")","v":"Junca"},{"$nulls":11},{"$f":"IFERROR(VLOOKUP(RechercheÉtudiant,ListeÉtudiants[],8,FALSE),\"\")","v":1235550134},{"$nulls":7},{"$f":"IFERROR(VLOOKUP(RechercheÉtudiant,ListeÉtudiants[],9,FALSE),\"\")","v":2345550134}]
[null,"Nom du parent ou responsable 2",{"$nulls":8},"Relation",{"$nulls":11},"Téléphone (bureau)",{"$nulls":7},"Téléphone (domicile)"]
[null,{"$f":"IFERROR(VLOOKUP(RechercheÉtudiant,ListeÉtudiants[],10,FALSE),\"\")","v":"Antoine Junca"},{"$nulls":8},{"$f":"IFERROR(VLOOKUP(RechercheÉtudiant,ListeÉtudiants[],11,FALSE),\"\")","v":"Père"},{"$nulls":11},{"$f":"IFERROR(VLOOKUP(RechercheÉtudiant,ListeÉtudiants[],12,FALSE),\"\")","v":1235550134},{"$nulls":7},{"$f":"IFERROR(VLOOKUP(RechercheÉtudiant,ListeÉtudiants[],13,FALSE),\"\")","v":2345550134}]
[null,"Contact en cas d’urgence",{"$nulls":8},"Relation",{"$nulls":11},"Téléphone (bureau)",{"$nulls":7},"Téléphone (domicile)"]
[null,{"$f":"IFERROR(VLOOKUP(RechercheÉtudiant,ListeÉtudiants[],14,FALSE),\"\")","v":"Olivier Renaud"},{"$nulls":8},{"$f":"IFERROR(VLOOKUP(RechercheÉtudiant,ListeÉtudiants[],15,FALSE),\"\")","v":"Grand-père"},{"$nulls":11},{"$f":"IFERROR(VLOOKUP(RechercheÉtudiant,ListeÉtudiants[],16,FALSE),\"\")","v":7895550189},{"$nulls":7},{"$f":"IFERROR(VLOOKUP(RechercheÉtudiant,ListeÉtudiants[],17,FALSE),\"\")","v":7895550134}]
[]
[null,{"$f":"Août!C3","v":"CODE DE COULEURS "},{"$f":"Août!D3","v":"R"},{"$f":"Août!E3","v":"en retard"},null,null,{"$f":"Août!H3","v":"E"},{"$f":"Août!I3","v":"excusé"},null,null,{"$f":"Août!L3","v":"N1"},{"$f":"Août!M3","v":"non excusé"},{"$nulls":3},{"$f":"Août!P3","v":"P"},{"$f":"Août!Q3","v":"présent"},null,null,{"$f":"Août!T3","v":"N"},{"$f":"Août!U3","v":"école fermée"}]
[]
[null,"Présence",{"$nulls":31},"Présence (total)"]
[{"$nulls":33},"R","E","N1","P"]
[null,"Août",1,2,3,4,5,6,7,8,9,10,11,12,13,14,15,16,17,18,19,20,21,22,23,24,25,26,27,28,29,30,31,{"$f":"COUNTIF($D17:$AH17,Code1)","v":2},{"$f":"COUNTIF($D17:$AH17,Code2)","v":1},{"$f":"COUNTIF($D17:$AH17,Code3)","v":0},{"$f":"COUNTIF($D17:$AH17,Code4)","v":19}]
[null,null,{"$f":"IFERROR(VLOOKUP(RechercheÉtudiant,ParticipationAoût[],3,FALSE),\"\")","v":"P"},{"$f":"IFERROR(VLOOKUP(RechercheÉtudiant,ParticipationAoût[],4,FALSE),\"\")","v":"P"},{"$f":"IFERROR(VLOOKUP(RechercheÉtudiant,ParticipationAoût[],5,FALSE),\"\")","v":"R"},{"$f":"IFERROR(VLOOKUP(RechercheÉtudiant,ParticipationAoût[],6,FALSE),\"\")","v":"R"},{"$f":"IFERROR(VLOOKUP(RechercheÉtudiant,ParticipationAoût[],7,FALSE),\"\")","v":"P"},{"$f":"IFERROR(VLOOKUP(RechercheÉtudiant,ParticipationAoût[],8,FALSE),\"\")","v":"N"},{"$f":"IFERROR(VLOOKUP(RechercheÉtudiant,ParticipationAoût[],9,FALSE),\"\")","v":"N"},{"$f":"IFERROR(VLOOKUP(RechercheÉtudiant,ParticipationAoût[],10,FALSE),\"\")","v":"P"},{"$f":"IFERROR(VLOOKUP(RechercheÉtudiant,ParticipationAoût[],11,FALSE),\"\")","v":"P"},{"$f":"IFERROR(VLOOKUP(RechercheÉtudiant,ParticipationAoût[],12,FALSE),\"\")","v":"E"},{"$f":"IFERROR(VLOOKUP(RechercheÉtudiant,ParticipationAoût[],13,FALSE),\"\")","v":"P"},{"$f":"IFERROR(VLOOKUP(RechercheÉtudiant,ParticipationAoût[],14,FALSE),\"\")","v":"P"},{"$f":"IFERROR(VLOOKUP(RechercheÉtudiant,ParticipationAoût[],15,FALSE),\"\")","v":"N"},{"$f":"IFERROR(VLOOKUP(RechercheÉtudiant,ParticipationAoût[],16,FALSE),\"\")","v":"N"},{"$f":"IFERROR(VLOOKUP(RechercheÉtudiant,ParticipationAoût[],17,FALSE),\"\")","v":"P"},{"$f":"IFERROR(VLOOKUP(RechercheÉtudiant,ParticipationAoût[],18,FALSE),\"\")","v":"P"},{"$f":"IFERROR(VLOOKUP(RechercheÉtudiant,ParticipationAoût[],19,FALSE),\"\")","v":"P"},{"$f":"IFERROR(VLOOKUP(RechercheÉtudiant,ParticipationAoût[],20,FALSE),\"\")","v":"P"},{"$f":"IFERROR(VLOOKUP(RechercheÉtudiant,ParticipationAoût[],21,FALSE),\"\")","v":"P"},{"$f":"IFERROR(VLOOKUP(RechercheÉtudiant,ParticipationAoût[],22,FALSE),\"\")","v":"N"},{"$f":"IFERROR(VLOOKUP(RechercheÉtudiant,ParticipationAoût[],23,FALSE),\"\")","v":"N"},{"$f":"IFERROR(VLOOKUP(RechercheÉtudiant,ParticipationAoût[],24,FALSE),\"\")","v":"P"},{"$f":"IFERROR(VLOOKUP(RechercheÉtudiant,ParticipationAoût[],25,FALSE),\"\")","v":"P"},{"$f":"IFERROR(VLOOKUP(RechercheÉtudiant,ParticipationAoût[],26,FALSE),\"\")","v":"P"},{"$f":"IFERROR(VLOOKUP(RechercheÉtudiant,ParticipationAoût[],27,FALSE),\"\")","v":"P"},{"$f":"IFERROR(VLOOKUP(RechercheÉtudiant,ParticipationAoût[],28,FALSE),\"\")","v":"P"},{"$f":"IFERROR(VLOOKUP(RechercheÉtudiant,ParticipationAoût[],29,FALSE),\"\")","v":"N"},{"$f":"IFERROR(VLOOKUP(RechercheÉtudiant,ParticipationAoût[],30,FALSE),\"\")","v":"N"},{"$f":"IFERROR(VLOOKUP(RechercheÉtudiant,ParticipationAoût[],31,FALSE),\"\")","v":"P"},{"$f":"IFERROR(VLOOKUP(RechercheÉtudiant,ParticipationAoût[],32,FALSE),\"\")","v":"P"},{"$f":"IFERROR(VLOOKUP(RechercheÉtudiant,ParticipationAoût[],33,FALSE),\"\")","v":"P"}]
[null,"Septembre",1,2,3,4,5,6,7,8,9,10,11,12,13,14,15,16,17,18,19,20,21,22,23,24,25,26,27,28,29,30,null,{"$f":"COUNTIF($D19:$AH19,Code1)","v":0},{"$f":"COUNTIF($D19:$AH19,Code2)","v":0},{"$f":"COUNTIF($D19:$AH19,Code3)","v":0},{"$f":"COUNTIF($D19:$AH19,Code4)","v":0}]
[null,null,{"$f":"IFERROR(VLOOKUP(RechercheÉtudiant,ParticipationSeptembre[],3,FALSE),\"\")","v":""},{"$f":"IFERROR(VLOOKUP(RechercheÉtudiant,ParticipationSeptembre[],4,FALSE),\"\")","v":""},{"$f":"IFERROR(VLOOKUP(RechercheÉtudiant,ParticipationSeptembre[],5,FALSE),\"\")","v":""},{"$f":"IFERROR(VLOOKUP(RechercheÉtudiant,ParticipationSeptembre[],6,FALSE),\"\")","v":""},{"$f":"IFERROR(VLOOKUP(RechercheÉtudiant,ParticipationSeptembre[],7,FALSE),\"\")","v":""},{"$f":"IFERROR(VLOOKUP(RechercheÉtudiant,ParticipationSeptembre[],8,FALSE),\"\")","v":""},{"$f":"IFERROR(VLOOKUP(RechercheÉtudiant,ParticipationSeptembre[],9,FALSE),\"\")","v":""},{"$f":"IFERROR(VLOOKUP(RechercheÉtudiant,ParticipationSeptembre[],10,FALSE),\"\")","v":""},{"$f":"IFERROR(VLOOKUP(RechercheÉtudiant,ParticipationSeptembre[],11,FALSE),\"\")","v":""},{"$f":"IFERROR(VLOOKUP(RechercheÉtudiant,ParticipationSeptembre[],12,FALSE),\"\")","v":""},{"$f":"IFERROR(VLOOKUP(RechercheÉtudiant,ParticipationSeptembre[],13,FALSE),\"\")","v":""},{"$f":"IFERROR(VLOOKUP(RechercheÉtudiant,ParticipationSeptembre[],14,FALSE),\"\")","v":""},{"$f":"IFERROR(VLOOKUP(RechercheÉtudiant,ParticipationSeptembre[],15,FALSE),\"\")","v":""},{"$f":"IFERROR(VLOOKUP(RechercheÉtudiant,ParticipationSeptembre[],16,FALSE),\"\")","v":""},{"$f":"IFERROR(VLOOKUP(RechercheÉtudiant,ParticipationSeptembre[],17,FALSE),\"\")","v":""},{"$f":"IFERROR(VLOOKUP(RechercheÉtudiant,ParticipationSeptembre[],18,FALSE),\"\")","v":""},{"$f":"IFERROR(VLOOKUP(RechercheÉtudiant,ParticipationSeptembre[],19,FALSE),\"\")","v":""},{"$f":"IFERROR(VLOOKUP(RechercheÉtudiant,ParticipationSeptembre[],20,FALSE),\"\")","v":""},{"$f":"IFERROR(VLOOKUP(RechercheÉtudiant,ParticipationSeptembre[],21,FALSE),\"\")","v":""},{"$f":"IFERROR(VLOOKUP(RechercheÉtudiant,ParticipationSeptembre[],22,FALSE),\"\")","v":""},{"$f":"IFERROR(VLOOKUP(RechercheÉtudiant,ParticipationSeptembre[],23,FALSE),\"\")","v":""},{"$f":"IFERROR(VLOOKUP(RechercheÉtudiant,ParticipationSeptembre[],24,FALSE),\"\")","v":""},{"$f":"IFERROR(VLOOKUP(RechercheÉtudiant,ParticipationSeptembre[],25,FALSE),\"\")","v":""},{"$f":"IFERROR(VLOOKUP(RechercheÉtudiant,ParticipationSeptembre[],26,FALSE),\"\")","v":""},{"$f":"IFERROR(VLOOKUP(RechercheÉtudiant,ParticipationSeptembre[],27,FALSE),\"\")","v":""},{"$f":"IFERROR(VLOOKUP(RechercheÉtudiant,ParticipationSeptembre[],28,FALSE),\"\")","v":""},{"$f":"IFERROR(VLOOKUP(RechercheÉtudiant,ParticipationSeptembre[],29,FALSE),\"\")","v":""},{"$f":"IFERROR(VLOOKUP(RechercheÉtudiant,ParticipationSeptembre[],30,FALSE),\"\")","v":""},{"$f":"IFERROR(VLOOKUP(RechercheÉtudiant,ParticipationSeptembre[],31,FALSE),\"\")","v":""},{"$f":"IFERROR(VLOOKUP(RechercheÉtudiant,ParticipationSeptembre[],32,FALSE),\"\")","v":""}]
[null,"Octobre",1,2,3,4,5,6,7,8,9,10,11,12,13,14,15,16,17,18,19,20,21,22,23,24,25,26,27,28,29,30,31,{"$f":"COUNTIF($D21:$AH21,Code1)","v":0},{"$f":"COUNTIF($D21:$AH21,Code2)","v":0},{"$f":"COUNTIF($D21:$AH21,Code3)","v":0},{"$f":"COUNTIF($D21:$AH21,Code4)","v":0}]
[null,null,{"$f":"IFERROR(VLOOKUP(RechercheÉtudiant,ParticipationOctobre[],3,FALSE),\"\")","v":""},{"$f":"IFERROR(VLOOKUP(RechercheÉtudiant,ParticipationOctobre[],4,FALSE),\"\")","v":""},{"$f":"IFERROR(VLOOKUP(RechercheÉtudiant,ParticipationOctobre[],5,FALSE),\"\")","v":""},{"$f":"IFERROR(VLOOKUP(RechercheÉtudiant,ParticipationOctobre[],6,FALSE),\"\")","v":""},{"$f":"IFERROR(VLOOKUP(RechercheÉtudiant,ParticipationOctobre[],7,FALSE),\"\")","v":""},{"$f":"IFERROR(VLOOKUP(RechercheÉtudiant,ParticipationOctobre[],8,FALSE),\"\")","v":""},{"$f":"IFERROR(VLOOKUP(RechercheÉtudiant,ParticipationOctobre[],9,FALSE),\"\")","v":""},{"$f":"IFERROR(VLOOKUP(RechercheÉtudiant,ParticipationOctobre[],10,FALSE),\"\")","v":""},{"$f":"IFERROR(VLOOKUP(RechercheÉtudiant,ParticipationOctobre[],11,FALSE),\"\")","v":""},{"$f":"IFERROR(VLOOKUP(RechercheÉtudiant,ParticipationOctobre[],12,FALSE),\"\")","v":""},{"$f":"IFERROR(VLOOKUP(RechercheÉtudiant,ParticipationOctobre[],13,FALSE),\"\")","v":""},{"$f":"IFERROR(VLOOKUP(RechercheÉtudiant,ParticipationOctobre[],14,FALSE),\"\")","v":""},{"$f":"IFERROR(VLOOKUP(RechercheÉtudiant,ParticipationOctobre[],15,FALSE),\"\")","v":""},{"$f":"IFERROR(VLOOKUP(RechercheÉtudiant,ParticipationOctobre[],16,FALSE),\"\")","v":""},{"$f":"IFERROR(VLOOKUP(RechercheÉtudiant,ParticipationOctobre[],17,FALSE),\"\")","v":""},{"$f":"IFERROR(VLOOKUP(RechercheÉtudiant,ParticipationOctobre[],18,FALSE),\"\")","v":""},{"$f":"IFERROR(VLOOKUP(RechercheÉtudiant,ParticipationOctobre[],19,FALSE),\"\")","v":""},{"$f":"IFERROR(VLOOKUP(RechercheÉtudiant,ParticipationOctobre[],20,FALSE),\"\")","v":""},{"$f":"IFERROR(VLOOKUP(RechercheÉtudiant,ParticipationOctobre[],21,FALSE),\"\")","v":""},{"$f":"IFERROR(VLOOKUP(RechercheÉtudiant,ParticipationOctobre[],22,FALSE),\"\")","v":""},{"$f":"IFERROR(VLOOKUP(RechercheÉtudiant,ParticipationOctobre[],23,FALSE),\"\")","v":""},{"$f":"IFERROR(VLOOKUP(RechercheÉtudiant,ParticipationOctobre[],24,FALSE),\"\")","v":""},{"$f":"IFERROR(VLOOKUP(RechercheÉtudiant,ParticipationOctobre[],25,FALSE),\"\")","v":""},{"$f":"IFERROR(VLOOKUP(RechercheÉtudiant,ParticipationOctobre[],26,FALSE),\"\")","v":""},{"$f":"IFERROR(VLOOKUP(RechercheÉtudiant,ParticipationOctobre[],27,FALSE),\"\")","v":""},{"$f":"IFERROR(VLOOKUP(RechercheÉtudiant,ParticipationOctobre[],28,FALSE),\"\")","v":""},{"$f":"IFERROR(VLOOKUP(RechercheÉtudiant,ParticipationOctobre[],29,FALSE),\"\")","v":""},{"$f":"IFERROR(VLOOKUP(RechercheÉtudiant,ParticipationOctobre[],30,FALSE),\"\")","v":""},{"$f":"IFERROR(VLOOKUP(RechercheÉtudiant,ParticipationOctobre[],31,FALSE),\"\")","v":""},{"$f":"IFERROR(VLOOKUP(RechercheÉtudiant,ParticipationOctobre[],32,FALSE),\"\")","v":""},{"$f":"IFERROR(VLOOKUP(RechercheÉtudiant,ParticipationOctobre[],33,FALSE),\"\")","v":""}]
[null,"Novembre",1,2,3,4,5,6,7,8,9,10,11,12,13,14,15,16,17,18,19,20,21,22,23,24,25,26,27,28,29,30,null,{"$f":"COUNTIF($D23:$AH23,Code1)","v":0},{"$f":"COUNTIF($D23:$AH23,Code2)","v":0},{"$f":"COUNTIF($D23:$AH23,Code3)","v":0},{"$f":"COUNTIF($D23:$AH23,Code4)","v":0}]
[null,null,{"$f":"IFERROR(VLOOKUP(RechercheÉtudiant,ParticipationNovembre[],3,FALSE),\"\")","v":""},{"$f":"IFERROR(VLOOKUP(RechercheÉtudiant,ParticipationNovembre[],4,FALSE),\"\")","v":""},{"$f":"IFERROR(VLOOKUP(RechercheÉtudiant,ParticipationNovembre[],5,FALSE),\"\")","v":""},{"$f":"IFERROR(VLOOKUP(RechercheÉtudiant,ParticipationNovembre[],6,FALSE),\"\")","v":""},{"$f":"IFERROR(VLOOKUP(RechercheÉtudiant,ParticipationNovembre[],7,FALSE),\"\")","v":""},{"$f":"IFERROR(VLOOKUP(RechercheÉtudiant,ParticipationNovembre[],8,FALSE),\"\")","v":""},{"$f":"IFERROR(VLOOKUP(RechercheÉtudiant,ParticipationNovembre[],9,FALSE),\"\")","v":""},{"$f":"IFERROR(VLOOKUP(RechercheÉtudiant,ParticipationNovembre[],10,FALSE),\"\")","v":""},{"$f":"IFERROR(VLOOKUP(RechercheÉtudiant,ParticipationNovembre[],11,FALSE),\"\")","v":""},{"$f":"IFERROR(VLOOKUP(RechercheÉtudiant,ParticipationNovembre[],12,FALSE),\"\")","v":""},{"$f":"IFERROR(VLOOKUP(RechercheÉtudiant,ParticipationNovembre[],13,FALSE),\"\")","v":""},{"$f":"IFERROR(VLOOKUP(RechercheÉtudiant,ParticipationNovembre[],14,FALSE),\"\")","v":""},{"$f":"IFERROR(VLOOKUP(RechercheÉtudiant,ParticipationNovembre[],15,FALSE),\"\")","v":""},{"$f":"IFERROR(VLOOKUP(RechercheÉtudiant,ParticipationNovembre[],16,FALSE),\"\")","v":""},{"$f":"IFERROR(VLOOKUP(RechercheÉtudiant,ParticipationNovembre[],17,FALSE),\"\")","v":""},{"$f":"IFERROR(VLOOKUP(RechercheÉtudiant,ParticipationNovembre[],18,FALSE),\"\")","v":""},{"$f":"IFERROR(VLOOKUP(RechercheÉtudiant,ParticipationNovembre[],19,FALSE),\"\")","v":""},{"$f":"IFERROR(VLOOKUP(RechercheÉtudiant,ParticipationNovembre[],20,FALSE),\"\")","v":""},{"$f":"IFERROR(VLOOKUP(RechercheÉtudiant,ParticipationNovembre[],21,FALSE),\"\")","v":""},{"$f":"IFERROR(VLOOKUP(RechercheÉtudiant,ParticipationNovembre[],22,FALSE),\"\")","v":""},{"$f":"IFERROR(VLOOKUP(RechercheÉtudiant,ParticipationNovembre[],23,FALSE),\"\")","v":""},{"$f":"IFERROR(VLOOKUP(RechercheÉtudiant,ParticipationNovembre[],24,FALSE),\"\")","v":""},{"$f":"IFERROR(VLOOKUP(RechercheÉtudiant,ParticipationNovembre[],25,FALSE),\"\")","v":""},{"$f":"IFERROR(VLOOKUP(RechercheÉtudiant,ParticipationNovembre[],26,FALSE),\"\")","v":""},{"$f":"IFERROR(VLOOKUP(RechercheÉtudiant,ParticipationNovembre[],27,FALSE),\"\")","v":""},{"$f":"IFERROR(VLOOKUP(RechercheÉtudiant,ParticipationNovembre[],28,FALSE),\"\")","v":""},{"$f":"IFERROR(VLOOKUP(RechercheÉtudiant,ParticipationNovembre[],29,FALSE),\"\")","v":""},{"$f":"IFERROR(VLOOKUP(RechercheÉtudiant,ParticipationNovembre[],30,FALSE),\"\")","v":""},{"$f":"IFERROR(VLOOKUP(RechercheÉtudiant,ParticipationNovembre[],31,FALSE),\"\")","v":""},{"$f":"IFERROR(VLOOKUP(RechercheÉtudiant,ParticipationNovembre[],32,FALSE),\"\")","v":""}]
[null,"Décembre",1,2,3,4,5,6,7,8,9,10,11,12,13,14,15,16,17,18,19,20,21,22,23,24,25,26,27,28,29,30,31,{"$f":"COUNTIF($D25:$AH25,Code1)","v":0},{"$f":"COUNTIF($D25:$AH25,Code2)","v":0},{"$f":"COUNTIF($D25:$AH25,Code3)","v":0},{"$f":"COUNTIF($D25:$AH25,Code4)","v":0}]
[null,null,{"$f":"IFERROR(VLOOKUP(RechercheÉtudiant,ParticipationDécembre[],3,FALSE),\"\")","v":""},{"$f":"IFERROR(VLOOKUP(RechercheÉtudiant,ParticipationDécembre[],4,FALSE),\"\")","v":""},{"$f":"IFERROR(VLOOKUP(RechercheÉtudiant,ParticipationDécembre[],5,FALSE),\"\")","v":""},{"$f":"IFERROR(VLOOKUP(RechercheÉtudiant,ParticipationDécembre[],6,FALSE),\"\")","v":""},{"$f":"IFERROR(VLOOKUP(RechercheÉtudiant,ParticipationDécembre[],7,FALSE),\"\")","v":""},{"$f":"IFERROR(VLOOKUP(RechercheÉtudiant,ParticipationDécembre[],8,FALSE),\"\")","v":""},{"$f":"IFERROR(VLOOKUP(RechercheÉtudiant,ParticipationDécembre[],9,FALSE),\"\")","v":""},{"$f":"IFERROR(VLOOKUP(RechercheÉtudiant,ParticipationDécembre[],10,FALSE),\"\")","v":""},{"$f":"IFERROR(VLOOKUP(RechercheÉtudiant,ParticipationDécembre[],11,FALSE),\"\")","v":""},{"$f":"IFERROR(VLOOKUP(RechercheÉtudiant,ParticipationDécembre[],12,FALSE),\"\")","v":""},{"$f":"IFERROR(VLOOKUP(RechercheÉtudiant,ParticipationDécembre[],13,FALSE),\"\")","v":""},{"$f":"IFERROR(VLOOKUP(RechercheÉtudiant,ParticipationDécembre[],14,FALSE),\"\")","v":""},{"$f":"IFERROR(VLOOKUP(RechercheÉtudiant,ParticipationDécembre[],15,FALSE),\"\")","v":""},{"$f":"IFERROR(VLOOKUP(RechercheÉtudiant,ParticipationDécembre[],16,FALSE),\"\")","v":""},{"$f":"IFERROR(VLOOKUP(RechercheÉtudiant,ParticipationDécembre[],17,FALSE),\"\")","v":""},{"$f":"IFERROR(VLOOKUP(RechercheÉtudiant,ParticipationDécembre[],18,FALSE),\"\")","v":""},{"$f":"IFERROR(VLOOKUP(RechercheÉtudiant,ParticipationDécembre[],19,FALSE),\"\")","v":""},{"$f":"IFERROR(VLOOKUP(RechercheÉtudiant,ParticipationDécembre[],20,FALSE),\"\")","v":""},{"$f":"IFERROR(VLOOKUP(RechercheÉtudiant,ParticipationDécembre[],21,FALSE),\"\")","v":""},{"$f":"IFERROR(VLOOKUP(RechercheÉtudiant,ParticipationDécembre[],22,FALSE),\"\")","v":""},{"$f":"IFERROR(VLOOKUP(RechercheÉtudiant,ParticipationDécembre[],23,FALSE),\"\")","v":""},{"$f":"IFERROR(VLOOKUP(RechercheÉtudiant,ParticipationDécembre[],24,FALSE),\"\")","v":""},{"$f":"IFERROR(VLOOKUP(RechercheÉtudiant,ParticipationDécembre[],25,FALSE),\"\")","v":""},{"$f":"IFERROR(VLOOKUP(RechercheÉtudiant,ParticipationDécembre[],26,FALSE),\"\")","v":""},{"$f":"IFERROR(VLOOKUP(RechercheÉtudiant,ParticipationDécembre[],27,FALSE),\"\")","v":""},{"$f":"IFERROR(VLOOKUP(RechercheÉtudiant,ParticipationDécembre[],28,FALSE),\"\")","v":""},{"$f":"IFERROR(VLOOKUP(RechercheÉtudiant,ParticipationDécembre[],29,FALSE),\"\")","v":""},{"$f":"IFERROR(VLOOKUP(RechercheÉtudiant,ParticipationDécembre[],30,FALSE),\"\")","v":""},{"$f":"IFERROR(VLOOKUP(RechercheÉtudiant,ParticipationDécembre[],31,FALSE),\"\")","v":""},{"$f":"IFERROR(VLOOKUP(RechercheÉtudiant,ParticipationDécembre[],32,FALSE),\"\")","v":""},{"$f":"IFERROR(VLOOKUP(RechercheÉtudiant,ParticipationDécembre[],33,FALSE),\"\")","v":""}]
[null,"Janvier",1,2,3,4,5,6,7,8,9,10,11,12,13,14,15,16,17,18,19,20,21,22,23,24,25,26,27,28,29,30,31,{"$f":"COUNTIF($D27:$AH27,Code1)","v":0},{"$f":"COUNTIF($D27:$AH27,Code2)","v":0},{"$f":"COUNTIF($D27:$AH27,Code3)","v":0},{"$f":"COUNTIF($D27:$AH27,Code4)","v":0}]
[null,null,{"$f":"IFERROR(VLOOKUP(RechercheÉtudiant,ParticipationJanvier[],3,FALSE),\"\")","v":""},{"$f":"IFERROR(VLOOKUP(RechercheÉtudiant,ParticipationJanvier[],4,FALSE),\"\")","v":""},{"$f":"IFERROR(VLOOKUP(RechercheÉtudiant,ParticipationJanvier[],5,FALSE),\"\")","v":""},{"$f":"IFERROR(VLOOKUP(RechercheÉtudiant,ParticipationJanvier[],6,FALSE),\"\")","v":""},{"$f":"IFERROR(VLOOKUP(RechercheÉtudiant,ParticipationJanvier[],7,FALSE),\"\")","v":""},{"$f":"IFERROR(VLOOKUP(RechercheÉtudiant,ParticipationJanvier[],8,FALSE),\"\")","v":""},{"$f":"IFERROR(VLOOKUP(RechercheÉtudiant,ParticipationJanvier[],9,FALSE),\"\")","v":""},{"$f":"IFERROR(VLOOKUP(RechercheÉtudiant,ParticipationJanvier[],10,FALSE),\"\")","v":""},{"$f":"IFERROR(VLOOKUP(RechercheÉtudiant,ParticipationJanvier[],11,FALSE),\"\")","v":""},{"$f":"IFERROR(VLOOKUP(RechercheÉtudiant,ParticipationJanvier[],12,FALSE),\"\")","v":""},{"$f":"IFERROR(VLOOKUP(RechercheÉtudiant,ParticipationJanvier[],13,FALSE),\"\")","v":""},{"$f":"IFERROR(VLOOKUP(RechercheÉtudiant,ParticipationJanvier[],14,FALSE),\"\")","v":""},{"$f":"IFERROR(VLOOKUP(RechercheÉtudiant,ParticipationJanvier[],15,FALSE),\"\")","v":""},{"$f":"IFERROR(VLOOKUP(RechercheÉtudiant,ParticipationJanvier[],16,FALSE),\"\")","v":""},{"$f":"IFERROR(VLOOKUP(RechercheÉtudiant,ParticipationJanvier[],17,FALSE),\"\")","v":""},{"$f":"IFERROR(VLOOKUP(RechercheÉtudiant,ParticipationJanvier[],18,FALSE),\"\")","v":""},{"$f":"IFERROR(VLOOKUP(RechercheÉtudiant,ParticipationJanvier[],19,FALSE),\"\")","v":""},{"$f":"IFERROR(VLOOKUP(RechercheÉtudiant,ParticipationJanvier[],20,FALSE),\"\")","v":""},{"$f":"IFERROR(VLOOKUP(RechercheÉtudiant,ParticipationJanvier[],21,FALSE),\"\")","v":""},{"$f":"IFERROR(VLOOKUP(RechercheÉtudiant,ParticipationJanvier[],22,FALSE),\"\")","v":""},{"$f":"IFERROR(VLOOKUP(RechercheÉtudiant,ParticipationJanvier[],23,FALSE),\"\")","v":""},{"$f":"IFERROR(VLOOKUP(RechercheÉtudiant,ParticipationJanvier[],24,FALSE),\"\")","v":""},{"$f":"IFERROR(VLOOKUP(RechercheÉtudiant,ParticipationJanvier[],25,FALSE),\"\")","v":""},{"$f":"IFERROR(VLOOKUP(RechercheÉtudiant,ParticipationJanvier[],26,FALSE),\"\")","v":""},{"$f":"IFERROR(VLOOKUP(RechercheÉtudiant,ParticipationJanvier[],27,FALSE),\"\")","v":""},{"$f":"IFERROR(VLOOKUP(RechercheÉtudiant,ParticipationJanvier[],28,FALSE),\"\")","v":""},{"$f":"IFERROR(VLOOKUP(RechercheÉtudiant,ParticipationJanvier[],29,FALSE),\"\")","v":""},{"$f":"IFERROR(VLOOKUP(RechercheÉtudiant,ParticipationJanvier[],30,FALSE),\"\")","v":""},{"$f":"IFERROR(VLOOKUP(RechercheÉtudiant,ParticipationJanvier[],31,FALSE),\"\")","v":""},{"$f":"IFERROR(VLOOKUP(RechercheÉtudiant,ParticipationJanvier[],32,FALSE),\"\")","v":""},{"$f":"IFERROR(VLOOKUP(RechercheÉtudiant,ParticipationJanvier[],33,FALSE),\"\")","v":""}]
[null,"Février",1,2,3,4,5,6,7,8,9,10,11,12,13,14,15,16,17,18,19,20,21,22,23,24,25,26,27,28,29,null,null,{"$f":"COUNTIF($D29:$AH29,Code1)","v":0},{"$f":"COUNTIF($D29:$AH29,Code2)","v":0},{"$f":"COUNTIF($D29:$AH29,Code3)","v":0},{"$f":"COUNTIF($D29:$AH29,Code4)","v":0}]
[null,null,{"$f":"IFERROR(VLOOKUP(RechercheÉtudiant,ParticipationFévrier[],3,FALSE),\"\")","v":""},{"$f":"IFERROR(VLOOKUP(RechercheÉtudiant,ParticipationFévrier[],4,FALSE),\"\")","v":""},{"$f":"IFERROR(VLOOKUP(RechercheÉtudiant,ParticipationFévrier[],5,FALSE),\"\")","v":""},{"$f":"IFERROR(VLOOKUP(RechercheÉtudiant,ParticipationFévrier[],6,FALSE),\"\")","v":""},{"$f":"IFERROR(VLOOKUP(RechercheÉtudiant,ParticipationFévrier[],7,FALSE),\"\")","v":""},{"$f":"IFERROR(VLOOKUP(RechercheÉtudiant,ParticipationFévrier[],8,FALSE),\"\")","v":""},{"$f":"IFERROR(VLOOKUP(RechercheÉtudiant,ParticipationFévrier[],9,FALSE),\"\")","v":""},{"$f":"IFERROR(VLOOKUP(RechercheÉtudiant,ParticipationFévrier[],10,FALSE),\"\")","v":""},{"$f":"IFERROR(VLOOKUP(RechercheÉtudiant,ParticipationFévrier[],11,FALSE),\"\")","v":""},{"$f":"IFERROR(VLOOKUP(RechercheÉtudiant,ParticipationFévrier[],12,FALSE),\"\")","v":""},{"$f":"IFERROR(VLOOKUP(RechercheÉtudiant,ParticipationFévrier[],13,FALSE),\"\")","v":""},{"$f":"IFERROR(VLOOKUP(RechercheÉtudiant,ParticipationFévrier[],14,FALSE),\"\")","v":""},{"$f":"IFERROR(VLOOKUP(RechercheÉtudiant,ParticipationFévrier[],15,FALSE),\"\")","v":""},{"$f":"IFERROR(VLOOKUP(RechercheÉtudiant,ParticipationFévrier[],16,FALSE),\"\")","v":""},{"$f":"IFERROR(VLOOKUP(RechercheÉtudiant,ParticipationFévrier[],17,FALSE),\"\")","v":""},{"$f":"IFERROR(VLOOKUP(RechercheÉtudiant,ParticipationFévrier[],18,FALSE),\"\")","v":""},{"$f":"IFERROR(VLOOKUP(RechercheÉtudiant,ParticipationFévrier[],19,FALSE),\"\")","v":""},{"$f":"IFERROR(VLOOKUP(RechercheÉtudiant,ParticipationFévrier[],20,FALSE),\"\")","v":""},{"$f":"IFERROR(VLOOKUP(RechercheÉtudiant,ParticipationFévrier[],21,FALSE),\"\")","v":""},{"$f":"IFERROR(VLOOKUP(RechercheÉtudiant,ParticipationFévrier[],22,FALSE),\"\")","v":""},{"$f":"IFERROR(VLOOKUP(RechercheÉtudiant,ParticipationFévrier[],23,FALSE),\"\")","v":""},{"$f":"IFERROR(VLOOKUP(RechercheÉtudiant,ParticipationFévrier[],24,FALSE),\"\")","v":""},{"$f":"IFERROR(VLOOKUP(RechercheÉtudiant,ParticipationFévrier[],25,FALSE),\"\")","v":""},{"$f":"IFERROR(VLOOKUP(RechercheÉtudiant,ParticipationFévrier[],26,FALSE),\"\")","v":""},{"$f":"IFERROR(VLOOKUP(RechercheÉtudiant,ParticipationFévrier[],27,FALSE),\"\")","v":""},{"$f":"IFERROR(VLOOKUP(RechercheÉtudiant,ParticipationFévrier[],28,FALSE),\"\")","v":""},{"$f":"IFERROR(VLOOKUP(RechercheÉtudiant,ParticipationFévrier[],29,FALSE),\"\")","v":""},{"$f":"IFERROR(VLOOKUP(RechercheÉtudiant,ParticipationFévrier[],30,FALSE),\"\")","v":""},{"$f":"IFERROR(VLOOKUP(RechercheÉtudiant,ParticipationFévrier[],31,FALSE),\"\")","v":""}]
[null,"Mars",1,2,3,4,5,6,7,8,9,10,11,12,13,14,15,16,17,18,19,20,21,22,23,24,25,26,27,28,29,30,31,{"$f":"COUNTIF($D31:$AH31,Code1)","v":0},{"$f":"COUNTIF($D31:$AH31,Code2)","v":0},{"$f":"COUNTIF($D31:$AH31,Code3)","v":0},{"$f":"COUNTIF($D31:$AH31,Code4)","v":0}]
[null,null,{"$f":"IFERROR(VLOOKUP(RechercheÉtudiant,ParticipationMars[],3,FALSE),\"\")","v":""},{"$f":"IFERROR(VLOOKUP(RechercheÉtudiant,ParticipationMars[],4,FALSE),\"\")","v":""},{"$f":"IFERROR(VLOOKUP(RechercheÉtudiant,ParticipationMars[],5,FALSE),\"\")","v":""},{"$f":"IFERROR(VLOOKUP(RechercheÉtudiant,ParticipationMars[],6,FALSE),\"\")","v":""},{"$f":"IFERROR(VLOOKUP(RechercheÉtudiant,ParticipationMars[],7,FALSE),\"\")","v":""},{"$f":"IFERROR(VLOOKUP(RechercheÉtudiant,ParticipationMars[],8,FALSE),\"\")","v":""},{"$f":"IFERROR(VLOOKUP(RechercheÉtudiant,ParticipationMars[],9,FALSE),\"\")","v":""},{"$f":"IFERROR(VLOOKUP(RechercheÉtudiant,ParticipationMars[],10,FALSE),\"\")","v":""},{"$f":"IFERROR(VLOOKUP(RechercheÉtudiant,ParticipationMars[],11,FALSE),\"\")","v":""},{"$f":"IFERROR(VLOOKUP(RechercheÉtudiant,ParticipationMars[],12,FALSE),\"\")","v":""},{"$f":"IFERROR(VLOOKUP(RechercheÉtudiant,ParticipationMars[],13,FALSE),\"\")","v":""},{"$f":"IFERROR(VLOOKUP(RechercheÉtudiant,ParticipationMars[],14,FALSE),\"\")","v":""},{"$f":"IFERROR(VLOOKUP(RechercheÉtudiant,ParticipationMars[],15,FALSE),\"\")","v":""},{"$f":"IFERROR(VLOOKUP(RechercheÉtudiant,ParticipationMars[],16,FALSE),\"\")","v":""},{"$f":"IFERROR(VLOOKUP(RechercheÉtudiant,ParticipationMars[],17,FALSE),\"\")","v":""},{"$f":"IFERROR(VLOOKUP(RechercheÉtudiant,ParticipationMars[],18,FALSE),\"\")","v":""},{"$f":"IFERROR(VLOOKUP(RechercheÉtudiant,ParticipationMars[],19,FALSE),\"\")","v":""},{"$f":"IFERROR(VLOOKUP(RechercheÉtudiant,ParticipationMars[],20,FALSE),\"\")","v":""},{"$f":"IFERROR(VLOOKUP(RechercheÉtudiant,ParticipationMars[],21,FALSE),\"\")","v":""},{"$f":"IFERROR(VLOOKUP(RechercheÉtudiant,ParticipationMars[],22,FALSE),\"\")","v":""},{"$f":"IFERROR(VLOOKUP(RechercheÉtudiant,ParticipationMars[],23,FALSE),\"\")","v":""},{"$f":"IFERROR(VLOOKUP(RechercheÉtudiant,ParticipationMars[],24,FALSE),\"\")","v":""},{"$f":"IFERROR(VLOOKUP(RechercheÉtudiant,ParticipationMars[],25,FALSE),\"\")","v":""},{"$f":"IFERROR(VLOOKUP(RechercheÉtudiant,ParticipationMars[],26,FALSE),\"\")","v":""},{"$f":"IFERROR(VLOOKUP(RechercheÉtudiant,ParticipationMars[],27,FALSE),\"\")","v":""},{"$f":"IFERROR(VLOOKUP(RechercheÉtudiant,ParticipationMars[],28,FALSE),\"\")","v":""},{"$f":"IFERROR(VLOOKUP(RechercheÉtudiant,ParticipationMars[],29,FALSE),\"\")","v":""},{"$f":"IFERROR(VLOOKUP(RechercheÉtudiant,ParticipationMars[],30,FALSE),\"\")","v":""},{"$f":"IFERROR(VLOOKUP(RechercheÉtudiant,ParticipationMars[],31,FALSE),\"\")","v":""},{"$f":"IFERROR(VLOOKUP(RechercheÉtudiant,ParticipationMars[],32,FALSE),\"\")","v":""},{"$f":"IFERROR(VLOOKUP(RechercheÉtudiant,ParticipationMars[],33,FALSE),\"\")","v":""}]
[null,"Avril",1,2,3,4,5,6,7,8,9,10,11,12,13,14,15,16,17,18,19,20,21,22,23,24,25,26,27,28,29,30,null,{"$f":"COUNTIF($D33:$AH33,Code1)","v":0},{"$f":"COUNTIF($D33:$AH33,Code2)","v":0},{"$f":"COUNTIF($D33:$AH33,Code3)","v":0},{"$f":"COUNTIF($D33:$AH33,Code4)","v":0}]
[null,null,{"$f":"IFERROR(VLOOKUP(RechercheÉtudiant,ParticipationAvril[],3,FALSE),\"\")","v":""},{"$f":"IFERROR(VLOOKUP(RechercheÉtudiant,ParticipationAvril[],4,FALSE),\"\")","v":""},{"$f":"IFERROR(VLOOKUP(RechercheÉtudiant,ParticipationAvril[],5,FALSE),\"\")","v":""},{"$f":"IFERROR(VLOOKUP(RechercheÉtudiant,ParticipationAvril[],6,FALSE),\"\")","v":""},{"$f":"IFERROR(VLOOKUP(RechercheÉtudiant,ParticipationAvril[],7,FALSE),\"\")","v":""},{"$f":"IFERROR(VLOOKUP(RechercheÉtudiant,ParticipationAvril[],8,FALSE),\"\")","v":""},{"$f":"IFERROR(VLOOKUP(RechercheÉtudiant,ParticipationAvril[],9,FALSE),\"\")","v":""},{"$f":"IFERROR(VLOOKUP(RechercheÉtudiant,ParticipationAvril[],10,FALSE),\"\")","v":""},{"$f":"IFERROR(VLOOKUP(RechercheÉtudiant,ParticipationAvril[],11,FALSE),\"\")","v":""},{"$f":"IFERROR(VLOOKUP(RechercheÉtudiant,ParticipationAvril[],12,FALSE),\"\")","v":""},{"$f":"IFERROR(VLOOKUP(RechercheÉtudiant,ParticipationAvril[],13,FALSE),\"\")","v":""},{"$f":"IFERROR(VLOOKUP(RechercheÉtudiant,ParticipationAvril[],14,FALSE),\"\")","v":""},{"$f":"IFERROR(VLOOKUP(RechercheÉtudiant,ParticipationAvril[],15,FALSE),\"\")","v":""},{"$f":"IFERROR(VLOOKUP(RechercheÉtudiant,ParticipationAvril[],16,FALSE),\"\")","v":""},{"$f":"IFERROR(VLOOKUP(RechercheÉtudiant,ParticipationAvril[],17,FALSE),\"\")","v":""},{"$f":"IFERROR(VLOOKUP(RechercheÉtudiant,ParticipationAvril[],18,FALSE),\"\")","v":""},{"$f":"IFERROR(VLOOKUP(RechercheÉtudiant,ParticipationAvril[],19,FALSE),\"\")","v":""},{"$f":"IFERROR(VLOOKUP(RechercheÉtudiant,ParticipationAvril[],20,FALSE),\"\")","v":""},{"$f":"IFERROR(VLOOKUP(RechercheÉtudiant,ParticipationAvril[],21,FALSE),\"\")","v":""},{"$f":"IFERROR(VLOOKUP(RechercheÉtudiant,ParticipationAvril[],22,FALSE),\"\")","v":""},{"$f":"IFERROR(VLOOKUP(RechercheÉtudiant,ParticipationAvril[],23,FALSE),\"\")","v":""},{"$f":"IFERROR(VLOOKUP(RechercheÉtudiant,ParticipationAvril[],24,FALSE),\"\")","v":""},{"$f":"IFERROR(VLOOKUP(RechercheÉtudiant,ParticipationAvril[],25,FALSE),\"\")","v":""},{"$f":"IFERROR(VLOOKUP(RechercheÉtudiant,ParticipationAvril[],26,FALSE),\"\")","v":""},{"$f":"IFERROR(VLOOKUP(RechercheÉtudiant,ParticipationAvril[],27,FALSE),\"\")","v":""},{"$f":"IFERROR(VLOOKUP(RechercheÉtudiant,ParticipationAvril[],28,FALSE),\"\")","v":""},{"$f":"IFERROR(VLOOKUP(RechercheÉtudiant,ParticipationAvril[],29,FALSE),\"\")","v":""},{"$f":"IFERROR(VLOOKUP(RechercheÉtudiant,ParticipationAvril[],30,FALSE),\"\")","v":""},{"$f":"IFERROR(VLOOKUP(RechercheÉtudiant,ParticipationAvril[],31,FALSE),\"\")","v":""},{"$f":"IFERROR(VLOOKUP(RechercheÉtudiant,ParticipationAvril[],32,FALSE),\"\")","v":""}]
[null,"Mai",1,2,3,4,5,6,7,8,9,10,11,12,13,14,15,16,17,18,19,20,21,22,23,24,25,26,27,28,29,30,31,{"$f":"COUNTIF($D35:$AH35,Code1)","v":0},{"$f":"COUNTIF($D35:$AH35,Code2)","v":0},{"$f":"COUNTIF($D35:$AH35,Code3)","v":0},{"$f":"COUNTIF($D35:$AH35,Code4)","v":0}]
[null,null,{"$f":"IFERROR(VLOOKUP(RechercheÉtudiant,ParticipationMai[],3,FALSE),\"\")","v":""},{"$f":"IFERROR(VLOOKUP(RechercheÉtudiant,ParticipationMai[],4,FALSE),\"\")","v":""},{"$f":"IFERROR(VLOOKUP(RechercheÉtudiant,ParticipationMai[],5,FALSE),\"\")","v":""},{"$f":"IFERROR(VLOOKUP(RechercheÉtudiant,ParticipationMai[],6,FALSE),\"\")","v":""},{"$f":"IFERROR(VLOOKUP(RechercheÉtudiant,ParticipationMai[],7,FALSE),\"\")","v":""},{"$f":"IFERROR(VLOOKUP(RechercheÉtudiant,ParticipationMai[],8,FALSE),\"\")","v":""},{"$f":"IFERROR(VLOOKUP(RechercheÉtudiant,ParticipationMai[],9,FALSE),\"\")","v":""},{"$f":"IFERROR(VLOOKUP(RechercheÉtudiant,ParticipationMai[],10,FALSE),\"\")","v":""},{"$f":"IFERROR(VLOOKUP(RechercheÉtudiant,ParticipationMai[],11,FALSE),\"\")","v":""},{"$f":"IFERROR(VLOOKUP(RechercheÉtudiant,ParticipationMai[],12,FALSE),\"\")","v":""},{"$f":"IFERROR(VLOOKUP(RechercheÉtudiant,ParticipationMai[],13,FALSE),\"\")","v":""},{"$f":"IFERROR(VLOOKUP(RechercheÉtudiant,ParticipationMai[],14,FALSE),\"\")","v":""},{"$f":"IFERROR(VLOOKUP(RechercheÉtudiant,ParticipationMai[],15,FALSE),\"\")","v":""},{"$f":"IFERROR(VLOOKUP(RechercheÉtudiant,ParticipationMai[],16,FALSE),\"\")","v":""},{"$f":"IFERROR(VLOOKUP(RechercheÉtudiant,ParticipationMai[],17,FALSE),\"\")","v":""},{"$f":"IFERROR(VLOOKUP(RechercheÉtudiant,ParticipationMai[],18,FALSE),\"\")","v":""},{"$f":"IFERROR(VLOOKUP(RechercheÉtudiant,ParticipationMai[],19,FALSE),\"\")","v":""},{"$f":"IFERROR(VLOOKUP(RechercheÉtudiant,ParticipationMai[],20,FALSE),\"\")","v":""},{"$f":"IFERROR(VLOOKUP(RechercheÉtudiant,ParticipationMai[],21,FALSE),\"\")","v":""},{"$f":"IFERROR(VLOOKUP(RechercheÉtudiant,ParticipationMai[],22,FALSE),\"\")","v":""},{"$f":"IFERROR(VLOOKUP(RechercheÉtudiant,ParticipationMai[],23,FALSE),\"\")","v":""},{"$f":"IFERROR(VLOOKUP(RechercheÉtudiant,ParticipationMai[],24,FALSE),\"\")","v":""},{"$f":"IFERROR(VLOOKUP(RechercheÉtudiant,ParticipationMai[],25,FALSE),\"\")","v":""},{"$f":"IFERROR(VLOOKUP(RechercheÉtudiant,ParticipationMai[],26,FALSE),\"\")","v":""},{"$f":"IFERROR(VLOOKUP(RechercheÉtudiant,ParticipationMai[],27,FALSE),\"\")","v":""},{"$f":"IFERROR(VLOOKUP(RechercheÉtudiant,ParticipationMai[],28,FALSE),\"\")","v":""},{"$f":"IFERROR(VLOOKUP(RechercheÉtudiant,ParticipationMai[],29,FALSE),\"\")","v":""},{"$f":"IFERROR(VLOOKUP(RechercheÉtudiant,ParticipationMai[],30,FALSE),\"\")","v":""},{"$f":"IFERROR(VLOOKUP(RechercheÉtudiant,ParticipationMai[],31,FALSE),\"\")","v":""},{"$f":"IFERROR(VLOOKUP(RechercheÉtudiant,ParticipationMai[],32,FALSE),\"\")","v":""},{"$f":"IFERROR(VLOOKUP(RechercheÉtudiant,ParticipationMai[],33,FALSE),\"\")","v":""}]
[null,"Juin",1,2,3,4,5,6,7,8,9,10,11,12,13,14,15,16,17,18,19,20,21,22,23,24,25,26,27,28,29,30,null,{"$f":"COUNTIF($D37:$AH37,Code1)","v":0},{"$f":"COUNTIF($D37:$AH37,Code2)","v":0},{"$f":"COUNTIF($D37:$AH37,Code3)","v":0},{"$f":"COUNTIF($D37:$AH37,Code4)","v":0}]
[null,null,{"$f":"IFERROR(VLOOKUP(RechercheÉtudiant,ParticipationJuin[],3,FALSE),\"\")","v":""},{"$f":"IFERROR(VLOOKUP(RechercheÉtudiant,ParticipationJuin[],4,FALSE),\"\")","v":""},{"$f":"IFERROR(VLOOKUP(RechercheÉtudiant,ParticipationJuin[],5,FALSE),\"\")","v":""},{"$f":"IFERROR(VLOOKUP(RechercheÉtudiant,ParticipationJuin[],6,FALSE),\"\")","v":""},{"$f":"IFERROR(VLOOKUP(RechercheÉtudiant,ParticipationJuin[],7,FALSE),\"\")","v":""},{"$f":"IFERROR(VLOOKUP(RechercheÉtudiant,ParticipationJuin[],8,FALSE),\"\")","v":""},{"$f":"IFERROR(VLOOKUP(RechercheÉtudiant,ParticipationJuin[],9,FALSE),\"\")","v":""},{"$f":"IFERROR(VLOOKUP(RechercheÉtudiant,ParticipationJuin[],10,FALSE),\"\")","v":""},{"$f":"IFERROR(VLOOKUP(RechercheÉtudiant,ParticipationJuin[],11,FALSE),\"\")","v":""},{"$f":"IFERROR(VLOOKUP(RechercheÉtudiant,ParticipationJuin[],12,FALSE),\"\")","v":""},{"$f":"IFERROR(VLOOKUP(RechercheÉtudiant,ParticipationJuin[],13,FALSE),\"\")","v":""},{"$f":"IFERROR(VLOOKUP(RechercheÉtudiant,ParticipationJuin[],14,FALSE),\"\")","v":""},{"$f":"IFERROR(VLOOKUP(RechercheÉtudiant,ParticipationJuin[],15,FALSE),\"\")","v":""},{"$f":"IFERROR(VLOOKUP(RechercheÉtudiant,ParticipationJuin[],16,FALSE),\"\")","v":""},{"$f":"IFERROR(VLOOKUP(RechercheÉtudiant,ParticipationJuin[],17,FALSE),\"\")","v":""},{"$f":"IFERROR(VLOOKUP(RechercheÉtudiant,ParticipationJuin[],18,FALSE),\"\")","v":""},{"$f":"IFERROR(VLOOKUP(RechercheÉtudiant,ParticipationJuin[],19,FALSE),\"\")","v":""},{"$f":"IFERROR(VLOOKUP(RechercheÉtudiant,ParticipationJuin[],20,FALSE),\"\")","v":""},{"$f":"IFERROR(VLOOKUP(RechercheÉtudiant,ParticipationJuin[],21,FALSE),\"\")","v":""},{"$f":"IFERROR(VLOOKUP(RechercheÉtudiant,ParticipationJuin[],22,FALSE),\"\")","v":""},{"$f":"IFERROR(VLOOKUP(RechercheÉtudiant,ParticipationJuin[],23,FALSE),\"\")","v":""},{"$f":"IFERROR(VLOOKUP(RechercheÉtudiant,ParticipationJuin[],24,FALSE),\"\")","v":""},{"$f":"IFERROR(VLOOKUP(RechercheÉtudiant,ParticipationJuin[],25,FALSE),\"\")","v":""},{"$f":"IFERROR(VLOOKUP(RechercheÉtudiant,ParticipationJuin[],26,FALSE),\"\")","v":""},{"$f":"IFERROR(VLOOKUP(RechercheÉtudiant,ParticipationJuin[],27,FALSE),\"\")","v":""},{"$f":"IFERROR(VLOOKUP(RechercheÉtudiant,ParticipationJuin[],28,FALSE),\"\")","v":""},{"$f":"IFERROR(VLOOKUP(RechercheÉtudiant,ParticipationJuin[],29,FALSE),\"\")","v":""},{"$f":"IFERROR(VLOOKUP(RechercheÉtudiant,ParticipationJuin[],30,FALSE),\"\")","v":""},{"$f":"IFERROR(VLOOKUP(RechercheÉtudiant,ParticipationJuin[],31,FALSE),\"\")","v":""},{"$f":"IFERROR(VLOOKUP(RechercheÉtudiant,ParticipationJuin[],32,FALSE),\"\")","v":""}]
[null,"Juillet",1,2,3,4,5,6,7,8,9,10,11,12,13,14,15,16,17,18,19,20,21,22,23,24,25,26,27,28,29,30,31,{"$f":"COUNTIF($D39:$AH39,Code1)","v":0},{"$f":"COUNTIF($D39:$AH39,Code2)","v":0},{"$f":"COUNTIF($D39:$AH39,Code3)","v":0},{"$f":"COUNTIF($D39:$AH39,Code4)","v":0}]
[null,null,{"$f":"IFERROR(VLOOKUP(RechercheÉtudiant,ParticipationJuillet[],3,FALSE),\"\")","v":""},{"$f":"IFERROR(VLOOKUP(RechercheÉtudiant,ParticipationJuillet[],4,FALSE),\"\")","v":""},{"$f":"IFERROR(VLOOKUP(RechercheÉtudiant,ParticipationJuillet[],5,FALSE),\"\")","v":""},{"$f":"IFERROR(VLOOKUP(RechercheÉtudiant,ParticipationJuillet[],6,FALSE),\"\")","v":""},{"$f":"IFERROR(VLOOKUP(RechercheÉtudiant,ParticipationJuillet[],7,FALSE),\"\")","v":""},{"$f":"IFERROR(VLOOKUP(RechercheÉtudiant,ParticipationJuillet[],8,FALSE),\"\")","v":""},{"$f":"IFERROR(VLOOKUP(RechercheÉtudiant,ParticipationJuillet[],9,FALSE),\"\")","v":""},{"$f":"IFERROR(VLOOKUP(RechercheÉtudiant,ParticipationJuillet[],10,FALSE),\"\")","v":""},{"$f":"IFERROR(VLOOKUP(RechercheÉtudiant,ParticipationJuillet[],11,FALSE),\"\")","v":""},{"$f":"IFERROR(VLOOKUP(RechercheÉtudiant,ParticipationJuillet[],12,FALSE),\"\")","v":""},{"$f":"IFERROR(VLOOKUP(RechercheÉtudiant,ParticipationJuillet[],13,FALSE),\"\")","v":""},{"$f":"IFERROR(VLOOKUP(RechercheÉtudiant,ParticipationJuillet[],14,FALSE),\"\")","v":""},{"$f":"IFERROR(VLOOKUP(RechercheÉtudiant,ParticipationJuillet[],15,FALSE),\"\")","v":""},{"$f":"IFERROR(VLOOKUP(RechercheÉtudiant,ParticipationJuillet[],16,FALSE),\"\")","v":""},{"$f":"IFERROR(VLOOKUP(RechercheÉtudiant,ParticipationJuillet[],17,FALSE),\"\")","v":""},{"$f":"IFERROR(VLOOKUP(RechercheÉtudiant,ParticipationJuillet[],18,FALSE),\"\")","v":""},{"$f":"IFERROR(VLOOKUP(RechercheÉtudiant,ParticipationJuillet[],19,FALSE),\"\")","v":""},{"$f":"IFERROR(VLOOKUP(RechercheÉtudiant,ParticipationJuillet[],20,FALSE),\"\")","v":""},{"$f":"IFERROR(VLOOKUP(RechercheÉtudiant,ParticipationJuillet[],21,FALSE),\"\")","v":""},{"$f":"IFERROR(VLOOKUP(RechercheÉtudiant,ParticipationJuillet[],22,FALSE),\"\")","v":""},{"$f":"IFERROR(VLOOKUP(RechercheÉtudiant,ParticipationJuillet[],23,FALSE),\"\")","v":""},{"$f":"IFERROR(VLOOKUP(RechercheÉtudiant,ParticipationJuillet[],24,FALSE),\"\")","v":""},{"$f":"IFERROR(VLOOKUP(RechercheÉtudiant,ParticipationJuillet[],25,FALSE),\"\")","v":""},{"$f":"IFERROR(VLOOKUP(RechercheÉtudiant,ParticipationJuillet[],26,FALSE),\"\")","v":""},{"$f":"IFERROR(VLOOKUP(RechercheÉtudiant,ParticipationJuillet[],27,FALSE),\"\")","v":""},{"$f":"IFERROR(VLOOKUP(RechercheÉtudiant,ParticipationJuillet[],28,FALSE),\"\")","v":""},{"$f":"IFERROR(VLOOKUP(RechercheÉtudiant,ParticipationJuillet[],29,FALSE),\"\")","v":""},{"$f":"IFERROR(VLOOKUP(RechercheÉtudiant,ParticipationJuillet[],30,FALSE),\"\")","v":""},{"$f":"IFERROR(VLOOKUP(RechercheÉtudiant,ParticipationJuillet[],31,FALSE),\"\")","v":""},{"$f":"IFERROR(VLOOKUP(RechercheÉtudiant,ParticipationJuillet[],32,FALSE),\"\")","v":""},{"$f":"IFERROR(VLOOKUP(RechercheÉtudiant,ParticipationJuillet[],33,FALSE),\"\")","v":""}]
[{"$nulls":30},"Total",null,null,{"$f":"SUM(AH16:AH39)","v":2},{"$f":"SUM(AI16:AI39)","v":1},{"$f":"SUM(AJ16:AJ39)","v":0},{"$f":"SUM(AK16:AK39)","v":19}]